{"text_format":"1","workbook":"xlsx","n_sheets":3,"sheets":["INDICE","Hoja4","F5. EVA. ÁREAS O DEPENDENCIAS."],"not_rendered":{"charts":0,"images":7,"macros":1,"external_links":3,"defined_names":37,"comments":1,"pivot_tables":0},"unopened":[],"bounds":{"document_bytes":16777216,"sheet_cells":100000,"rows_first":2000,"rows_last":500,"rows_between":2000,"halvings":0,"cell_chars":16384,"cell_head_chars":4096},"cells_cut":0,"cells_raw":0,"read":"whole","date_system":"1900"}

{"sheet":"INDICE","index":0,"n_rows":76,"n_cols":64,"rows_kept":76,"cut":false,"hidden":false,"merged":[[7,15,9,16],[7,17,8,18],[10,15,12,16],[10,17,12,18],[11,3,12,3],[11,4,12,4],[13,3,15,3],[13,4,15,4],[13,15,15,16],[13,17,15,18],[16,3,17,3],[16,4,18,4],[32,67,32,70],[32,71,32,82],[33,4,33,10],[33,11,34,11],[33,12,34,16],[33,17,34,18],[33,63,34,65],[33,67,33,82],[34,4,34,10],[34,66,35,66],[32,3,32,10],[32,12,32,16],[32,17,32,18],[32,63,32,65],[35,4,35,10],[35,12,35,16],[36,4,36,10],[36,12,36,16],[36,17,39,18],[36,63,39,65],[37,4,37,10],[37,12,37,16],[38,4,38,10],[38,12,38,16],[39,4,39,10],[39,12,39,16],[40,12,40,16],[40,17,40,18],[40,63,40,65],[41,4,41,10],[41,12,41,16],[41,17,42,18],[41,63,42,65],[42,4,42,10],[42,12,42,16],[45,3,45,65],[46,0,76,2],[46,3,73,65],[74,3,74,65],[75,3,76,65],[26,2,45,2],[26,3,31,65],[35,17,35,18],[35,63,35,65],[43,4,43,10],[43,12,43,16],[43,17,44,18],[43,63,44,65],[44,4,44,10],[44,12,44,16],[40,4,40,10]]}
[]
[]
[]
[]
[]
[]
[]
[]
[]
[]
[]
[]
[]
[]
[]
[]
[]
[]
[]
[]
[]
[]
[]
[]
[]
[]
[null,null,null,"\nINSTRUCIONES BÁSICAS PARA EL DILIGENCIAMIENTO DE LOS FORMATOS CORRESPONDIENTES AL PERÍODO ANUAL U ORDINARIO."]
[]
[]
[]
[]
[]
[null,null,null,"PROCEDIMIENTO",null,null,null,null,null,null,null,"Nº","FORMATOS",null,null,null,null,"FASE",null,null,null,null,null,null,null,null,null,null,null,null,null,null,null,null,null,null,null,null,null,null,null,null,null,null,null,null,null,null,null,null,null,null,null,null,null,null,null,null,null,null,null,null,null,"GRÁFICO"]
[null,null,null,"PASO 1. ","Diligenciar  la información personal y de los empleos de los evaluadores y del evaluado.",null,null,null,null,null,null,"F2. ","Compromisos laborales y competencias comportamentales ",null,null,null,null,"FASE II. CONCERTACIÓN DE COMPROMISOS LABORALES Y COMPETENCIAS COMPORTAMENTALES"]
[null,null,null,"PASO 2.","Concertar a mas tardar el 28 de febrero de cada año  los compromisos laborales y competencias comportamentales "]
[null,null,null,"PASO 3. ","Acopiar durante todo el proceso de evaluación las evidencias especificando la ubicación y fecha de aporte.",null,null,null,null,null,null,"F3."," Evidencias",null,null,null,null,"FASE III. SEGUIMIENTO AL DESEMPEÑO LABORAL Y AL DESARROLLO DE LAS COMPETENCIAS COMPORTAMENTALES."]
[null,null,null,"PASO 4. ","Efectuar la primera evaluación parcial semestral la cual comprende del primero (1º) de febrero hasta el treinta y uno (31) de julio de cada año; la calificación de los compromisos laborales deberá producirse dentro de los quince (15) días hábiles siguientes al vencimiento de dicho período.",null,null,null,null,null,null,"F1."," Información general",null,null,null,null,"IV FASE. EVALUACIONES PARCIALES EN PERÍODO ANUAL U ORDINARIO"]
[null,null,null,"PASO 5. ","Efectuar la calificación de las competencias comportamentales correspondientes al primer semestre. (las fechas proceden igual que lo especificado en el ítem anterior)",null,null,null,null,null,null,"F4."," Calificación competencias comportamentales"]
[null,null,null,"PASO 6. ","Comunicar  la calificación dos días después de efectuada.",null,null,null,null,null,null,"F6. ","Reporte de calificaciones período anual u ordinario"]
[null,null,null,"PASO 7. ","Implementar de ser necesario el plan de mejoramiento de acuerdo al resultado del seguimiento o la evaluación.",null,null,null,null,null,null,"F7.","Plan de mejoramiento"]
[null,null,null,"PASO 8. ","Acopiar durante todo el proceso de evaluación las evidencias especificando la ubicación y fecha de aporte.",null,null,null,null,null,null,"F3. ","Evidencias",null,null,null,null,"FASE III. SEGUIMIENTO AL DESEMPEÑO LABORAL Y AL DESARROLLO DE LAS COMPETENCIAS COMPORTAMENTALES."]
[null,null,null,"PASO 9. ","Para la segunda evaluación parcial semestral comprende el primero (1º) de agosto y el treinta y uno (31) de enero del año siguiente, calificación que deberá producirse a más tardar dentro de los quince (15) días hábiles siguientes al vencimiento de dicho período",null,null,null,null,null,null,"F1.","Información general",null,null,null,null,"IV FASE. EVALUACIONES PARCIALES EN PERÍODO ANUAL U ORDINARIO"]
[null,null,null,"PASO 10. ","Deberá realizar la calificación de las competencias comportamentales correspondientes al primer semestre. (las fechas proceden igual que el ítem anterior)",null,null,null,null,null,null,"F4.","Calificación competencias comportamentales"]
[null,null,null,"PASO 11. ","Registrar el resultado de las evaluación de gestión por áreas o dependencias de acuerdo con la información del formato (F5.  EVA. ÁREAS O DEPENDENCIAS).",null,null,null,null,null,null,"F1.","Información general",null,null,null,null,"V FASE. CALIFICACIÓN DEFINITIVA"]
[null,null,null,"PASO 12. ","Notificar la calificación final, en el caso de presentarse recursos diligenciar la sección V y VI del formato.",null,null,null,null,null,null,"F6.","Reporte de calificaciones período anual u ordinario"]
[]
[]
[]
[]
[]
[]
[]
[]
[]
[]
[]
[]
[]
[]
[]
[]
[]
[]
[]
[]
[]
[]
[]
[]
[]
[]
[]
[]
[]
[]
[null,null,null,"Estos formatos constituyen una ayuda metodológica para la aplicación del Sistema Tipo de Evaluación de Desempeño Laboral establecido a través del Acuerdo No. 565 de 2016, proferido por la CNSC.\nLos presentes documentos podrán ser susceptibles de modificación.\nLos formatos no cuentan con clave de protección."]

{"sheet":"Hoja4","index":1,"n_rows":1199,"n_cols":34,"rows_kept":1199,"cut":false,"hidden":true,"merged":[[447,7,449,7],[447,10,449,11],[447,8,449,9],[457,10,457,11],[456,8,456,9],[457,8,457,9],[455,10,455,11],[450,8,450,9],[451,8,451,9],[456,10,456,11],[17,17,18,17],[19,17,21,17],[22,17,24,17],[450,10,450,11],[451,10,451,11],[489,0,489,1],[501,0,501,1],[106,25,131,25],[28,25,53,25],[54,25,79,25],[80,25,105,25],[132,25,157,25],[454,8,454,9],[455,8,455,9],[158,25,183,25],[184,25,209,25],[454,10,454,11],[452,10,452,11],[453,10,453,11],[452,8,452,9],[453,8,453,9]]}
[null,null,null,null,null,null,null,null,null,null,null,null,null,0]
["CODIGO",null,"DIRECTIVO",null,null,null,null,null,null,null,null,null,null,1,null,"2016-01-01",null,null,"SI",0.01,"NO SATISFACTORIO",null,null,null,null,"UNO"]
[1050,null,"ASESOR","MODIFICA LA CALIFICACIÓN",1,6,null,1,null,2016,null,65,null,2,null,"2016-01-02",null,null,"NO",0.02,"NO SATISFACTORIO",null,null,null,"CEDULA DE CIUDADANIA","UNO",1,"NO SATISFACTORIO"]
[1020,null,"PROFESIONAL","CONFIRMA LA CALIFICACIÓN",2,9,"X",2,null,2017,null,76,null,3,null,"2016-01-03",null,null,null,0.03,"NO SATISFACTORIO",null,null,null,null,"UNO",1.1000000000000001,"NO SATISFACTORIO"]
[1060,null,"TECNICO","RECHAZA POR EXTEMPORÁNEA",3,12,null,3,null,2018,null,null,null,4,null,"2016-01-04",null,null,null,0.04,"NO SATISFACTORIO",null,null,null,null,"UNO",1.2,"NO SATISFACTORIO"]
[1045,null,"ASISTENCIAL",null,4,15,null,4,null,2019,null,null,null,5,null,"2016-01-05",null,null,null,0.05,"NO SATISFACTORIO",null,null,null,null,"UNO",1.3,"NO SATISFACTORIO"]
[2025,null,null,null,5,4,null,5,null,2020,null,null,null,6,null,"2016-01-06",null,null,null,0.06,"NO SATISFACTORIO",null,null,null,null,"UNO",1.4,"NO SATISFACTORIO"]
[2001,null,null,null,6,6,null,6,null,2021,null,null,null,7,null,"2016-01-07",null,null,null,7.0000000000000007E-2,"NO SATISFACTORIO",null,null,null,"EVALUADO","UNO",1.5,"NO SATISFACTORIO"]
[2132,null,"CEDULA DE CIUDADANIA",null,7,8,null,7,null,2022,null,null,null,8,null,"2016-01-08",null,null,null,0.08,"NO SATISFACTORIO",null,null,null,"EVALUADOR","UNO",1.6,"NO SATISFACTORIO"]
[2133,null,"CEDULA DE EXTRAJERIA",null,8,10,null,8,null,2023,null,null,null,9,null,"2016-01-09",null,null,null,0.09,"NO SATISFACTORIO",1,1,null,"TERCERO","UNO",1.7,"NO SATISFACTORIO"]
[2002,null,null,null,9,null,null,9,null,2024,null,null,null,10,null,"2016-01-10",null,null,null,0.1,"NO SATISFACTORIO",2,2,null,null,"UNO",1.8,"NO SATISFACTORIO"]
[2125,null,null,null,10,null,null,10,null,2025,null,null,null,11,null,"2016-01-11",null,null,null,0.11,"NO SATISFACTORIO",3,3,null,null,"UNO",1.9,"NO SATISFACTORIO"]
[2137,null,null,null,11,null,null,11,null,2026,null,null,null,12,null,"2016-01-12",null,null,null,0.12,"NO SATISFACTORIO",4,4,null,null,"UNO",2,"NO SATISFACTORIO"]
[2012,null,null,null,12,null,null,12,null,2027,null,null,null,13,null,"2016-01-13",null,null,null,0.13,"NO SATISFACTORIO",null,5,null,null,"UNO",2.1,"NO SATISFACTORIO"]
[2014,null,"SI",null,13,null,null,13,null,2028,null,null,null,14,null,"2016-01-14",null,null,null,0.14000000000000001,"NO SATISFACTORIO",null,6,null,null,"UNO",2.2000000000000002,"NO SATISFACTORIO"]
[2018,null,"NO",null,14,null,null,14,null,2029,null,null,null,15,null,"2016-01-15",null,null,null,0.15,"NO SATISFACTORIO",null,7,null,null,"UNO",2.2999999999999998,"NO SATISFACTORIO"]
[2003,null,null,null,15,null,null,15,null,2030,null,null,null,16,null,"2016-01-16",null,null,null,0.16,null,null,8,null,null,"UNO",15,"NO SATISFACTORIO"]
[2004,null,null,null,16,null,null,16,null,2031,null,null,null,17,null,"2016-01-17",null,"CONOCIMIENTO DEL ENTORNO",null,0.16,"NO SATISFACTORIO",5,9,null,null,"UNO",2.4,"NO SATISFACTORIO"]
[2085,null,null,null,17,null,null,17,null,2032,null,null,null,18,null,"2016-01-18",null,null,null,0.17,"NO SATISFACTORIO",5.9589041095890396,10,null,null,"UNO",2.5,"NO SATISFACTORIO"]
[2120,null,null,null,18,null,null,18,null,2033,null,null,null,19,null,"2016-01-19",null,"CONSTRUCCIÓN DE RELACIONES",null,0.18,"NO SATISFACTORIO",6.5068493150685001,11,null,null,"UNO",2.6,"NO SATISFACTORIO"]
[2142,null,null,null,19,null,null,19,null,2034,null,null,null,20,null,"2016-01-20",null,null,null,0.19,"NO SATISFACTORIO",7.0547945205479401,12,null,null,"UNO",2.7,"NO SATISFACTORIO"]
[2087,null,null,null,20,null,null,20,null,2035,null,null,null,21,null,"2016-01-21",null,null,null,0.2,"NO SATISFACTORIO",7.6027397260273899,13,null,null,"UNO",2.8,"NO SATISFACTORIO"]
[2123,null,null,null,21,null,null,21,null,2036,null,null,null,22,null,"2016-01-22",null,"INICIATIVA",null,0.21,"NO SATISFACTORIO",8.1506849315068504,14,null,null,"UNO",2.9,"NO SATISFACTORIO"]
[2052,null,null,null,22,null,null,22,null,2037,null,null,null,23,null,"2016-01-23",null,null,null,0.22,"NO SATISFACTORIO",8.6986301369862993,15,null,null,"UNO",3,"NO SATISFACTORIO"]
[2009,null,null,null,23,null,null,23,null,2038,null,null,null,24,null,"2016-01-24",null,null,null,0.23,"NO SATISFACTORIO",9.24657534246575,16,null,null,"UNO",3.1,"NO SATISFACTORIO"]
[2007,null,null,null,24,null,null,24,null,2039,null,65,null,25,null,"2016-01-25",null,null,null,0.24,"NO SATISFACTORIO",9.7945205479452007,17,null,null,"UNO",3.2,"NO SATISFACTORIO"]
[2112,null,null,null,25,null,null,25,null,2040,null,76,null,26,null,"2016-01-26",null,null,null,0.25,"NO SATISFACTORIO",10.342465753424699,18,null,null,"UNO",3.3,"NO SATISFACTORIO"]
[2165,null,null,null,26,null,null,26,null,2042,null,80,null,27,null,"2016-01-27",null,null,null,0.26,"NO SATISFACTORIO",10.8904109589041,19,null,null,"UNO",3.3,"NO SATISFACTORIO"]
[2028,null,null,null,27,null,null,27,null,2043,null,85,null,28,null,"2016-01-28",null,null,null,0.27,"NO SATISFACTORIO",11.438356164383601,20,null,null,"DOS",3.4,"NO SATISFACTORIO"]
[2033,null,null,null,null,null,null,28,null,2044,null,90,null,29,null,"2016-01-29",null,null,null,0.28000000000000003,"NO SATISFACTORIO",11.986301369863,21,null,null,null,3.5,"NO SATISFACTORIO"]
[2044,null,null,null,null,null,null,29,null,2045,null,95,null,30,null,"2016-01-30",null,null,null,0.28999999999999998,"NO SATISFACTORIO",12.534246575342401,22,null,null,null,3.6,"NO SATISFACTORIO"]
[2048,null,null,null,null,null,null,30,null,2046,null,100,null,31,null,"2016-01-31",null,null,null,0.3,"NO SATISFACTORIO",13.082191780821899,23,null,null,null,3.7,"NO SATISFACTORIO"]
[2152,null,null,null,null,null,null,31,null,2047,null,null,null,32,null,"2016-02-01",null,null,null,0.31,"NO SATISFACTORIO",13.6301369863013,24,null,null,null,3.8,"NO SATISFACTORIO"]
[2184,null,null,null,null,null,null,null,null,2048,null,null,null,33,null,"2016-02-02",null,null,null,0.32,"NO SATISFACTORIO",14.178082191780801,25,null,null,null,3.9,"NO SATISFACTORIO"]
[2094,null,null,null,null,null,null,null,null,2049,null,null,null,34,null,"2016-02-03",null,null,null,0.33,"NO SATISFACTORIO",14.7260273972603,26,null,null,null,4,"NO SATISFACTORIO"]
[2186,null,null,null,null,null,null,null,null,2050,null,null,null,35,null,"2016-02-04",null,null,null,0.34,"NO SATISFACTORIO",15.2739726027397,27,null,null,null,4.0999999999999996,"NO SATISFACTORIO"]
[2102,null,null,null,null,null,null,null,null,null,null,null,null,36,null,"2016-02-05",null,null,null,0.35,"NO SATISFACTORIO",15.821917808219199,28,null,null,null,4.2,"NO SATISFACTORIO"]
[2103,null,null,null,null,null,null,null,null,null,null,null,null,37,null,"2016-02-06",null,null,null,0.36,"NO SATISFACTORIO",16.369863013698598,29,null,null,null,4.3,"NO SATISFACTORIO"]
[2114,null,null,null,null,null,null,null,null,null,null,null,null,38,null,"2016-02-07",null,null,null,0.37,"NO SATISFACTORIO",16.917808219178099,30,null,null,null,4.4000000000000004,"NO SATISFACTORIO"]
[2147,null,null,null,null,null,null,null,null,null,null,null,null,39,null,"2016-02-08",null,null,null,0.38,"NO SATISFACTORIO",17.4657534246575,31,null,null,null,4.5,"NO SATISFACTORIO"]
[2116,null,null,null,null,null,null,null,null,null,null,null,null,40,null,"2016-02-09",null,null,null,0.39,"NO SATISFACTORIO",18.013698630137,32,null,null,null,4.5999999999999996,"NO SATISFACTORIO"]
[3003,null,null,null,null,null,null,null,null,null,null,null,null,41,null,"2016-02-10",null,null,null,0.4,"NO SATISFACTORIO",18.561643835616401,33,null,null,null,4.7,"NO SATISFACTORIO"]
[3038,null,null,null,null,null,null,null,null,null,null,null,null,42,null,"2016-02-11",null,null,null,0.41,"NO SATISFACTORIO",19.109589041095902,34,null,null,null,4.8,"NO SATISFACTORIO"]
[3046,null,null,null,null,null,null,null,null,null,null,null,null,43,null,"2016-02-12",null,null,null,0.42,"NO SATISFACTORIO",19.657534246575299,35,null,null,null,4.9000000000000004,"NO SATISFACTORIO"]
[3054,null,null,null,null,null,null,null,null,null,null,null,null,44,null,"2016-02-13",null,null,null,0.43,"NO SATISFACTORIO",20.205479452054799,36,null,null,null,5,"NO SATISFACTORIO"]
[3066,null,null,null,null,null,null,null,null,null,null,null,null,45,null,"2016-02-14",null,null,null,0.44,"NO SATISFACTORIO",20.7534246575342,37,null,null,null,5.0999999999999996,"NO SATISFACTORIO"]
[3066,null,null,null,null,null,null,null,null,null,null,null,null,46,null,"2016-02-15",null,null,null,0.45,"NO SATISFACTORIO",21.301369863013701,38,null,null,null,5.6,"NO SATISFACTORIO"]
[3074,null,null,null,null,null,null,null,null,null,null,null,null,47,null,"2016-02-16",null,null,null,0.46,"NO SATISFACTORIO",21.849315068493102,39,null,null,null,5.7,"NO SATISFACTORIO"]
[3078,null,null,null,null,null,null,null,null,null,null,null,null,48,null,"2016-02-17",null,null,null,0.47,"NO SATISFACTORIO",22.397260273972599,40,null,null,null,5.8,"NO SATISFACTORIO"]
[3080,null,null,null,null,null,null,null,null,null,null,null,null,49,null,"2016-02-18",null,null,null,0.48,"NO SATISFACTORIO",22.945205479452,41,null,null,null,5.9,"NO SATISFACTORIO"]
[3084,null,null,null,null,null,null,null,null,null,null,null,null,50,null,"2016-02-19",null,null,null,0.49,"NO SATISFACTORIO",23.4931506849315,42,null,null,null,6,"NO SATISFACTORIO"]
[3092,null,null,null,null,null,null,null,null,null,null,null,null,51,null,"2016-02-20",null,null,null,0.5,"NO SATISFACTORIO",24.041095890410901,43,null,null,null,6.1,"NO SATISFACTORIO"]
[3094,null,null,null,null,null,null,null,null,null,null,null,null,52,null,"2016-02-21",null,null,null,0.51,"NO SATISFACTORIO",24.589041095890401,44,null,null,null,6.2,"NO SATISFACTORIO"]
[3070,null,null,null,null,null,null,null,null,null,null,null,null,53,null,"2016-02-22",null,null,null,0.52,"NO SATISFACTORIO",null,45,null,null,null,6.3,"NO SATISFACTORIO"]
[3102,null,null,null,null,null,null,null,null,null,null,null,null,54,null,"2016-02-23",null,null,null,0.53,"NO SATISFACTORIO",null,46,null,null,"TRES",6.4,"NO SATISFACTORIO"]
[3105,null,null,null,null,null,null,null,null,null,null,null,null,55,null,"2016-02-24",null,null,null,0.54,"NO SATISFACTORIO",null,47,null,null,null,6.5,"NO SATISFACTORIO"]
[3110,null,null,null,null,null,null,null,null,null,null,null,null,56,null,"2016-02-25",null,null,null,0.55000000000000004,"NO SATISFACTORIO",null,48,null,null,null,6.6,"NO SATISFACTORIO"]
[3116,null,null,null,null,null,null,null,null,null,null,null,null,57,null,"2016-02-26",null,null,null,0.56000000000000005,"NO SATISFACTORIO",null,49,null,null,null,6.7,"NO SATISFACTORIO"]
[3118,null,null,null,null,null,null,null,null,null,null,null,null,58,null,"2016-02-27",null,null,null,0.56999999999999995,"NO SATISFACTORIO",null,50,null,null,null,6.8,"NO SATISFACTORIO"]
[3100,null,null,null,null,null,null,null,null,null,null,null,null,59,null,"2016-02-28",null,null,null,0.57999999999999996,"NO SATISFACTORIO",null,51,null,null,null,6.9,"NO SATISFACTORIO"]
[3124,null,null,null,null,null,null,null,null,null,null,null,null,60,null,"2016-02-29",null,null,null,0.59,"NO SATISFACTORIO",null,52,null,null,null,7,"NO SATISFACTORIO"]
[3234,null,null,null,null,null,null,null,null,null,null,null,null,61,null,"2016-03-01",null,null,null,0.6,"NO SATISFACTORIO",null,53,null,null,null,7.1,"NO SATISFACTORIO"]
[3128,null,null,null,null,null,null,null,null,null,null,null,null,62,null,"2016-03-02",null,null,null,0.61,"NO SATISFACTORIO",null,54,null,null,null,7.2,"NO SATISFACTORIO"]
[3132,null,null,null,null,null,null,null,null,null,null,null,null,63,null,"2016-03-03",null,null,null,0.62,"NO SATISFACTORIO",null,55,null,null,null,7.3,"NO SATISFACTORIO"]
[3136,null,null,null,null,null,null,null,null,null,null,null,null,64,null,"2016-03-04",null,null,null,0.63,"NO SATISFACTORIO",null,56,null,null,null,7.4,"NO SATISFACTORIO"]
[3142,null,null,null,null,null,null,null,null,null,null,null,null,65,null,"2016-03-05",null,null,null,0.64,"NO SATISFACTORIO",null,57,null,null,null,7.5,"NO SATISFACTORIO"]
[3142,null,null,null,null,null,null,null,null,null,null,null,null,66,null,"2016-03-06",null,null,null,0.65010000000000001,"SATISFACTORIO",null,58,null,null,null,7.6,"NO SATISFACTORIO"]
[3142,null,null,null,null,null,null,null,null,null,null,null,null,67,null,"2016-03-07",null,null,null,0.66,"SATISFACTORIO",null,59,null,null,null,7.7,"NO SATISFACTORIO"]
[3142,null,null,null,null,null,null,null,null,null,null,null,null,68,null,"2016-03-08",null,null,null,0.67,"SATISFACTORIO",null,60,null,null,null,7.8,"NO SATISFACTORIO"]
[3142,null,null,null,null,null,null,null,null,null,null,null,null,69,null,"2016-03-09",null,null,null,0.68,"SATISFACTORIO",null,61,null,null,null,7.9,"NO SATISFACTORIO"]
[4002,null,null,null,null,null,null,null,null,null,null,null,null,70,null,"2016-03-10",null,null,null,0.69,"SATISFACTORIO",null,62,null,null,null,8,"NO SATISFACTORIO"]
[4006,null,null,null,null,null,null,null,null,null,null,null,null,71,null,"2016-03-11",null,null,null,0.7,"SATISFACTORIO",null,63,null,null,null,8.1,"NO SATISFACTORIO"]
[4008,null,null,null,null,null,null,null,null,null,null,null,null,72,null,"2016-03-12",null,null,null,0.71,"SATISFACTORIO",null,64,null,null,null,8.1999999999999993,"NO SATISFACTORIO"]
[4026,null,null,null,null,null,null,null,null,null,null,null,null,73,null,"2016-03-13",null,null,null,0.72,"SATISFACTORIO",null,65,null,null,null,8.3000000000000007,"NO SATISFACTORIO"]
[4028,null,null,null,null,null,null,null,null,null,null,null,null,74,null,"2016-03-14",null,null,null,0.73,"SATISFACTORIO",null,66,null,null,null,8.4,"NO SATISFACTORIO"]
[4032,null,null,null,null,null,null,null,null,null,null,null,null,75,null,"2016-03-15",null,null,null,0.74,"SATISFACTORIO",null,67,null,null,null,8.5,"NO SATISFACTORIO"]
[4034,null,null,null,null,null,null,null,null,null,null,null,null,76,null,"2016-03-16",null,null,null,0.75,"SATISFACTORIO",null,68,null,null,null,8.6,"NO SATISFACTORIO"]
[4036,null,null,null,null,null,null,null,null,null,null,null,null,77,null,"2016-03-17",null,null,null,0.76,"SATISFACTORIO",null,69,null,null,null,8.6999999999999993,"NO SATISFACTORIO"]
[4038,null,null,null,null,null,null,null,null,null,null,null,null,78,null,"2016-03-18",null,null,null,0.77,"SATISFACTORIO",null,70,null,null,null,8.9,"NO SATISFACTORIO"]
[4044,null,null,null,null,null,null,null,null,null,null,null,null,79,null,"2016-03-19",null,null,null,0.78,"SATISFACTORIO",null,71,null,null,null,9,"NO SATISFACTORIO"]
[4048,null,null,null,null,null,null,null,null,null,null,null,null,80,null,"2016-03-20",null,null,null,0.79,"SATISFACTORIO",null,72,null,null,"CUATRO",9.1,"NO SATISFACTORIO"]
[4056,null,null,null,null,null,null,null,null,null,null,null,null,81,null,"2016-03-21",null,null,null,0.8,"DESTACADO",null,73,null,null,null,9.1999999999999993,"NO SATISFACTORIO"]
[4064,null,null,null,null,null,null,null,null,null,null,null,null,82,null,"2016-03-22",null,null,null,0.81,"DESTACADO",null,74,null,null,null,9.3000000000000007,"NO SATISFACTORIO"]
[4069,null,null,null,null,null,null,null,null,null,null,null,null,83,null,"2016-03-23",null,null,null,0.82,"DESTACADO",null,75,null,null,null,9.4,"NO SATISFACTORIO"]
[4078,null,null,null,null,null,null,null,null,null,null,null,null,84,null,"2016-03-24",null,null,null,0.83,"DESTACADO",null,76,null,null,null,9.5,"NO SATISFACTORIO"]
[4097,null,null,null,null,null,null,null,null,null,null,null,null,85,null,"2016-03-25",null,null,null,0.84,"DESTACADO",null,77,null,null,null,9.6,"NO SATISFACTORIO"]
[4097,null,null,null,null,null,null,null,null,null,null,null,null,86,null,"2016-03-26",null,null,null,0.85,"DESTACADO",null,78,null,null,null,9.6999999999999993,"NO SATISFACTORIO"]
[4097,null,null,null,null,null,null,null,null,null,null,null,null,87,null,"2016-03-27",null,null,null,0.86,"DESTACADO",null,79,null,null,null,9.8000000000000007,"NO SATISFACTORIO"]
[4097,null,null,null,null,null,null,null,null,null,null,null,null,88,null,"2016-03-28",null,null,null,0.87,"DESTACADO",null,80,null,null,null,9.9,"NO SATISFACTORIO"]
[4097,null,null,null,null,null,null,null,null,null,null,null,null,89,null,"2016-03-29",null,null,null,0.88,"DESTACADO",null,81,null,null,null,10,"NO SATISFACTORIO"]
[4103,null,null,null,null,null,null,null,null,null,null,null,null,90,null,"2016-03-30",null,null,null,0.89,"DESTACADO",null,82,null,null,null,10.1,"NO SATISFACTORIO"]
[4112,null,null,null,null,null,null,null,null,null,null,null,null,91,null,"2016-03-31",null,null,null,0.9,"DESTACADO",null,83,null,null,null,10.199999999999999,"NO SATISFACTORIO"]
[4114,null,null,null,null,null,null,null,null,null,null,null,null,92,null,"2016-04-01",null,null,null,0.91,"DESTACADO",null,84,null,null,null,10.3,"NO SATISFACTORIO"]
[4123,null,null,null,null,null,null,null,null,null,null,null,null,93,null,"2016-04-02",null,null,null,0.93,"DESTACADO",null,85,null,null,null,10.4,"NO SATISFACTORIO"]
[4128,null,null,null,null,null,null,null,null,null,null,null,null,94,null,"2016-04-03",null,null,null,0.94,"DESTACADO",null,86,null,null,null,10.5,"NO SATISFACTORIO"]
[4137,null,null,null,null,null,null,null,null,null,null,null,null,95,null,"2016-04-04",null,null,null,0.95,"SOBRESALIENTE",null,87,null,null,null,10.6,"NO SATISFACTORIO"]
[4152,null,null,null,null,null,null,null,null,null,null,null,null,96,null,"2016-04-05",null,null,null,0.96,"SOBRESALIENTE",null,88,null,null,null,10.7,"NO SATISFACTORIO"]
[4158,null,null,null,null,null,null,null,null,null,null,null,null,97,null,"2016-04-06",null,null,null,0.97,"SOBRESALIENTE",null,89,null,null,null,10.8,"NO SATISFACTORIO"]
[4167,null,null,null,null,null,null,null,null,null,null,null,null,98,null,"2016-04-07",null,null,null,0.98,"SOBRESALIENTE",null,90,null,null,null,10.9,"NO SATISFACTORIO"]
[4169,null,null,null,null,null,null,null,null,null,null,null,null,99,null,"2016-04-08",null,null,null,0.99,"SOBRESALIENTE",null,91,null,null,null,11,"NO SATISFACTORIO"]
[4173,null,null,null,null,null,null,null,null,null,null,null,null,100,null,"2016-04-09",null,null,null,1,"SOBRESALIENTE",null,92,null,null,null,11.1,"NO SATISFACTORIO"]
[4178,null,null,null,null,null,null,null,null,null,null,null,null,null,null,"2016-04-10",null,null,null,1.01,"SOBRESALIENTE",null,93,null,null,null,11.2,"NO SATISFACTORIO"]
[4182,null,null,null,null,null,null,null,null,null,null,null,null,0.98,null,"2016-04-11",null,null,null,null,null,null,94,null,null,null,11.3,"NO SATISFACTORIO"]
[4210,null,null,null,null,null,null,null,null,null,null,null,null,0.99,null,"2016-04-12",null,null,null,null,null,null,95,null,null,null,11.4,"NO SATISFACTORIO"]
[4212,null,null,null,null,null,null,null,null,null,null,null,null,1,null,"2016-04-13",null,null,null,null,null,null,96,null,null,null,11.5,"NO SATISFACTORIO"]
[4215,null,null,null,null,null,null,null,null,null,null,null,null,null,null,"2016-04-14",null,null,null,null,null,null,97,null,null,null,11.6,"NO SATISFACTORIO"]
[4220,null,null,null,null,null,null,null,null,null,null,null,null,null,null,"2016-04-15",null,null,null,null,null,null,98,null,null,"CINCO",11.7,"NO SATISFACTORIO"]
[4222,null,null,null,null,null,null,null,null,null,null,null,null,null,null,"2016-04-16",null,null,null,null,null,null,99,null,null,null,11.8,"NO SATISFACTORIO"]
[4225,null,null,null,null,null,null,null,null,null,null,null,null,null,null,"2016-04-17",null,null,null,null,null,null,100,null,null,null,11.9,"NO SATISFACTORIO"]
[4225,null,null,null,null,null,null,null,null,null,null,null,null,null,null,"2016-04-18",null,null,null,null,null,null,101,null,null,null,12,"NO SATISFACTORIO"]
[null,null,null,null,null,null,null,null,null,null,null,null,null,null,null,"2016-04-19",null,null,null,null,null,null,102,null,null,null,12.1,"NO SATISFACTORIO"]
[null,null,null,null,null,null,null,null,null,null,null,null,null,null,null,"2016-04-20",null,null,null,null,null,null,103,null,null,null,12.2,"NO SATISFACTORIO"]
["Agregado para Asuntos Aéreos",null,null,null,null,null,null,null,null,null,null,null,null,null,null,"2016-04-21",null,null,null,null,null,null,104,null,null,null,12.3,"NO SATISFACTORIO"]
["Asesor",null,null,null,null,null,null,null,null,null,null,null,null,null,null,"2016-04-22",null,null,null,null,null,null,105,null,null,null,12.4,"NO SATISFACTORIO"]
["Asesor Comercial",null,null,null,null,null,null,null,null,null,null,null,null,null,null,"2016-04-23",null,null,null,null,null,null,106,null,null,null,12.5,"NO SATISFACTORIO"]
["Jefe de Oficina Asesora de Comunicaciones o de Prensa o de Jurídica o de Planeación",null,null,null,null,null,null,null,null,null,null,null,null,null,null,"2016-04-24",null,null,null,null,null,null,107,null,null,null,12.6,"NO SATISFACTORIO"]
["Administrador de Parques Nacionales",null,null,null,null,null,null,null,null,null,null,null,null,null,null,"2016-04-25",null,null,null,null,null,null,108,null,null,null,12.7,"NO SATISFACTORIO"]
["Jefe de Área protegida",null,null,null,null,null,null,null,null,null,null,null,null,null,null,"2016-04-26",null,null,null,null,null,null,109,null,null,null,12.8,"NO SATISFACTORIO"]
["Capellán",null,null,null,null,null,null,null,null,null,null,null,null,null,null,"2016-04-27",null,null,null,null,null,null,110,null,null,null,12.9,"NO SATISFACTORIO"]
["Comandante Superior de Prisiones",null,null,null,null,null,null,null,null,null,null,null,null,null,null,"2016-04-28",null,null,null,null,null,null,111,null,null,null,13,"NO SATISFACTORIO"]
["Consejero de Relaciones Exteriores",null,null,null,null,null,null,null,null,null,null,null,null,null,null,"2016-04-29",null,null,null,null,null,null,112,null,null,null,13.1,"NO SATISFACTORIO"]
["Copiloto de Aviación",null,null,null,null,null,null,null,null,null,null,null,null,null,null,"2016-04-30",null,null,null,null,null,null,113,null,null,null,13.2,"NO SATISFACTORIO"]
["Defensor de Familia",null,null,null,null,null,null,null,null,null,null,null,null,null,null,"2016-05-01",null,null,null,null,null,null,114,null,null,null,13.3,"NO SATISFACTORIO"]
["Director de Establecimiento Carcelario",null,null,null,null,null,null,null,null,null,null,null,null,null,null,"2016-05-02",null,null,null,null,null,null,115,null,null,null,13.4,"NO SATISFACTORIO"]
["Especialista Asesor Primero",null,null,null,null,null,null,null,null,null,null,null,null,null,null,"2016-05-03",null,null,null,null,null,null,116,null,null,null,13.5,"NO SATISFACTORIO"]
["Especialista Jefe",null,null,null,null,null,null,null,null,null,null,null,null,null,null,"2016-05-04",null,null,null,null,null,null,117,null,null,null,13.6,"NO SATISFACTORIO"]
["Inspector de Trabajo y Seguridad Social",null,null,null,null,null,null,null,null,null,null,null,null,null,null,"2016-05-05",null,null,null,null,null,null,118,null,null,null,13.7,"NO SATISFACTORIO"]
["Inspector de Trabajo y Seguridad Social Especializado",null,null,null,null,null,null,null,null,null,null,null,null,null,null,"2016-05-06",null,null,null,null,null,null,119,null,null,null,13.8,"NO SATISFACTORIO"]
["Médico",null,null,null,null,null,null,null,null,null,null,null,null,null,null,"2016-05-07",null,null,null,null,null,null,120,null,null,null,13.9,"NO SATISFACTORIO"]
["Médico Especialista",null,null,null,null,null,null,null,null,null,null,null,null,null,null,"2016-05-08",null,null,null,null,null,null,121,null,null,null,14,"NO SATISFACTORIO"]
["Odontólogo",null,null,null,null,null,null,null,null,null,null,null,null,null,null,"2016-05-09",null,null,null,null,null,null,122,null,null,null,14.1,"NO SATISFACTORIO"]
["Odontólogo Especialista",null,null,null,null,null,null,null,null,null,null,null,null,null,null,"2016-05-10",null,null,null,null,null,null,123,null,null,null,14.2,"NO SATISFACTORIO"]
["Oficial Logístico",null,null,null,null,null,null,null,null,null,null,null,null,null,null,"2016-05-11",null,null,null,null,null,null,124,null,null,"SEIS",14.3,"NO SATISFACTORIO"]
["Oficial de Tratamiento Penitenciario",null,null,null,null,null,null,null,null,null,null,null,null,null,null,"2016-05-12",null,null,null,null,null,null,125,null,null,null,14.4,"NO SATISFACTORIO"]
["Pastor u Orientador Espiritual",null,null,null,null,null,null,null,null,null,null,null,null,null,null,"2016-05-13",null,null,null,null,null,null,126,null,null,null,14.5,"NO SATISFACTORIO"]
["Piloto de Aviación",null,null,null,null,null,null,null,null,null,null,null,null,null,null,"2016-05-14",null,null,null,null,null,null,127,null,null,null,14.6,"NO SATISFACTORIO"]
["Primer Secretario de Relaciones Exteriores",null,null,null,null,null,null,null,null,null,null,null,null,null,null,"2016-05-15",null,null,null,null,null,null,128,null,null,null,14.7,"NO SATISFACTORIO"]
["Profesional de Gestión Institucional",null,null,null,null,null,null,null,null,null,null,null,null,null,null,"2016-05-16",null,null,null,null,null,null,129,null,null,null,14.8,"NO SATISFACTORIO"]
["Profesional de Gestión Institucional",null,null,null,null,null,null,null,null,null,null,null,null,null,null,"2016-05-17",null,null,null,null,null,null,130,null,null,null,14.9,"NO SATISFACTORIO"]
["Profesional Especializado",null,null,null,null,null,null,null,null,null,null,null,null,null,null,"2016-05-18",null,null,null,null,null,null,131,null,null,null,15,"NO SATISFACTORIO"]
["Profesional Especializado Area de la Salud",null,null,null,null,null,null,null,null,null,null,null,null,null,null,"2016-05-19",null,null,null,null,null,null,132,null,null,null,15.1,"NO SATISFACTORIO"]
["Profesional Universitario",null,null,null,null,null,null,null,null,null,null,null,null,null,null,"2016-05-20",null,null,null,null,null,null,133,null,null,null,15.2,"NO SATISFACTORIO"]
["Profesional Universitario Area de la Salud",null,null,null,null,null,null,null,null,null,null,null,null,null,null,"2016-05-21",null,null,null,null,null,null,134,null,null,null,15.3,"NO SATISFACTORIO"]
["Registrador Delegado",null,null,null,null,null,null,null,null,null,null,null,null,null,null,"2016-05-22",null,null,null,null,null,null,135,null,null,null,15.4,"NO SATISFACTORIO"]
["Registrador Seccional",null,null,null,null,null,null,null,null,null,null,null,null,null,null,"2016-05-23",null,null,null,null,null,null,136,null,null,null,15.5,"NO SATISFACTORIO"]
["Representante del Ministro de Educación ante Entidad Territorial",null,null,null,null,null,null,null,null,null,null,null,null,null,null,"2016-05-24",null,null,null,null,null,null,137,null,null,null,15.6,"NO SATISFACTORIO"]
["Restaurador o Museólogo o Curador",null,null,null,null,null,null,null,null,null,null,null,null,null,null,"2016-05-25",null,null,null,null,null,null,138,null,null,null,15.7,"NO SATISFACTORIO"]
["Secretario de Facultad",null,null,null,null,null,null,null,null,null,null,null,null,null,null,"2016-05-26",null,null,null,null,null,null,139,null,null,null,15.8,"NO SATISFACTORIO"]
["Secretario Comercial I",null,null,null,null,null,null,null,null,null,null,null,null,null,null,"2016-05-27",null,null,null,null,null,null,140,null,null,null,15.9,"NO SATISFACTORIO"]
["Secretario Comercial II",null,null,null,null,null,null,null,null,null,null,null,null,null,null,"2016-05-28",null,null,null,null,null,null,141,null,null,null,16,"NO SATISFACTORIO"]
["Segundo Secretario de Relaciones Exteriores",null,null,null,null,null,null,null,null,null,null,null,null,null,null,"2016-05-29",null,null,null,null,null,null,142,null,null,null,16.100000000000001,"NO SATISFACTORIO"]
["Subdirector de Establecimiento Carcelario",null,null,null,null,null,null,null,null,null,null,null,null,null,null,"2016-05-30",null,null,null,null,null,null,143,null,null,null,16.2,"NO SATISFACTORIO"]
["Tercer Secretario de Relaciones Exteriores",null,null,null,null,null,null,null,null,null,null,null,null,null,null,"2016-05-31",null,null,null,null,null,null,144,null,null,null,16.3,"NO SATISFACTORIO"]
["Analista de Sistemas",null,null,null,null,null,null,null,null,null,null,null,null,null,null,"2016-06-01",null,null,null,null,null,null,145,null,null,null,16.399999999999999,"NO SATISFACTORIO"]
["Auxiliar de Escena",null,null,null,null,null,null,null,null,null,null,null,null,null,null,"2016-06-02",null,null,null,null,null,null,146,null,null,null,16.5,"NO SATISFACTORIO"]
["Auxiliar de Pronóstico",null,null,null,null,null,null,null,null,null,null,null,null,null,null,"2016-06-03",null,null,null,null,null,null,147,null,null,null,16.600000000000001,"NO SATISFACTORIO"]
["Auxiliar de Técnico",null,null,null,null,null,null,null,null,null,null,null,null,null,null,"2016-06-04",null,null,null,null,null,null,148,null,null,null,16.7,"NO SATISFACTORIO"]
["Dactiloscopista",null,null,null,null,null,null,null,null,null,null,null,null,null,null,"2016-06-05",null,null,null,null,null,null,149,null,null,null,16.8,"NO SATISFACTORIO"]
["Tecnico",null,null,null,null,null,null,null,null,null,null,null,null,null,null,"2016-06-06",null,null,null,null,null,null,150,null,null,"SIETE",16.899999999999999,"NO SATISFACTORIO"]
["Especialista Primero",null,null,null,null,null,null,null,null,null,null,null,null,null,null,"2016-06-07",null,null,null,null,null,null,151,null,null,null,17,"NO SATISFACTORIO"]
["Especialista Segundo",null,null,null,null,null,null,null,null,null,null,null,null,null,null,"2016-06-08",null,null,null,null,null,null,152,null,null,null,17.100000000000001,"NO SATISFACTORIO"]
["Especialista Tercero",null,null,null,null,null,null,null,null,null,null,null,null,null,null,"2016-06-09",null,null,null,null,null,null,153,null,null,null,17.2,"NO SATISFACTORIO"]
["Especialista Cuarto",null,null,null,null,null,null,null,null,null,null,null,null,null,null,"2016-06-10",null,null,null,null,null,null,154,null,null,null,17.3,"NO SATISFACTORIO"]
["Especialista Quinto",null,null,null,null,null,null,null,null,null,null,null,null,null,null,"2016-06-11",null,null,null,null,null,null,155,null,null,null,17.399999999999999,"NO SATISFACTORIO"]
["Especialista Sexto",null,null,null,null,null,null,null,null,null,null,null,null,null,null,"2016-06-12",null,null,null,null,null,null,156,null,null,null,17.5,"NO SATISFACTORIO"]
["Instructor",null,null,null,null,null,null,null,null,null,null,null,null,null,null,"2016-06-13",null,null,null,null,null,null,157,null,null,null,17.600000000000001,"NO SATISFACTORIO"]
["Instrumentador Quirúrgico",null,null,null,null,null,null,null,null,null,null,null,null,null,null,"2016-06-14",null,null,null,null,null,null,158,null,null,null,17.7,"NO SATISFACTORIO"]
["Observador de Superficie",null,null,null,null,null,null,null,null,null,null,null,null,null,null,"2016-06-15",null,null,null,null,null,null,159,null,null,null,17.8,"NO SATISFACTORIO"]
["Oficial de Catastro",null,null,null,null,null,null,null,null,null,null,null,null,null,null,"2016-06-16",null,null,null,null,null,null,160,null,null,null,17.899999999999999,"NO SATISFACTORIO"]
["Pronosticador",null,null,null,null,null,null,null,null,null,null,null,null,null,null,"2016-06-17",null,null,null,null,null,null,161,null,null,null,18,"NO SATISFACTORIO"]
["Radiosondista",null,null,null,null,null,null,null,null,null,null,null,null,null,null,"2016-06-18",null,null,null,null,null,null,162,null,null,null,18.100000000000001,"NO SATISFACTORIO"]
["Técnico",null,null,null,null,null,null,null,null,null,null,null,null,null,null,"2016-06-19",null,null,null,null,null,null,163,null,null,null,18.2,"NO SATISFACTORIO"]
["Técnico Administrativo",null,null,null,null,null,null,null,null,null,null,null,null,null,null,"2016-06-20",null,null,null,null,null,null,164,null,null,null,18.3,"NO SATISFACTORIO"]
["Técnico Area Salud",null,null,null,null,null,null,null,null,null,null,null,null,null,null,"2016-06-21",null,null,null,null,null,null,165,null,null,null,18.399999999999999,"NO SATISFACTORIO"]
["Técnico de Servicios Asistenciales",null,null,null,null,null,null,null,null,null,null,null,null,null,null,"2016-06-22",null,null,null,null,null,null,166,null,null,null,18.5,"NO SATISFACTORIO"]
["Técnico Operativo",null,null,null,null,null,null,null,null,null,null,null,null,null,null,"2016-06-23",null,null,null,null,null,null,167,null,null,null,18.600000000000001,"NO SATISFACTORIO"]
["Topógrafo",null,null,null,null,null,null,null,null,null,null,null,null,null,null,"2016-06-24",null,null,null,null,null,null,168,null,null,null,18.7,"NO SATISFACTORIO"]
["Topógrafo Tecnólogo",null,null,null,null,null,null,null,null,null,null,null,null,null,null,"2016-06-25",null,null,null,null,null,null,169,null,null,null,18.8,"NO SATISFACTORIO"]
["Adjunto Jefe",null,null,null,null,null,null,null,null,null,null,null,null,null,null,"2016-06-26",null,null,null,null,null,null,170,null,null,null,18.899999999999999,"NO SATISFACTORIO"]
["Adjunto Intendente",null,null,null,null,null,null,null,null,null,null,null,null,null,null,"2016-06-27",null,null,null,null,null,null,171,null,null,null,19,"NO SATISFACTORIO"]
["Adjunto Mayor",null,null,null,null,null,null,null,null,null,null,null,null,null,null,"2016-06-28",null,null,null,null,null,null,172,null,null,null,19.100000000000001,"NO SATISFACTORIO"]
["Adjunto Especial",null,null,null,null,null,null,null,null,null,null,null,null,null,null,"2016-06-29",null,null,null,null,null,null,173,null,null,null,19.2,"NO SATISFACTORIO"]
["Adjunto Primero",null,null,null,null,null,null,null,null,null,null,null,null,null,null,"2016-06-30",null,null,null,null,null,null,174,null,null,null,19.3,"NO SATISFACTORIO"]
["Adjunto Segundo",null,null,null,null,null,null,null,null,null,null,null,null,null,null,"2016-07-01",null,null,null,null,null,null,175,null,null,null,19.399999999999999,"NO SATISFACTORIO"]
["Adjunto Tercero",null,null,null,null,null,null,null,null,null,null,null,null,null,null,"2016-07-02",null,null,null,null,null,null,176,null,null,"OCHO",19.5,"NO SATISFACTORIO"]
["Adjunto Cuarto",null,null,null,null,null,null,null,null,null,null,null,null,null,null,"2016-07-03",null,null,null,null,null,null,177,null,null,null,19.600000000000001,"NO SATISFACTORIO"]
["Adjunto Quinto",null,null,null,null,null,null,null,null,null,null,null,null,null,null,"2016-07-04",null,null,null,null,null,null,178,null,null,null,19.7,"NO SATISFACTORIO"]
["Auxiliar Administrativo",null,null,null,null,null,null,null,null,null,null,null,null,null,null,"2016-07-05",null,null,null,null,null,null,179,null,null,null,19.8,"NO SATISFACTORIO"]
["Auxiliar Area Salud",null,null,null,null,null,null,null,null,null,null,null,null,null,null,"2016-07-06",null,null,null,null,null,null,180,null,null,null,19.899999999999999,"NO SATISFACTORIO"]
["Auxiliar Bilingüe",null,null,null,null,null,null,null,null,null,null,null,null,null,null,"2016-07-07",null,null,null,null,null,null,181,null,null,null,20,"NO SATISFACTORIO"]
["Auxiliar de Servicios Asistenciales",null,null,null,null,null,null,null,null,null,null,null,null,null,null,"2016-07-08",null,null,null,null,null,null,182,null,null,null,20.100000000000001,"NO SATISFACTORIO"]
["Auxiliar de Servicios Generales",null,null,null,null,null,null,null,null,null,null,null,null,null,null,"2016-07-09",null,null,null,null,null,null,183,null,null,null,20.2,"NO SATISFACTORIO"]
["Capitán de Prisiones",null,null,null,null,null,null,null,null,null,null,null,null,null,null,"2016-07-10",null,null,null,null,null,null,184,null,null,null,20.3,"NO SATISFACTORIO"]
["Celador",null,null,null,null,null,null,null,null,null,null,null,null,null,null,"2016-07-11",null,null,null,null,null,null,185,null,null,null,20.399999999999999,"NO SATISFACTORIO"]
["Asistencial",null,null,null,null,null,null,null,null,null,null,null,null,null,null,"2016-07-12",null,null,null,null,null,null,186,null,null,null,20.5,"NO SATISFACTORIO"]
["Conductor Mecánico",null,null,null,null,null,null,null,null,null,null,null,null,null,null,"2016-07-13",null,null,null,null,null,null,187,null,null,null,20.6,"NO SATISFACTORIO"]
["Distinguido",null,null,null,null,null,null,null,null,null,null,null,null,null,null,"2016-07-14",null,null,null,null,null,null,188,null,null,null,20.7,"NO SATISFACTORIO"]
["Dragoneante",null,null,null,null,null,null,null,null,null,null,null,null,null,null,"2016-07-15",null,null,null,null,null,null,189,null,null,null,20.8,"NO SATISFACTORIO"]
["Ecónomo",null,null,null,null,null,null,null,null,null,null,null,null,null,null,"2016-07-16",null,null,null,null,null,null,190,null,null,null,20.9,"NO SATISFACTORIO"]
["Enfermero Auxiliar",null,null,null,null,null,null,null,null,null,null,null,null,null,null,"2016-07-17",null,null,null,null,null,null,191,null,null,null,21,"NO SATISFACTORIO"]
["Inspector",null,null,null,null,null,null,null,null,null,null,null,null,null,null,"2016-07-18",null,null,null,null,null,null,192,null,null,null,21.1,"NO SATISFACTORIO"]
["Inspector Jefe",null,null,null,null,null,null,null,null,null,null,null,null,null,null,"2016-07-19",null,null,null,null,null,null,193,null,null,null,21.2,"NO SATISFACTORIO"]
["Mayor de Prisiones",null,null,null,null,null,null,null,null,null,null,null,null,null,null,"2016-07-20",null,null,null,null,null,null,194,null,null,null,21.3,"NO SATISFACTORIO"]
["Operario",null,null,null,null,null,null,null,null,null,null,null,null,null,null,"2016-07-21",null,null,null,null,null,null,195,null,null,null,21.4,"NO SATISFACTORIO"]
["Operario Calificado",null,null,null,null,null,null,null,null,null,null,null,null,null,null,"2016-07-22",null,null,null,null,null,null,196,null,null,null,21.5,"NO SATISFACTORIO"]
["Pagador",null,null,null,null,null,null,null,null,null,null,null,null,null,null,"2016-07-23",null,null,null,null,null,null,197,null,null,null,21.6,"NO SATISFACTORIO"]
["Secretario",null,null,null,null,null,null,null,null,null,null,null,null,null,null,"2016-07-24",null,null,null,null,null,null,198,null,null,null,21.7,"NO SATISFACTORIO"]
["Secretario Bilingüe",null,null,null,null,null,null,null,null,null,null,null,null,null,null,"2016-07-25",null,null,null,null,null,null,199,null,null,null,21.8,"NO SATISFACTORIO"]
["Secretario Ejecutivo",null,null,null,null,null,null,null,null,null,null,null,null,null,null,"2016-07-26",null,null,null,null,null,null,200,null,null,null,21.9,"NO SATISFACTORIO"]
["Secretario Ejecutivo del Despacho de Ministro o de Director de Departamento Administrativo",null,null,null,null,null,null,null,null,null,null,null,null,null,null,"2016-07-27",null,null,null,null,null,null,201,null,null,null,22,"NO SATISFACTORIO"]
["Secretario Ejecutivo del Despacho del Viceministro o de Subdirector de Departamento Administrativo",null,null,null,null,null,null,null,null,null,null,null,null,null,null,"2016-07-28",null,null,null,null,null,null,202,null,null,"NUEVE",22.1,"NO SATISFACTORIO"]
["Supervisor",null,null,null,null,null,null,null,null,null,null,null,null,null,null,"2016-07-29",null,null,null,null,null,null,203,null,null,null,22.2,"NO SATISFACTORIO"]
["Teniente de Prisiones",null,null,null,null,null,null,null,null,null,null,null,null,null,null,"2016-07-30",null,null,null,null,null,null,204,null,null,null,22.3,"NO SATISFACTORIO"]
["Tesorero",null,null,null,null,null,null,null,null,null,null,null,null,null,null,"2016-07-31",null,null,null,null,null,null,205,null,null,null,22.4,"NO SATISFACTORIO"]
[null,null,null,null,null,null,null,null,null,null,null,null,null,null,null,"2016-08-01",null,null,null,null,null,null,206,null,null,null,22.5,"NO SATISFACTORIO"]
[null,null,null,null,null,null,null,null,null,null,null,null,null,null,null,"2016-08-02",null,null,null,null,null,null,207,null,null,null,22.6,"NO SATISFACTORIO"]
[null,null,null,null,null,null,null,null,null,null,null,null,null,null,null,"2016-08-03",null,null,null,null,null,null,208,null,null,null,22.7,"NO SATISFACTORIO"]
[null,null,null,null,null,null,null,null,null,null,null,null,null,null,null,"2016-08-04",null,null,null,null,null,null,209,null,null,null,22.8,"NO SATISFACTORIO"]
["NIVEL","Competencia","Concatenar","Definición de la competencia","Conductas asociadas",null,null,null,null,null,null,null,null,null,null,null,"2016-08-05",null,null,null,null,null,null,210,null,null,null,22.9,"NO SATISFACTORIO"]
[null,null,null,null,null,null,null,null,null,null,null,null,null,null,null,null,"2016-08-06",null,null,null,null,null,null,211,null,null,null,23,"NO SATISFACTORIO"]
["ASESOR","Orientación a resultados ",{"$f":"A221&B221","v":"ASESOROrientación a resultados "},"Realizar las funciones y cumplir los compromisos organizacionales con eficacia y calidad. ","▪ Cumple con oportunidad en función de estándares, objetivos y metas establecidas por la entidad, las funciones que le son asignadas.\n▪ Asume la responsabilidad por sus resultados.\n▪ Compromete recursos y tiempos para mejorar la productividad tomando las medidas necesarias para minimizar los riesgos.\n▪ Realiza todas las acciones necesarias para alcanzar los objetivos propuestos enfrentando los obstáculos que se presentan.",null,null,"NIVEL","COMPETENCIA",null,null,null,null,null,null,null,"2016-08-07",null,null,null,null,null,null,212,null,null,null,23.1,"NO SATISFACTORIO"]
["ASESOR","Orientación al usuario y al ciudadano",{"$f":"A222&B222","v":"ASESOROrientación al usuario y al ciudadano"},"Dirigir las decisiones y acciones a la satisfacción de las necesidades e intereses de los usuarios internos y externos, de conformidad con las responsabilidades públicas asignadas a la entidad.","▪ Atiende y valora las necesidades y peticiones de los usuarios y de ciudadanos en general.\n▪Considera las necesidades de los usuarios al diseñar proyectos o servicios.\n▪Da respuesta oportuna a las necesidades de los usuarios de conformidad con el servicio que ofrece la entidad.\n▪Establece diferentes canales de comunicación con el usuario para conocer sus necesidades y propuestas y responde a las mismas.\n▪Reconoce la interdependencia entre su trabajo y el de otros.",null,null,"PROFESIONAL",null,null,null,null,null,null,null,null,"2016-08-08",null,null,null,null,null,null,213,null,null,null,23.2,"NO SATISFACTORIO"]
["ASESOR","Compromiso con la Organización","ASESORCompromiso con la Organización","Alinear el propio comportamiento a las necesidades, prioridades y metas organizacionales.","▪Promueve las metas de la organización y respeta sus normas.\n▪Antepone las necesidades de la organización a sus propias necesidades.\n▪Apoya a la organización en situaciones difíciles.\n▪Demuestra sentido de pertenencia en todas sus actuaciones.",null,null,null,null,null,null,null,null,null,null,null,"2016-08-09",null,null,null,null,null,null,214,null,null,null,23.3,"NO SATISFACTORIO",null,"NIVEL","COMPETENCIA","DEFINICIÒN DE LA COMPETENCIA","CONDUCTAS ASOCIADAS"]
["ASESOR","Experticia profesional","ASESORExperticia profesional","Aplicar el conocimiento profesional","▪Orienta el desarrollo de proyectos especiales para el logro de resultados de la alta dirección.\n▪Aconseja y orienta la toma de decisiones en los temas que le han sido asignados.\n▪Asesora en materias propias de su campo de conocimiento, emitiendo conceptos, juicios o propuestas ajustados a lineamientos teóricos y técnicos.\n▪Se comunica de modo lógico, claro, efectivo y seguro.",null,null,null,null,null,null,null,null,null,null,null,"2016-08-10",null,null,null,null,null,null,215,null,null,null,23.4,"NO SATISFACTORIO",null,"ASESOR","Experticia","Aplicar el conocimiento profesional","▪Orienta el desarrollo de proyectos especiales para el logro de resultados de la alta dirección.\n▪Aconseja y orienta la toma de decisiones en los temas que le han sido asignados.\n▪Asesora en materias propias de su campo de conocimiento, emitiendo conceptos, juicios o propuestas ajustados a lineamientos teóricos y técnicos.\n▪Se comunica de modo lógico, claro, efectivo y seguro."]
["ASESOR","Conocimiento del entorno","ASESORConocimiento del entorno","Conocer e interpretar la organización, su funcionamiento y sus relaciones políticas y administrativas.","▪Comprende el entorno organizacional que enmarca las situaciones objeto de asesoría y lo toma como referente obligado para emitir juicios, conceptos o propuestas a desarrollar.\n▪Se informa permanentemente sobre políticas gubernamentales, problemas y demandas del entorno.",null,null,null,null,null,null,null,null,null,null,null,"2016-08-11",null,null,null,null,null,null,216,null,null,null,23.5,"NO SATISFACTORIO",null,"ASESOR","Conocimiento del entorno","Conocer e interpretar la organización, su funcionamiento y sus relaciones políticas y administrativas.","▪Comprende el entorno organizacional que enmarca las situaciones objeto de asesoría y lo toma como referente obligado para emitir juicios, conceptos o propuestas a desarrollar.\n▪Se informa permanentemente sobre políticas gubernamentales, problemas y demandas del entorno."]
["ASESOR","Construcción de relaciones","ASESORConstrucción de relaciones","Establecer y mantener relaciones cordiales y recíprocas con redes o grupos de personas internas y externas a la organización que faciliten la consecución de los objetivos institucionales.","▪Utiliza sus contactos para conseguir objetivos.\n▪Comparte información para establecer lazos.\n▪Interactúa con otros de un modo efectivo y adecuado.",null,null,null,null,null,null,null,null,null,null,null,"2016-08-12",null,null,null,null,null,null,217,null,null,null,23.6,"NO SATISFACTORIO",null,"ASESOR","Construcción de relaciones","Establecer y mantener relaciones cordiales y recíprocas con redes o grupos de personas internas y externas a la organización que faciliten la consecución de los objetivos institucionales.","▪Utiliza sus contactos para conseguir objetivos.\n▪Comparte información para establecer lazos.\n▪Interactúa con otros de un modo efectivo y adecuado."]
["ASESOR","Iniciativa","ASESORIniciativa","Anticiparse a los problemas iniciando acciones para superar los obstáculos y alcanzar metas concretas","▪Prevé situaciones y alternativas de solución que orientan la toma de decisiones de la alta dirección.\n▪Enfrenta los problemas y propone acciones concretas para solucionarlos.\n▪Reconoce y hace viables las oportunidades.",null,null,null,null,null,null,null,null,null,null,null,"2016-08-13",null,null,null,null,null,null,218,null,null,null,23.7,"NO SATISFACTORIO",null,"ASESOR","Iniciativa","Anticiparse a los problemas iniciando acciones para superar los obstáculos y alcanzar metas concretas","▪Prevé situaciones y alternativas de solución que orientan la toma de decisiones de la alta dirección.\n▪Enfrenta los problemas y propone acciones concretas para solucionarlos.\n▪Reconoce y hace viables las oportunidades."]
["PROFESIONAL","Orientación a resultados ","PROFESIONALOrientación a resultados ","Realizar las funciones y cumplir los compromisos organizacionales con eficacia y calidad. ","▪ Cumple con oportunidad en función de estándares, objetivos y metas establecidas por la entidad, las funciones que le son asignadas.\n▪ Asume la responsabilidad por sus resultados.\n▪ Compromete recursos y tiempos para mejorar la productividad tomando las medidas necesarias para minimizar los riesgos.\n▪ Realiza todas las acciones necesarias para alcanzar los objetivos propuestos enfrentando los obstáculos que se presentan.",null,null,"NIVEL","COMPETENCIA",null,null,null,null,null,null,null,"2016-08-07",null,null,null,null,null,null,212,null,null,null,23.1,"NO SATISFACTORIO"]
["PROFESIONAL","Orientación al usuario y al ciudadano","PROFESIONALOrientación al usuario y al ciudadano","Dirigir las decisiones y acciones a la satisfacción de las necesidades e intereses de los usuarios internos y externos, de conformidad con las responsabilidades públicas asignadas a la entidad.","▪ Atiende y valora las necesidades y peticiones de los usuarios y de ciudadanos en general.\n▪Considera las necesidades de los usuarios al diseñar proyectos o servicios.\n▪Da respuesta oportuna a las necesidades de los usuarios de conformidad con el servicio que ofrece la entidad.\n▪Establece diferentes canales de comunicación con el usuario para conocer sus necesidades y propuestas y responde a las mismas.\n▪Reconoce la interdependencia entre su trabajo y el de otros.",null,null,"ASESOR",null,null,null,null,null,null,null,null,"2016-08-08",null,null,null,null,null,null,213,null,null,null,23.2,"NO SATISFACTORIO"]
["PROFESIONAL","Compromiso con la Organización","PROFESIONALCompromiso con la Organización","Alinear el propio comportamiento a las necesidades, prioridades y metas organizacionales.","▪Promueve las metas de la organización y respeta sus normas.\n▪Antepone las necesidades de la organización a sus propias necesidades.\n▪Apoya a la organización en situaciones difíciles.\n▪Demuestra sentido de pertenencia en todas sus actuaciones.",null,null,null,null,null,null,null,null,null,null,null,"2016-08-09",null,null,null,null,null,null,214,null,null,null,23.3,"NO SATISFACTORIO",null,"NIVEL","COMPETENCIA","DEFINICIÒN DE LA COMPETENCIA","CONDUCTAS ASOCIADAS"]
["PROFESIONAL","Aprendizaje Continuo","PROFESIONALAprendizaje Continuo","Adquirir y desarrollar permanentemente conocimientos, destrezas y habilidades, con el fin de mantener altos estándares de eficacia organizacional.","▪Aprende de la experiencia de otros y de la propia.\n▪Se adapta y aplica nuevas tecnologías que se implanten en la organización.\n▪Aplica los conocimientos adquiridos a los desafíos que se presentan en el desarrollo del trabajo.\n▪Investiga, indaga y profundiza en los temas de su entorno área de desempeño.\n▪Reconoce las propias limitaciones y las necesidades de mejorar su preparación.\n▪Asimila nueva información y la aplica correctamente.",null,null,null,null,null,null,null,null,null,null,null,"2016-08-14",null,null,null,null,null,null,219,null,null,null,23.8,"NO SATISFACTORIO",null,"ASESOR","Orientación a resultados ","Realizar las funciones y cumplir los compromisos organizacionales con eficacia y calidad. ","▪ Cumple con oportunidad en función de estándares, objetivos y metas establecidas por la entidad, las funciones que le son asignadas.\n▪ Asume la responsabilidad por sus resultados.\n▪ Compromete recursos y tiempos para mejorar la productividad tomando las medidas necesarias para minimizar los riesgos.\n▪ Realiza todas las acciones necesarias para alcanzar los objetivos propuestos enfrentando los obstáculos que se presentan."]
["PROFESIONAL","Experticia profesional","PROFESIONALExperticia profesional","Aplicar el conocimiento profesional en la resolución de problemas y transferirlo a su entorno laboral.","▪Analiza de un modo sistemático y racional los aspectos del trabajo, basándose en la información relevante.\n▪Aplica reglas básicas y conceptos complejos aprendidos\n▪Identifica y reconoce con facilidad las causas de los problemas y sus soluciones.\n▪Clarifica datos o situaciones complejas.\n▪Planea, organiza y ejecuta múltiples tareas tendientes a alcanzar resultados institucionales.",null,null,null,null,null,null,null,null,null,null,null,"2016-08-15",null,null,null,null,null,null,220,null,null,null,23.9,"NO SATISFACTORIO",null,"ASESOR","Orientación al usuario y al ciudadano","Dirigir las decisiones y acciones a la satisfacción de las necesidades e intereses de los usuarios internos y externos, de conformidad con las responsabilidades públicas asignadas a la entidad.","▪ Atiende y valora las necesidades y peticiones de los usuarios y de ciudadanos en general.\n▪Considera las necesidades de los usuarios al diseñar proyectos o servicios.\n▪Da respuesta oportuna a las necesidades de los usuarios de conformidad con el servicio que ofrece la entidad.\n▪Establece diferentes canales de comunicación con el usuario para conocer sus necesidades y propuestas y responde a las mismas.\n▪Reconoce la interdependencia entre su trabajo y el de otros.\n"]
["PROFESIONAL","Trabajo en equipo y Colaboración","PROFESIONALTrabajo en equipo y Colaboración","Trabajar con otros de forma conjunta y de manera participativa, integrando esfuerzos para la consecución de metas institucionales comunes.","▪Coopera en distintas situaciones y comparte información.\n▪Aporta sugerencias, ideas y opiniones.\n▪Expresa expectativas positivas del equipo o de los miembros del mismo.\n▪Planifica las propias acciones teniendo en cuenta la repercusión de las mismas para la consecución de los objetivos grupales.\n▪Establece diálogo directo con los miembros del equipo que permita compartir información e ideas en condiciones de respeto y cordialidad.\n▪Respeta criterios dispares y distintas opiniones del equipo.",null,null,null,null,null,null,null,null,null,null,null,"2016-08-16",null,null,null,null,null,null,221,null,null,null,24,"NO SATISFACTORIO",null,"ASESOR","Compromiso con la Organización","Alinear el propio comportamiento a las necesidades, prioridades y metas organizacionales.","▪Promueve las metas de la organización y respeta sus normas.\n▪Antepone las necesidades de la organización a sus propias necesidades.\n▪Apoya a la organización en situaciones difíciles.\n▪Demuestra sentido de pertenencia en todas sus actuaciones."]
["PROFESIONAL","Creatividad e Innovación","PROFESIONALCreatividad e Innovación","Generar y desarrollar nuevas ideas, conceptos, métodos y soluciones.","▪Ofrece respuestas alternativas.\n▪Aprovecha las oportunidades y problemas para dar soluciones novedosas.\n▪Desarrolla nuevas formas de hacer y tecnologías.\n▪Busca nuevas alternativas de solución y se arriesga a romper esquemas tradicionales.\n▪Inicia acciones para superar los obstáculos y alcanzar metas específicas.",null,null,null,null,null,null,null,null,null,null,null,"2016-08-17",null,null,null,null,null,null,222,null,null,null,24.1,"NO SATISFACTORIO",null,"PROFESIONAL","Aprendizaje Continuo","Adquirir y desarrollar permanentemente conocimientos, destrezas y habilidades, con el fin de mantener altos estándares de eficacia organizacional.","▪Aprende de la experiencia de otros y de la propia.\n▪Se adapta y aplica nuevas tecnologías que se implanten en la organización.\n▪Aplica los conocimientos adquiridos a los desafíos que se presentan en el desarrollo del trabajo.\n▪Investiga, indaga y profundiza en los temas de su entorno área de desempeño.\n▪Reconoce las propias limitaciones y las necesidades de mejorar su preparación.\n▪Asimila nueva información y la aplica correctamente."]
["PROFESIONAL","Liderazgo de Grupos de Trabajo (personal a cargo)","PROFESIONALLiderazgo de Grupos de Trabajo (personal a cargo)","Asumir el rol de orientar y guía de un grupo o equipo de trabajo, utilizando la autoridad con arreglo a las normas y promoviendo la Efectividad en la consecución de objetivos y metas institucionales.","▪Establece los objetivos del grupo de forma clara y equilibrada.\n▪Asegura que los integrantes del grupo compartan planes, programas y proyectos institucionales.\n▪Orienta y coordina el trabajo del grupo para la identificación de planes y actividades a seguir.\n▪Facilita la colaboración con otras áreas y dependencias.\n▪Escucha y tiene en cuenta las opiniones de los integrantes del grupo.\n▪Gestiona los recursos necesarios para poder cumplir con las metas propuestas.\n▪Garantiza los recursos necesarios para poder cumplir con las metas propuestas.\n▪Garantiza que el grupo tenga la información necesaria.\n▪Explica las razones de las decisiones.",null,null,null,null,null,null,null,null,null,null,null,"2016-08-18",null,null,null,null,null,null,223,null,null,null,24.2,"NO SATISFACTORIO",null,"PROFESIONAL","Experticia profesional","Aplicar el conocimiento profesional en la resolución de problemas y transferirlo a su entorno laboral.","▪Analiza de un modo sistemático y racional los aspectos del trabajo, basándose en la información relevante.\n▪Aplica reglas básicas y conceptos complejos aprendidos\n▪Identifica y reconoce con facilidad las causas de los problemas y sus soluciones.\n▪Clarifica datos o situaciones complejas.\n▪Planea, organiza y ejecuta múltiples tareas tendientes a alcanzar resultados institucionales.\n"]
["PROFESIONAL","Toma de decisiones (personal a cargo)","PROFESIONALToma de decisiones (personal a cargo)","Elegir entre una o varias alternativas para solucionar un problema y tomar las acciones concretas y consecuentes con la elección realizada.","▪Elige alternativas de solución efectiva y suficiente para atender los asuntos encomendados.\n▪Decide y establece prioridades para el trabajo del grupo.\n▪Asume posiciones concretas para el manejo de temas o situaciones que demandan su atención.\n▪Efectúa cambios en las actividades o en la manera de desarrollar sus responsabilidades cuando detecta dificultades para su realización o mejores prácticas que pueden optimizar el desempeño.\n▪Asume las consecuencias de las decisiones adoptadas.\n▪Fomenta la participación en la toma de decisiones.",null,null,null,null,null,null,null,null,null,null,null,"2016-08-19",null,null,null,null,null,null,224,null,null,null,24.3,"NO SATISFACTORIO",null,"PROFESIONAL","Trabajo en equipo y Colaboración","Trabajar con otros de forma conjunta y de manera participativa, integrando esfuerzos para la consecución de metas institucionales comunes.","▪Coopera en distintas situaciones y comparte información.\n▪Aporta sugerencias, ideas y opiniones.\n▪Expresa expectativas positivas del equipo o de los miembros del mismo.\n▪Planifica las propias acciones teniendo en cuenta la repercusión de las mismas para la consecución de los objetivos grupales.\n▪Establece diálogo directo con los miembros del equipo que permita compartir información e ideas en condiciones de respeto y cordialidad.\n▪Respeta criterios dispares y distintas opiniones del equipo."]
["TECNICO","Orientación a resultados ","TECNICOOrientación a resultados ","Realizar las funciones y cumplir los compromisos organizacionales con eficacia y calidad. ","▪ Cumple con oportunidad en función de estándares, objetivos y metas establecidas por la entidad, las funciones que le son asignadas.\n▪ Asume la responsabilidad por sus resultados.\n▪ Compromete recursos y tiempos para mejorar la productividad tomando las medidas necesarias para minimizar los riesgos.\n▪ Realiza todas las acciones necesarias para alcanzar los objetivos propuestos enfrentando los obstáculos que se presentan.",null,null,"NIVEL","COMPETENCIA",null,null,null,null,null,null,null,"2016-08-07",null,null,null,null,null,null,212,null,null,null,23.1,"NO SATISFACTORIO"]
["TECNICO","Orientación al usuario y al ciudadano","TECNICOOrientación al usuario y al ciudadano","Dirigir las decisiones y acciones a la satisfacción de las necesidades e intereses de los usuarios internos y externos, de conformidad con las responsabilidades públicas asignadas a la entidad.","▪ Atiende y valora las necesidades y peticiones de los usuarios y de ciudadanos en general.\n▪Considera las necesidades de los usuarios al diseñar proyectos o servicios.\n▪Da respuesta oportuna a las necesidades de los usuarios de conformidad con el servicio que ofrece la entidad.\n▪Establece diferentes canales de comunicación con el usuario para conocer sus necesidades y propuestas y responde a las mismas.\n▪Reconoce la interdependencia entre su trabajo y el de otros.",null,null,"ASESOR","Orientación a resultados ",null,null,null,null,null,null,null,"2016-08-08",null,null,null,null,null,null,213,null,null,null,23.2,"NO SATISFACTORIO"]
["TECNICO","Compromiso con la Organización","TECNICOCompromiso con la Organización","Alinear el propio comportamiento a las necesidades, prioridades y metas organizacionales.","▪Promueve las metas de la organización y respeta sus normas.\n▪Antepone las necesidades de la organización a sus propias necesidades.\n▪Apoya a la organización en situaciones difíciles.\n▪Demuestra sentido de pertenencia en todas sus actuaciones.",null,null,null,null,null,null,null,null,null,null,null,"2016-08-09",null,null,null,null,null,null,214,null,null,null,23.3,"NO SATISFACTORIO",null,"NIVEL","COMPETENCIA","DEFINICIÒN DE LA COMPETENCIA","CONDUCTAS ASOCIADAS"]
["TECNICO","Experticia Técnica","TECNICOExperticia Técnica","Entender y aplicar los conocimientos técnicos del área de desempeño y mantenerlos actualizados","▪Capta y asimila con facilidad conceptos e información.\n▪Aplica el conocimiento técnico a las actividades cotidianas.\n▪Analiza la información de acuerdo con las necesidades de la organización.\n▪Comprende los aspectos técnicos y los aplica al desarrollo de procesos y procedimientos en los que está involucrado.\n▪Resuelve problemas utilizando sus conocimientos técnicos de su especialidad y garantizando indicadores y estándares establecidos.",null,null,null,null,null,null,null,null,null,null,null,"2016-08-20",null,null,null,null,null,null,225,null,null,null,24.4,"NO SATISFACTORIO",null,"PROFESIONAL","Creatividad e Innovación","Generar y desarrollar nuevas ideas, conceptos, métodos y soluciones.","▪Ofrece respuestas alternativas.\n▪Aprovecha las oportunidades y problemas para dar soluciones novedosas.\n▪Desarrolla nuevas formas de hacer y tecnologías.\n▪Busca nuevas alternativas de solución y se arriesga a romper esquemas tradicionales.\n▪Inicia acciones para superar los obstáculos y alcanzar metas específicas."]
["TECNICO","Trabajo en equipo","TECNICOTrabajo en equipo","Trabajar con otros para conseguir metas comunes","▪Identifica claramente los objetivos del grupo y orienta su trabajo a la consecución de los mismos.\n▪Colabora con otros para la realización de actividades y metas grupales.",null,null,null,null,null,null,null,null,null,null,null,"2016-08-21",null,null,null,null,null,null,226,null,null,null,24.5,"NO SATISFACTORIO",null,"PROFESIONAL","Orientación a resultados ","Realizar las funciones y cumplir los compromisos organizacionales con eficacia y calidad. ","▪ Cumple con oportunidad en función de estándares, objetivos y metas establecidas por la entidad, las funciones que le son asignadas.\n▪ Asume la responsabilidad por sus resultados.\n▪ Compromete recursos y tiempos para mejorar la productividad tomando las medidas necesarias para minimizar los riesgos.\n▪ Realiza todas las acciones necesarias para alcanzar los objetivos propuestos enfrentando los obstáculos que se presentan."]
["TECNICO","Creatividad e innovación","TECNICOCreatividad e innovación","Presentar ideas y métodos novedosos y concretarlos en acciones","▪Propone y encuentra formas nuevas y eficaces de hacer las cosas.\n▪Es recursivo.\n▪Es práctico.\n▪Busca nuevas alternativas de solución.\n▪Revisa permanentemente los procesos y procedimientos para optimizar los resultados.",null,null,null,null,null,null,null,null,null,null,null,"2016-08-22",null,null,null,null,null,null,227,null,null,null,24.599999999999898,"NO SATISFACTORIO",null,"PROFESIONAL","Orientación al usuario y al ciudadano","Dirigir las decisiones y acciones a la satisfacción de las necesidades e intereses de los usuarios internos y externos, de conformidad con las responsabilidades públicas asignadas a la entidad.","▪ Atiende y valora las necesidades y peticiones de los usuarios y de ciudadanos en general.\n▪Considera las necesidades de los usuarios al diseñar proyectos o servicios.\n▪Da respuesta oportuna a las necesidades de los usuarios de conformidad con el servicio que ofrece la entidad.\n▪Establece diferentes canales de comunicación con el usuario para conocer sus necesidades y propuestas y responde a las mismas.\n▪Reconoce la interdependencia entre su trabajo y el de otros.\n"]
["ASISTENCIAL","Orientación a resultados ","ASISTENCIALOrientación a resultados ","Realizar las funciones y cumplir los compromisos organizacionales con eficacia y calidad. ","▪ Cumple con oportunidad en función de estándares, objetivos y metas establecidas por la entidad, las funciones que le son asignadas.\n▪ Asume la responsabilidad por sus resultados.\n▪ Compromete recursos y tiempos para mejorar la productividad tomando las medidas necesarias para minimizar los riesgos.\n▪ Realiza todas las acciones necesarias para alcanzar los objetivos propuestos enfrentando los obstáculos que se presentan.",null,null,"NIVEL","COMPETENCIA",null,null,null,null,null,null,null,"2016-08-07",null,null,null,null,null,null,212,null,null,null,23.1,"NO SATISFACTORIO"]
["ASISTENCIAL","Orientación al usuario y al ciudadano","ASISTENCIALOrientación al usuario y al ciudadano","Dirigir las decisiones y acciones a la satisfacción de las necesidades e intereses de los usuarios internos y externos, de conformidad con las responsabilidades públicas asignadas a la entidad.","▪ Atiende y valora las necesidades y peticiones de los usuarios y de ciudadanos en general.\n▪Considera las necesidades de los usuarios al diseñar proyectos o servicios.\n▪Da respuesta oportuna a las necesidades de los usuarios de conformidad con el servicio que ofrece la entidad.\n▪Establece diferentes canales de comunicación con el usuario para conocer sus necesidades y propuestas y responde a las mismas.\n▪Reconoce la interdependencia entre su trabajo y el de otros.",null,null,"ASESOR",null,null,null,null,null,null,null,null,"2016-08-08",null,null,null,null,null,null,213,null,null,null,23.2,"NO SATISFACTORIO"]
["ASISTENCIAL","Compromiso con la Organización","ASISTENCIALCompromiso con la Organización","Alinear el propio comportamiento a las necesidades, prioridades y metas organizacionales.","▪Promueve las metas de la organización y respeta sus normas.\n▪Antepone las necesidades de la organización a sus propias necesidades.\n▪Apoya a la organización en situaciones difíciles.\n▪Demuestra sentido de pertenencia en todas sus actuaciones.",null,null,null,null,null,null,null,null,null,null,null,"2016-08-09",null,null,null,null,null,null,214,null,null,null,23.3,"NO SATISFACTORIO",null,"NIVEL","COMPETENCIA","DEFINICIÒN DE LA COMPETENCIA","CONDUCTAS ASOCIADAS"]
["ASISTENCIAL","Manejo de la información","ASISTENCIALManejo de la información","Manejar con respeto las informaciones personales e institucionales de que dispone.","▪Evade temas que indagan sobre información confidencial.\n▪Recoge sólo información imprescindible para el desarrollo de la tarea.\n▪Organiza y guarda de forma adecuada la información a su cuidado, teniendo en cuenta las normas legales y de la organización.\n▪No hace pública información laboral o de las personas que pueda afectar la organización o las personas.",null,null,null,null,null,null,null,null,null,null,null,"2016-08-23",null,null,null,null,null,null,228,null,null,"DIEZ",24.6999999999999,"NO SATISFACTORIO",null,"PROFESIONAL","Compromiso con la Organización","Alinear el propio comportamiento a las necesidades, prioridades y metas organizacionales.","▪Promueve las metas de la organización y respeta sus normas.\n▪Antepone las necesidades de la organización a sus propias necesidades.\n▪Apoya a la organización en situaciones difíciles.\n▪Demuestra sentido de pertenencia en todas sus actuaciones."]
["ASISTENCIAL","Adaptación al cambio","ASISTENCIALAdaptación al cambio","Enfrentarse con flexibilidad y versatilidad a situaciones nuevas para aceptar los cambios positiva y constructivamente.","▪Acepta y se adapta fácilmente los cambios.\n▪Responde al cambio con flexibilidad.\n▪Promueve el cambio.",null,null,null,null,null,null,null,null,null,null,null,"2016-08-24",null,null,null,null,null,null,229,null,null,null,24.799999999999901,"NO SATISFACTORIO",null,"PROFESIONAL CON PERSONAL A CARGO","Aprendizaje Continuo","Adquirir y desarrollar permanentemente conocimientos, destrezas y habilidades, con el fin de mantener altos estándares de eficacia organizacional.","▪Aprende de la experiencia de otros y de la propia.\n▪Se adapta y aplica nuevas tecnologías que se implanten en la organización.\n▪Aplica los conocimientos adquiridos a los desafíos que se presentan en el desarrollo del trabajo.\n▪Investiga, indaga y profundiza en los temas de su entorno área de desempeño.\n▪Reconoce las propias limitaciones y las necesidades de mejorar su preparación.\n▪Asimila nueva información y la aplica correctamente."]
["ASISTENCIAL","Disciplina","ASISTENCIALDisciplina","Adaptarse a las políticas institucionales y buscar información de los cambios en la autoridad competente.","▪Acepta instrucciones aunque se difiera de ellas.\n▪Realiza los cometidos y tareas del puesto de trabajo.\n▪Acepta la supervisión constante.\n▪Realiza funciones orientadas a apoyar la acción de otros miembros de la organización.",null,null,null,null,null,null,null,null,null,null,null,"2016-08-25",null,null,null,null,null,null,230,null,null,null,24.899999999999899,"NO SATISFACTORIO",null,"PROFESIONAL CON PERSONAL A CARGO","Experticia profesional","Aplicar el conocimiento profesional en la resolución de problemas y transferirlo a su entorno laboral.","▪Analiza de un modo sistemático y racional los aspectos del trabajo, basándose en la información relevante.\n▪Aplica reglas básicas y conceptos complejos aprendidos\n▪Identifica y reconoce con facilidad las causas de los problemas y sus soluciones.\n▪Clarifica datos o situaciones complejas.\n▪Planea, organiza y ejecuta múltiples tareas tendientes a alcanzar resultados institucionales.\n"]
["ASISTENCIAL","Relaciones Interpersonales","ASISTENCIALRelaciones Interpersonales","Establecer y mantener relaciones de trabajo amistosas y positivas, basadas en la comunicación abierta y fluida y en el respeto por los demás.","▪Escucha con interés a las personas y capta las preocupaciones, intereses y necesidades de los demás.\n▪Transmite eficazmente las ideas, sentimientos e información impidiendo con ello malos entendidos o situaciones confusas que puedan generar conflictos.",null,null,null,null,null,null,null,null,null,null,null,"2016-08-26",null,null,null,null,null,null,231,null,null,null,24.999999999999901,"NO SATISFACTORIO",null,"PROFESIONAL CON PERSONAL A CARGO","Trabajo en equipo y Colaboración","Trabajar con otros de forma conjunta y de manera participativa, integrando esfuerzos para la consecución de metas institucionales comunes.","▪Coopera en distintas situaciones y comparte información.\n▪Aporta sugerencias, ideas y opiniones.\n▪Expresa expectativas positivas del equipo o de los miembros del mismo.\n▪Planifica las propias acciones teniendo en cuenta la repercusión de las mismas para la consecución de los objetivos grupales.\n▪Establece diálogo directo con los miembros del equipo que permita compartir información e ideas en condiciones de respeto y cordialidad.\n▪Respeta criterios dispares y distintas opiniones del equipo."]
["ASISTENCIAL","Colaboración","ASISTENCIALColaboración","Cooperar con los demás con el fin de alcanzar los objetivos institucionales","▪Ayuda al logro de los objetivos articulando sus actuaciones con los demás.\n▪Cumple los compromisos que adquiere.\n▪Facilita la labor de sus superiores y compañeros de trabajo.",null,null,null,null,null,null,null,null,null,null,null,"2016-08-27",null,null,null,null,null,null,232,null,null,null,25.099999999999898,"NO SATISFACTORIO",null,"PROFESIONAL CON PERSONAL A CARGO","Creatividad e Innovación","Generar y desarrollar nuevas ideas, conceptos, métodos y soluciones.","▪Ofrece respuestas alternativas.\n▪Aprovecha las oportunidades y problemas para dar soluciones novedosas.\n▪Desarrolla nuevas formas de hacer y tecnologías.\n▪Busca nuevas alternativas de solución y se arriesga a romper esquemas tradicionales.\n▪Inicia acciones para superar los obstáculos y alcanzar metas específicas."]
[null,null,null,null,null,null,null,null,null,null,null,null,null,null,null,"2016-08-28",null,null,null,null,null,null,233,null,null,null,25.1999999999999,"NO SATISFACTORIO",null,"PROFESIONAL CON PERSONAL A CARGO","Orientación a resultados ","Realizar las funciones y cumplir los compromisos organizacionales con eficacia y calidad. ","▪ Cumple con oportunidad en función de estándares, objetivos y metas establecidas por la entidad, las funciones que le son asignadas.\n▪ Asume la responsabilidad por sus resultados.\n▪ Compromete recursos y tiempos para mejorar la productividad tomando las medidas necesarias para minimizar los riesgos.\n▪ Realiza todas las acciones necesarias para alcanzar los objetivos propuestos enfrentando los obstáculos que se presentan."]
[null,null,null,null,null,null,null,null,null,null,null,null,null,null,null,"2016-08-29",null,null,null,null,null,null,234,null,null,null,25.299999999999901,"NO SATISFACTORIO",null,"PROFESIONAL CON PERSONAL A CARGO","Orientación al usuario y al ciudadano","Dirigir las decisiones y acciones a la satisfacción de las necesidades e intereses de los usuarios internos y externos, de conformidad con las responsabilidades públicas asignadas a la entidad.","▪ Atiende y valora las necesidades y peticiones de los usuarios y de ciudadanos en general.\n▪Considera las necesidades de los usuarios al diseñar proyectos o servicios.\n▪Da respuesta oportuna a las necesidades de los usuarios de conformidad con el servicio que ofrece la entidad.\n▪Establece diferentes canales de comunicación con el usuario para conocer sus necesidades y propuestas y responde a las mismas.\n▪Reconoce la interdependencia entre su trabajo y el de otros.\n"]
["NIVELES DE PROFUNDIZACION DE LA COMPETENCIAS","RESULTADOS CUANTITATIVOS",null,null,null,null,"RESULTADOS CUANTITATIVOS",null,null,null,null,null,null,null,null,"2016-08-30",null,null,null,null,null,null,235,null,null,null,25.399999999999899,"NO SATISFACTORIO",null,"PROFESIONAL CON PERSONAL A CARGO","Compromiso con la Organización","Alinear el propio comportamiento a las necesidades, prioridades y metas organizacionales.","▪Promueve las metas de la organización y respeta sus normas.\n▪Antepone las necesidades de la organización a sus propias necesidades.\n▪Apoya a la organización en situaciones difíciles.\n▪Demuestra sentido de pertenencia en todas sus actuaciones."]
["NO EVALUADO",0,null,null,null,null,null,null,null,null,null,null,null,null,null,"2016-08-31",null,null,null,null,null,null,236,null,null,null,25.499999999999901,"NO SATISFACTORIO",null,"PROFESIONAL CON PERSONAL A CARGO","Liderazgo de Grupos de Trabajo","Asumir el rol de orientar y guía de un grupo o equipo de trabajo, utilizando la autoridad con arreglo a las normas y promoviendo la Efectividad en la consecución de objetivos y metas institucionales.","▪Establece los objetivos del grupo de forma clara y equilibrada.\n▪Asegura que los integrantes del grupo compartan planes, programas y proyectos institucionales.\n▪Orienta y coordina el trabajo del grupo para la identificación de planes y actividades a seguir.\n▪Facilita la colaboración con otras áreas y dependencias.\n▪Escucha y tiene en cuenta las opiniones de los integrantes del grupo.\n▪Gestiona los recursos necesarios para poder cumplir con las metas propuestas.\n▪Garantiza los recursos necesarios para poder cumplir con las metas propuestas.\n▪Garantiza que el grupo tenga la información necesaria.\n▪Explica las razones de las decisiones."]
["BAJO",4,null,null,null,null,4,null,null,null,null,null,null,null,null,"2016-09-01",null,null,null,null,null,null,237,null,null,null,25.599999999999898,"NO SATISFACTORIO",null,"PROFESIONAL CON PERSONAL A CARGO","Toma de decisiones","Elegir entre una o varias alternativas para solucionar un problema y tomar las acciones concretas y consecuentes con la elección realizada.","▪Elige alternativas de solución efectiva y suficiente para atender los asuntos encomendados.\n▪Decide y establece prioridades para el trabajo del grupo.\n▪Asume posiciones concretas para el manejo de temas o situaciones que demandan su atención.\n▪Efectúa cambios en las actividades o en la manera de desarrollar sus responsabilidades cuando detecta dificultades para su realización o mejores prácticas que pueden optimizar el desempeño.\n▪Asume las consecuencias de las decisiones adoptadas.\n▪Fomenta la participación en la toma de decisiones."]
["ACEPTABLE",6,5,null,null,null,6,null,null,null,null,null,null,null,null,"2016-09-02",null,null,null,null,null,null,238,null,null,null,25.6999999999999,"NO SATISFACTORIO",null,"PROFESIONAL CON PERSONAL A CARGO","Orientación a resultados ","Realizar las funciones y cumplir los compromisos organizacionales con eficacia y calidad. ","▪ Cumple con oportunidad en función de estándares, objetivos y metas establecidas por la entidad, las funciones que le son asignadas.\n▪ Asume la responsabilidad por sus resultados.\n▪ Compromete recursos y tiempos para mejorar la productividad tomando las medidas necesarias para minimizar los riesgos.\n▪ Realiza todas las acciones necesarias para alcanzar los objetivos propuestos enfrentando los obstáculos que se presentan."]
["ALTO",8,null,null,null,null,8,null,null,null,null,null,null,null,null,"2016-09-03",null,null,null,null,null,null,239,null,null,null,25.799999999999901,"NO SATISFACTORIO",null,"PROFESIONAL CON PERSONAL A CARGO","Orientación al usuario y al ciudadano","Dirigir las decisiones y acciones a la satisfacción de las necesidades e intereses de los usuarios internos y externos, de conformidad con las responsabilidades públicas asignadas a la entidad.","▪ Atiende y valora las necesidades y peticiones de los usuarios y de ciudadanos en general.\n▪Considera las necesidades de los usuarios al diseñar proyectos o servicios.\n▪Da respuesta oportuna a las necesidades de los usuarios de conformidad con el servicio que ofrece la entidad.\n▪Establece diferentes canales de comunicación con el usuario para conocer sus necesidades y propuestas y responde a las mismas.\n▪Reconoce la interdependencia entre su trabajo y el de otros.\n"]
["MUY ALTO",10,null,null,null,null,10,null,null,null,null,null,null,null,null,"2016-09-04",null,null,null,null,null,null,240,null,null,null,25.899999999999899,"NO SATISFACTORIO",null,"PROFESIONAL CON PERSONAL A CARGO","Compromiso con la Organización","Alinear el propio comportamiento a las necesidades, prioridades y metas organizacionales.","▪Promueve las metas de la organización y respeta sus normas.\n▪Antepone las necesidades de la organización a sus propias necesidades.\n▪Apoya a la organización en situaciones difíciles.\n▪Demuestra sentido de pertenencia en todas sus actuaciones."]
[null,null,null,null,null,null,null,null,null,null,null,null,null,null,null,"2016-09-05",null,null,null,null,null,null,241,null,null,null,25.999999999999901,"NO SATISFACTORIO",null,"TÈCNICO","Experticia Técnica","Entender y aplicar los conocimientos técnicos del área de desempeño y mantenerlos actualizados","▪Capta y asimila con facilidad conceptos e información.\n▪Aplica el conocimiento técnico a las actividades cotidianas.\n▪Analiza la información de acuerdo con las necesidades de la organización.\n▪Comprende los aspectos técnicos y los aplica al desarrollo de procesos y procedimientos en los que está involucrado.\n▪Resuelve problemas utilizando sus conocimientos técnicos de su especialidad y garantizando indicadores y estándares establecidos."]
[null,null,null,null,null,null,null,null,null,null,null,null,null,null,null,"2016-09-06",null,null,null,null,null,null,242,null,null,null,26.099999999999898,"NO SATISFACTORIO",null,"TÈCNICO","Trabajo en equipo","Trabajar con otros para conseguir metas comunes","▪Identifica claramente los objetivos del grupo y orienta su trabajo a la consecución de los mismos.\n▪Colabora con otros para la realización de actividades y metas grupales."]
[1,"1. Cambios en los planes, programas o proyectos que sirvieron de base para la concertación.",null,null,null,null,null,null,null,null,null,null,null,null,null,"2016-09-07",null,null,null,null,null,null,243,null,null,null,26.1999999999999,"NO SATISFACTORIO",null,"TÈCNICO","Creatividad e innovación","Presentar ideas y métodos novedosos y concretarlos en acciones","▪Propone y encuentra formas nuevas y eficaces de hacer las cosas.\n▪Es recursivo.\n▪Es práctico.\n▪Busca nuevas alternativas de solución.\n▪Revisa permanentemente los procesos y procedimientos para optimizar los resultados."]
[2,"2. Separación del cargo superior a treinta (30) días calendario que afecte el cumplimiento de los compromisos. ",null,null,null,null,null,null,null,null,null,null,null,null,null,"2016-09-08",null,null,null,null,null,null,244,null,null,null,26.299999999999901,"NO SATISFACTORIO",null,"TÈCNICO","Orientación a resultados ","Realizar las funciones y cumplir los compromisos organizacionales con eficacia y calidad. ","▪ Cumple con oportunidad en función de estándares, objetivos y metas establecidas por la entidad, las funciones que le son asignadas.\n▪ Asume la responsabilidad por sus resultados.\n▪ Compromete recursos y tiempos para mejorar la productividad tomando las medidas necesarias para minimizar los riesgos.\n▪ Realiza todas las acciones necesarias para alcanzar los objetivos propuestos enfrentando los obstáculos que se presentan."]
[3,"3. Traslado o encargo del empleado.",null,null,null,null,null,null,null,null,null,null,null,null,null,"2016-09-09",null,null,null,null,null,null,245,null,null,null,26.399999999999899,"NO SATISFACTORIO",null,"TÈCNICO","Orientación al usuario y al ciudadano","Dirigir las decisiones y acciones a la satisfacción de las necesidades e intereses de los usuarios internos y externos, de conformidad con las responsabilidades públicas asignadas a la entidad.","▪ Atiende y valora las necesidades y peticiones de los usuarios y de ciudadanos en general.\n▪Considera las necesidades de los usuarios al diseñar proyectos o servicios.\n▪Da respuesta oportuna a las necesidades de los usuarios de conformidad con el servicio que ofrece la entidad.\n▪Establece diferentes canales de comunicación con el usuario para conocer sus necesidades y propuestas y responde a las mismas.\n▪Reconoce la interdependencia entre su trabajo y el de otros.\n"]
[4,null,null,null,null,null,null,null,null,null,null,null,null,null,null,"2016-09-10",null,null,null,null,null,null,246,null,null,null,26.499999999999901,"NO SATISFACTORIO",null,"TÈCNICO","Compromiso con la Organización","Alinear el propio comportamiento a las necesidades, prioridades y metas organizacionales.","▪Promueve las metas de la organización y respeta sus normas.\n▪Antepone las necesidades de la organización a sus propias necesidades.\n▪Apoya a la organización en situaciones difíciles.\n▪Demuestra sentido de pertenencia en todas sus actuaciones."]
[5,null,null,null,null,null,null,null,null,null,null,null,null,null,null,"2016-09-11",null,null,null,null,null,null,247,null,null,null,26.599999999999898,"NO SATISFACTORIO",null,"ASISTENCIAL","Manejo de la información","Manejar con respeto las informaciones personales e institucionales de que dispone.","▪Evade temas que indagan sobre información confidencial.\n▪Recoge sólo información imprescindible para el desarrollo de la tarea.\n▪Organiza y guarda de forma adecuada la información a su cuidado, teniendo en cuenta las normas legales y de la organización.\n▪No hace pública información laboral o de las personas que pueda afectar la organización o las personas.\n"]
[6,null,null,null,null,null,null,null,null,null,null,null,null,null,null,"2016-09-12",null,null,null,null,null,null,248,null,null,null,26.6999999999999,"NO SATISFACTORIO",null,"ASISTENCIAL","Adaptación al cambio","Enfrentarse con flexibilidad y versatilidad a situaciones nuevas para aceptar los cambios positiva y constructivamente.","▪Acepta y se adapta fácilmente los cambios.\n▪Responde al cambio con flexibilidad.\n▪Promueve el cambio."]
[7,null,null,null,null,null,null,null,null,null,null,null,null,null,null,"2016-09-13",null,null,null,null,null,null,249,null,null,null,26.799999999999901,"NO SATISFACTORIO",null,"ASISTENCIAL","Disciplina","Adaptarse a las políticas institucionales y buscar información de los cambios en la autoridad competente.","▪Acepta instrucciones aunque se difiera de ellas.\n▪Realiza los cometidos y tareas del puesto de trabajo.\n▪Acepta la supervisión constante.\n▪Realiza funciones orientadas a apoyar la acción de otros miembros de la organización."]
[8,null,null,null,null,null,null,null,null,null,null,null,null,null,null,"2016-09-14",null,null,null,null,null,null,250,null,null,null,26.899999999999899,"NO SATISFACTORIO",null,"ASISTENCIAL","Relaciones Interpersonales","Establecer y mantener relaciones de trabajo amistosas y positivas, basadas en la comunicación abierta y fluida y en el respeto por los demás.","▪Escucha con interés a las personas y capta las preocupaciones, intereses y necesidades de los demás.\n▪Transmite eficazmente las ideas, sentimientos e información impidiendo con ello malos entendidos o situaciones confusas que puedan generar conflictos."]
[9,null,null,null,null,null,null,null,null,null,null,null,null,null,null,"2016-09-15",null,null,null,null,null,null,251,null,null,null,26.999999999999901,"NO SATISFACTORIO",null,"ASISTENCIAL","Colaboración","Cooperar con los demás con el fin de alcanzar los objetivos institucionales","▪Ayuda al logro de los objetivos articulando sus actuaciones con los demás.\n▪Cumple los compromisos que adquiere.\n▪Facilita la labor de sus superiores y compañeros de trabajo."]
[10,null,null,null,null,null,null,null,null,null,null,null,null,null,null,"2016-09-16",null,null,null,null,null,null,252,null,null,null,27.099999999999898,"NO SATISFACTORIO",null,"ASISTENCIAL","Orientación a resultados ","Realizar las funciones y cumplir los compromisos organizacionales con eficacia y calidad. ","▪ Cumple con oportunidad en función de estándares, objetivos y metas establecidas por la entidad, las funciones que le son asignadas.\n▪ Asume la responsabilidad por sus resultados.\n▪ Compromete recursos y tiempos para mejorar la productividad tomando las medidas necesarias para minimizar los riesgos.\n▪ Realiza todas las acciones necesarias para alcanzar los objetivos propuestos enfrentando los obstáculos que se presentan."]
[11,null,null,null,null,null,null,null,null,null,null,null,null,null,null,"2016-09-17",null,null,null,null,null,null,253,null,null,null,27.1999999999999,"NO SATISFACTORIO",null,"ASISTENCIAL","Orientación al usuario y al ciudadano","Dirigir las decisiones y acciones a la satisfacción de las necesidades e intereses de los usuarios internos y externos, de conformidad con las responsabilidades públicas asignadas a la entidad.","▪ Atiende y valora las necesidades y peticiones de los usuarios y de ciudadanos en general.\n▪Considera las necesidades de los usuarios al diseñar proyectos o servicios.\n▪Da respuesta oportuna a las necesidades de los usuarios de conformidad con el servicio que ofrece la entidad.\n▪Establece diferentes canales de comunicación con el usuario para conocer sus necesidades y propuestas y responde a las mismas.\n▪Reconoce la interdependencia entre su trabajo y el de otros.\n"]
[12,null,null,null,null,null,null,null,null,null,null,null,null,null,null,"2016-09-18",null,null,null,null,null,null,254,null,null,null,27.299999999999901,"NO SATISFACTORIO",null,"ASISTENCIAL","Compromiso con la Organización","Alinear el propio comportamiento a las necesidades, prioridades y metas organizacionales.","▪Promueve las metas de la organización y respeta sus normas.\n▪Antepone las necesidades de la organización a sus propias necesidades.\n▪Apoya a la organización en situaciones difíciles.\n▪Demuestra sentido de pertenencia en todas sus actuaciones."]
[13,null,null,null,null,null,null,null,null,null,null,null,null,null,null,"2016-09-19",null,null,null,null,null,null,255,null,null,null,27.399999999999899,"NO SATISFACTORIO"]
[14,null,null,null,null,null,null,null,null,null,null,null,null,null,null,"2016-09-20",null,null,null,null,null,null,256,null,null,null,27.499999999999901,"NO SATISFACTORIO"]
[15,null,null,null,null,null,null,null,null,null,null,null,null,null,null,"2016-09-21",null,null,null,null,null,null,257,null,null,null,27.599999999999898,"NO SATISFACTORIO"]
[16,null,null,null,null,null,null,null,null,null,null,null,null,null,null,"2016-09-22",null,null,null,null,null,null,258,null,null,null,27.6999999999999,"NO SATISFACTORIO"]
[17,null,null,null,null,null,null,null,null,null,null,null,null,null,null,"2016-09-23",null,null,null,null,null,null,259,null,null,null,27.799999999999901,"NO SATISFACTORIO"]
[18,null,null,null,null,null,null,null,null,null,null,null,null,null,null,"2016-09-24",null,null,null,null,null,null,260,null,null,null,27.899999999999899,"NO SATISFACTORIO"]
[19,null,null,null,null,null,null,null,null,null,null,null,null,null,null,"2016-09-25",null,null,null,null,null,null,261,null,null,null,27.999999999999901,"NO SATISFACTORIO"]
[20,null,null,null,null,null,null,null,null,null,null,null,null,null,null,"2016-09-26",null,null,null,null,null,null,262,null,null,null,28.099999999999898,"NO SATISFACTORIO"]
[21,null,null,null,null,null,null,null,null,null,null,null,null,null,null,"2016-09-27",null,null,null,null,null,null,263,null,null,null,28.1999999999999,"NO SATISFACTORIO"]
[22,null,null,null,null,null,null,null,null,null,null,null,null,null,null,"2016-09-28",null,null,null,null,null,null,264,null,null,null,28.299999999999901,"NO SATISFACTORIO"]
[23,null,null,null,null,null,null,null,null,null,null,null,null,null,null,"2016-09-29",null,null,null,null,null,null,265,null,null,null,28.399999999999899,"NO SATISFACTORIO"]
[24,null,null,null,null,null,null,null,null,null,null,null,null,null,null,"2016-09-30",null,null,null,null,null,null,266,null,null,null,28.499999999999901,"NO SATISFACTORIO"]
[25,null,null,null,null,null,null,null,null,null,null,null,null,null,null,"2016-10-01",null,null,null,null,null,null,267,null,null,null,28.599999999999898,"NO SATISFACTORIO"]
[26,null,null,null,null,null,null,null,null,null,null,null,null,null,null,"2016-10-02",null,null,null,null,null,null,268,null,null,null,28.6999999999999,"NO SATISFACTORIO"]
[27,null,null,null,null,null,null,null,null,null,null,null,null,null,null,"2016-10-03",null,null,null,null,null,null,269,null,null,null,28.799999999999901,"NO SATISFACTORIO"]
[28,null,null,null,null,null,null,null,null,null,null,null,null,null,null,"2016-10-04",null,null,null,null,null,null,270,null,null,null,28.899999999999899,"NO SATISFACTORIO"]
[29,null,null,null,null,null,null,null,null,null,null,null,null,null,null,"2016-10-05",null,null,null,null,null,null,271,null,null,null,28.999999999999901,"NO SATISFACTORIO"]
[30,null,null,null,null,null,null,null,null,null,null,null,null,null,null,"2016-10-06",null,null,null,null,null,null,272,null,null,null,29.099999999999898,"NO SATISFACTORIO"]
[31,null,null,null,null,null,null,null,null,null,null,null,null,null,null,"2016-10-07",null,null,null,null,null,null,273,null,null,null,29.1999999999999,"NO SATISFACTORIO"]
[32,null,null,null,null,null,null,null,null,null,null,null,null,null,null,"2016-10-08",null,null,null,null,null,null,274,null,null,null,29.299999999999901,"NO SATISFACTORIO"]
[33,null,null,null,null,null,null,null,null,null,null,null,null,null,null,"2016-10-09",null,null,null,null,null,null,275,null,null,null,29.399999999999899,"NO SATISFACTORIO"]
[34,null,null,null,null,null,null,null,null,null,null,null,null,null,null,"2016-10-10",null,null,null,null,null,null,276,null,null,null,29.499999999999901,"NO SATISFACTORIO"]
[35,null,null,null,null,null,null,null,null,null,null,null,null,null,null,"2016-10-11",null,null,null,null,null,null,277,null,null,null,29.599999999999898,"NO SATISFACTORIO"]
[36,null,null,null,null,null,null,null,null,null,null,null,null,null,null,"2016-10-12",null,null,null,null,null,null,278,null,null,null,29.6999999999999,"NO SATISFACTORIO"]
[37,null,null,null,null,null,null,null,null,null,null,null,null,null,null,"2016-10-13",null,null,null,null,null,null,279,null,null,null,29.799999999999901,"NO SATISFACTORIO"]
[38,null,null,null,null,null,null,null,null,null,null,null,null,null,null,"2016-10-14",null,null,null,null,null,null,280,null,null,null,29.899999999999899,"NO SATISFACTORIO"]
[39,null,null,null,null,null,null,null,null,null,null,null,null,null,null,"2016-10-15",null,null,null,null,null,null,281,null,null,null,29.999999999999901,"NO SATISFACTORIO"]
[40,null,null,null,null,null,null,null,null,null,null,null,null,null,null,"2016-10-16",null,null,null,null,null,null,282,null,null,null,30.099999999999898,"NO SATISFACTORIO"]
[41,null,null,null,null,null,null,null,null,null,null,null,null,null,null,"2016-10-17",null,null,null,null,null,null,283,null,null,null,30.1999999999999,"NO SATISFACTORIO"]
[42,null,null,null,null,null,null,null,null,null,null,null,null,null,null,"2016-10-18",null,null,null,null,null,null,284,null,null,null,30.299999999999901,"NO SATISFACTORIO"]
[43,null,null,null,null,null,null,null,null,null,null,null,null,null,null,"2016-10-19",null,null,null,null,null,null,285,null,null,null,30.399999999999899,"NO SATISFACTORIO"]
[44,null,null,null,null,null,null,null,null,null,null,null,null,null,null,"2016-10-20",null,null,null,null,null,null,286,null,null,null,30.499999999999901,"NO SATISFACTORIO"]
[45,null,null,null,null,null,null,null,null,null,null,null,null,null,null,"2016-10-21",null,null,null,null,null,null,287,null,null,null,30.599999999999898,"NO SATISFACTORIO"]
[46,null,null,null,null,null,null,null,null,null,null,null,null,null,null,"2016-10-22",null,null,null,null,null,null,288,null,null,null,30.6999999999999,"NO SATISFACTORIO"]
[47,null,null,null,null,null,null,null,null,null,null,null,null,null,null,"2016-10-23",null,null,null,null,null,null,289,null,null,null,30.799999999999901,"NO SATISFACTORIO"]
[48,null,null,null,null,null,null,null,null,null,null,null,null,null,null,"2016-10-24",null,null,null,null,null,null,290,null,null,null,30.899999999999899,"NO SATISFACTORIO"]
[49,null,null,null,null,null,null,null,null,null,null,null,null,null,null,"2016-10-25",null,null,null,null,null,null,291,null,null,null,30.999999999999901,"NO SATISFACTORIO"]
[50,null,null,null,null,null,null,null,null,null,null,null,null,null,null,"2016-10-26",null,null,null,null,null,null,292,null,null,null,31.099999999999898,"NO SATISFACTORIO"]
[51,null,null,null,null,null,null,null,null,null,null,null,null,null,null,"2016-10-27",null,null,null,null,null,null,293,null,null,null,31.1999999999999,"NO SATISFACTORIO"]
[52,null,null,null,null,null,null,null,null,null,null,null,null,null,null,"2016-10-28",null,null,null,null,null,null,294,null,null,null,31.299999999999901,"NO SATISFACTORIO"]
[53,null,null,null,null,null,null,null,null,null,null,null,null,null,null,"2016-10-29",null,null,null,null,null,null,295,null,null,null,31.399999999999899,"NO SATISFACTORIO"]
[54,null,null,null,null,null,null,null,null,null,null,null,null,null,null,"2016-10-30",null,null,null,null,null,null,296,null,null,null,31.499999999999901,"NO SATISFACTORIO"]
[55,null,null,null,null,null,null,null,null,null,null,null,null,null,null,"2016-10-31",null,null,null,null,null,null,297,null,null,null,31.599999999999898,"NO SATISFACTORIO"]
[56,null,null,null,null,null,null,null,null,null,null,null,null,null,null,"2016-11-01",null,null,null,null,null,null,298,null,null,null,31.6999999999999,"NO SATISFACTORIO"]
[57,null,null,null,null,null,null,null,null,null,null,null,null,null,null,"2016-11-02",null,null,null,null,null,null,299,null,null,null,31.799999999999901,"NO SATISFACTORIO"]
[58,null,null,null,null,null,null,null,null,null,null,null,null,null,null,"2016-11-03",null,null,null,null,null,null,300,null,null,null,31.899999999999899,"NO SATISFACTORIO"]
[59,null,null,null,null,null,null,null,null,null,null,null,null,null,null,"2016-11-04",null,null,null,null,null,null,301,null,null,null,31.999999999999901,"NO SATISFACTORIO"]
[60,null,null,null,null,null,null,null,null,null,null,null,null,null,null,"2016-11-05",null,null,null,null,null,null,302,null,null,null,32.099999999999902,"NO SATISFACTORIO"]
[61,null,null,null,null,null,null,null,null,null,null,null,null,null,null,"2016-11-06",null,null,null,null,null,null,303,null,null,null,32.199999999999903,"NO SATISFACTORIO"]
[62,null,null,null,null,null,null,null,null,null,null,null,null,null,null,"2016-11-07",null,null,null,null,null,null,304,null,null,null,32.299999999999898,"NO SATISFACTORIO"]
[63,null,null,null,null,null,null,null,null,null,null,null,null,null,null,"2016-11-08",null,null,null,null,null,null,305,null,null,null,32.399999999999899,"NO SATISFACTORIO"]
[64,null,null,null,null,null,null,null,null,null,null,null,null,null,null,"2016-11-09",null,null,null,null,null,null,306,null,null,null,32.499999999999901,"NO SATISFACTORIO"]
[65,null,null,null,null,null,null,null,null,null,null,null,null,null,null,"2016-11-10",null,null,null,null,null,null,307,null,null,null,32.599999999999902,"NO SATISFACTORIO"]
[66,null,null,null,null,null,null,null,null,null,null,null,null,null,null,"2016-11-11",null,null,null,null,null,null,308,null,null,null,32.699999999999903,"NO SATISFACTORIO"]
[67,null,null,null,null,null,null,null,null,null,null,null,null,null,null,"2016-11-12",null,null,null,null,null,null,309,null,null,null,32.799999999999898,"NO SATISFACTORIO"]
[68,null,null,null,null,null,null,null,null,null,null,null,null,null,null,"2016-11-13",null,null,null,null,null,null,310,null,null,null,32.899999999999899,"NO SATISFACTORIO"]
[69,null,null,null,null,null,null,null,null,null,null,null,null,null,null,"2016-11-14",null,null,null,null,null,null,311,null,null,null,32.999999999999901,"NO SATISFACTORIO"]
[70,null,null,null,null,null,null,null,null,null,null,null,null,null,null,"2016-11-15",null,null,null,null,null,null,312,null,null,null,33.099999999999902,"NO SATISFACTORIO"]
[71,null,null,null,null,null,null,null,null,null,null,null,null,null,null,"2016-11-16",null,null,null,null,null,null,313,null,null,null,33.199999999999903,"NO SATISFACTORIO"]
[72,null,null,null,null,null,null,null,null,null,null,null,null,null,null,"2016-11-17",null,null,null,null,null,null,314,null,null,null,33.299999999999898,"NO SATISFACTORIO"]
[73,null,null,null,null,null,null,null,null,null,null,null,null,null,null,"2016-11-18",null,null,null,null,null,null,315,null,null,null,33.399999999999899,"NO SATISFACTORIO"]
[74,null,null,null,null,null,null,null,null,null,null,null,null,null,null,"2016-11-19",null,null,null,null,null,null,316,null,null,null,33.499999999999901,"NO SATISFACTORIO"]
[75,null,null,null,null,null,null,null,null,null,null,null,null,null,null,"2016-11-20",null,null,null,null,null,null,317,null,null,null,33.599999999999902,"NO SATISFACTORIO"]
[76,null,null,null,null,null,null,null,null,null,null,null,null,null,null,"2016-11-21",null,null,null,null,null,null,318,null,null,null,33.699999999999903,"NO SATISFACTORIO"]
[77,null,null,null,null,null,null,null,null,null,null,null,null,null,null,"2016-11-22",null,null,null,null,null,null,319,null,null,null,33.799999999999898,"NO SATISFACTORIO"]
[78,null,null,null,null,null,null,null,null,null,null,null,null,null,null,"2016-11-23",null,null,null,null,null,null,320,null,null,null,33.899999999999899,"NO SATISFACTORIO"]
[79,null,null,null,null,null,null,null,null,null,null,null,null,null,null,"2016-11-24",null,null,null,null,null,null,321,null,null,null,33.999999999999901,"NO SATISFACTORIO"]
[80,null,null,null,null,null,null,null,null,null,null,null,null,null,null,"2016-11-25",null,null,null,null,null,null,322,null,null,null,34.099999999999902,"NO SATISFACTORIO"]
[81,null,null,null,null,null,null,null,null,null,null,null,null,null,null,"2016-11-26",null,null,null,null,null,null,323,null,null,null,34.199999999999903,"NO SATISFACTORIO"]
[82,null,null,null,null,null,null,null,null,null,null,null,null,null,null,"2016-11-27",null,null,null,null,null,null,324,null,null,null,34.299999999999898,"NO SATISFACTORIO"]
[83,null,null,null,null,null,null,null,null,null,null,null,null,null,null,"2016-11-28",null,null,null,null,null,null,325,null,null,null,34.399999999999899,"NO SATISFACTORIO"]
[84,null,null,null,null,null,null,null,null,null,null,null,null,null,null,"2016-11-29",null,null,null,null,null,null,326,null,null,null,34.499999999999901,"NO SATISFACTORIO"]
[85,null,null,null,null,null,null,null,null,null,null,null,null,null,null,"2016-11-30",null,null,null,null,null,null,327,null,null,null,34.599999999999902,"NO SATISFACTORIO"]
[86,null,null,null,null,null,null,null,null,null,null,null,null,null,null,"2016-12-01",null,null,null,null,null,null,328,null,null,null,34.699999999999903,"NO SATISFACTORIO"]
[87,null,null,null,null,null,null,null,null,null,null,null,null,null,null,"2016-12-02",null,null,null,null,null,null,329,null,null,null,34.799999999999898,"NO SATISFACTORIO"]
[88,null,null,null,null,null,null,null,null,null,null,null,null,null,null,"2016-12-03",null,null,null,null,null,null,330,null,null,null,34.899999999999899,"NO SATISFACTORIO"]
[89,null,null,null,null,null,null,null,null,null,null,null,null,null,null,"2016-12-04",null,null,null,null,null,null,331,null,null,null,34.999999999999901,"NO SATISFACTORIO"]
[90,null,null,null,null,null,null,null,null,null,null,null,null,null,null,"2016-12-05",null,null,null,null,null,null,332,null,null,null,35.099999999999902,"NO SATISFACTORIO"]
[91,null,null,null,null,null,null,null,null,null,null,null,null,null,null,"2016-12-06",null,null,null,null,null,null,333,null,null,null,35.199999999999903,"NO SATISFACTORIO"]
[92,null,null,null,null,null,null,null,null,null,null,null,null,null,null,"2016-12-07",null,null,null,null,null,null,334,null,null,null,35.299999999999898,"NO SATISFACTORIO"]
[93,null,null,null,null,null,null,null,null,null,null,null,null,null,null,"2016-12-08",null,null,null,null,null,null,335,null,null,null,35.399999999999899,"NO SATISFACTORIO"]
[94,null,null,null,null,null,null,null,null,null,null,null,null,null,null,"2016-12-09",null,null,null,null,null,null,336,null,null,null,35.499999999999901,"NO SATISFACTORIO"]
[95,null,null,null,null,null,null,null,null,null,null,null,null,null,null,"2016-12-10",null,null,null,null,null,null,337,null,null,null,35.599999999999902,"NO SATISFACTORIO"]
[96,null,null,null,null,null,null,null,null,null,null,null,null,null,null,"2016-12-11",null,null,null,null,null,null,338,null,null,null,35.699999999999903,"NO SATISFACTORIO"]
[97,null,null,null,null,null,null,null,null,null,null,null,null,null,null,"2016-12-12",null,null,null,null,null,null,339,null,null,null,35.799999999999898,"NO SATISFACTORIO"]
[98,null,null,null,null,null,null,null,null,null,null,null,null,null,null,"2016-12-13",null,null,null,null,null,null,340,null,null,null,35.899999999999899,"NO SATISFACTORIO"]
[99,null,null,null,null,null,null,null,null,null,null,null,null,null,null,"2016-12-14",null,null,null,null,null,null,341,null,null,null,35.999999999999901,"NO SATISFACTORIO"]
[100,null,null,null,null,null,null,null,null,null,null,null,null,null,null,"2016-12-15",null,null,null,null,null,null,342,null,null,null,36.099999999999902,"NO SATISFACTORIO"]
[101,null,null,null,null,null,null,null,null,null,null,null,null,null,null,"2016-12-16",null,null,null,null,null,null,343,null,null,null,36.199999999999903,"NO SATISFACTORIO"]
[102,null,null,null,null,null,null,null,null,null,null,null,null,null,null,"2016-12-17",null,null,null,null,null,null,344,null,null,null,36.299999999999898,"NO SATISFACTORIO"]
[103,null,null,null,null,null,null,null,null,null,null,null,null,null,null,"2016-12-18",null,null,null,null,null,null,345,null,null,null,36.399999999999899,"NO SATISFACTORIO"]
[104,null,null,null,null,null,null,null,null,null,null,null,null,null,null,"2016-12-19",null,null,null,null,null,null,346,null,null,null,36.499999999999901,"NO SATISFACTORIO"]
[105,null,null,null,null,null,null,null,null,null,null,null,null,null,null,"2016-12-20",null,null,null,null,null,null,347,null,null,null,36.599999999999902,"NO SATISFACTORIO"]
[106,null,null,null,null,null,null,null,null,null,null,null,null,null,null,"2016-12-21",null,null,null,null,null,null,348,null,null,null,36.699999999999903,"NO SATISFACTORIO"]
[107,null,null,null,null,null,null,null,null,null,null,null,null,null,null,"2016-12-22",null,null,null,null,null,null,349,null,null,null,36.799999999999898,"NO SATISFACTORIO"]
[108,null,null,null,null,null,null,null,null,null,null,null,null,null,null,"2016-12-23",null,null,null,null,null,null,350,null,null,null,36.899999999999899,"NO SATISFACTORIO"]
[109,null,null,null,null,null,null,null,null,null,null,null,null,null,null,"2016-12-24",null,null,null,null,null,null,351,null,null,null,36.999999999999901,"NO SATISFACTORIO"]
[110,null,null,null,null,null,null,null,null,null,null,null,null,null,null,"2016-12-25",null,null,null,null,null,null,352,null,null,null,37.099999999999902,"NO SATISFACTORIO"]
[111,null,null,null,null,null,null,null,null,null,null,null,null,null,null,"2016-12-26",null,null,null,null,null,null,353,null,null,null,37.199999999999903,"NO SATISFACTORIO"]
[112,null,null,null,null,null,null,null,null,null,null,null,null,null,null,"2016-12-27",null,null,null,null,null,null,354,null,null,null,37.299999999999898,"NO SATISFACTORIO"]
[113,null,null,null,null,null,null,null,null,null,null,null,null,null,null,"2016-12-28",null,null,null,null,null,null,355,null,null,null,37.399999999999899,"NO SATISFACTORIO"]
[114,null,null,null,null,null,null,null,null,null,null,null,null,null,null,"2016-12-29",null,null,null,null,null,null,356,null,null,null,37.499999999999901,"NO SATISFACTORIO"]
[115,null,null,null,null,null,null,null,null,null,null,null,null,null,null,"2016-12-30",null,null,null,null,null,null,357,null,null,null,37.599999999999902,"NO SATISFACTORIO"]
[116,null,null,null,null,null,null,null,null,null,null,null,null,null,null,"2016-12-31",null,null,null,null,null,null,358,null,null,null,37.699999999999903,"NO SATISFACTORIO"]
[117,null,null,null,null,null,null,null,null,null,null,null,null,null,null,"2017-01-01",null,null,null,null,null,null,359,null,null,null,37.799999999999898,"NO SATISFACTORIO"]
[118,null,null,null,null,null,null,null,null,null,null,null,null,null,null,"2017-01-02",null,null,null,null,null,null,360,null,null,null,37.899999999999899,"NO SATISFACTORIO"]
[119,null,null,null,null,null,null,null,null,null,null,null,null,null,null,"2017-01-03",null,null,null,null,null,null,null,null,null,null,37.999999999999901,"NO SATISFACTORIO"]
[120,null,null,null,null,null,null,null,null,null,null,null,null,null,null,"2017-01-04",null,null,null,null,null,null,null,null,null,null,38.099999999999902,"NO SATISFACTORIO"]
[121,null,null,null,null,null,null,null,null,null,null,null,null,null,null,"2017-01-05",null,null,null,null,null,null,null,null,null,null,38.199999999999903,"NO SATISFACTORIO"]
[122,null,null,null,null,null,null,null,null,null,null,null,null,null,null,"2017-01-06",null,null,null,null,null,null,null,null,null,null,38.299999999999898,"NO SATISFACTORIO"]
[123,null,null,null,null,null,null,null,null,null,null,null,null,null,null,"2017-01-07",null,null,null,null,null,null,null,null,null,null,38.399999999999899,"NO SATISFACTORIO"]
[124,null,null,null,null,null,null,null,null,null,null,null,null,null,null,"2017-01-08",null,null,null,null,null,null,null,null,null,null,38.499999999999901,"NO SATISFACTORIO"]
[125,null,null,null,null,null,null,null,null,null,null,null,null,null,null,"2017-01-09",null,null,null,null,null,null,null,null,null,null,38.599999999999902,"NO SATISFACTORIO"]
[126,null,null,null,null,null,null,null,null,null,null,null,null,null,null,"2017-01-10",null,null,null,null,null,null,null,null,null,null,38.699999999999903,"NO SATISFACTORIO"]
[127,null,null,null,null,null,null,null,null,null,null,null,null,null,null,"2017-01-11",null,null,null,null,null,null,null,null,null,null,38.799999999999898,"NO SATISFACTORIO"]
[128,null,null,null,null,null,null,null,null,null,null,null,null,null,null,"2017-01-12",null,null,null,null,null,null,null,null,null,null,38.899999999999899,"NO SATISFACTORIO"]
[129,null,null,null,null,null,null,null,null,null,null,null,null,null,null,"2017-01-13",null,null,null,null,null,null,null,null,null,null,38.999999999999901,"NO SATISFACTORIO"]
[130,null,null,null,null,null,null,null,null,null,null,null,null,null,null,"2017-01-14",null,null,null,null,null,null,null,null,null,null,39.099999999999902,"NO SATISFACTORIO"]
[131,null,null,null,null,null,null,null,null,null,null,null,null,null,null,"2017-01-15",null,null,null,null,null,null,null,null,null,null,39.199999999999903,"NO SATISFACTORIO"]
[132,null,null,null,null,null,null,null,null,null,null,null,null,null,null,"2017-01-16",null,null,null,null,null,null,null,null,null,null,39.299999999999898,"NO SATISFACTORIO"]
[133,null,null,null,null,null,null,null,null,null,null,null,null,null,null,"2017-01-17",null,null,null,null,null,null,null,null,null,null,39.399999999999899,"NO SATISFACTORIO"]
[134,null,null,null,null,null,null,null,null,null,null,null,null,null,null,"2017-01-18",null,null,null,null,null,null,null,null,null,null,39.499999999999901,"NO SATISFACTORIO"]
[135,null,null,null,null,null,null,null,null,null,null,null,null,null,null,"2017-01-19",null,null,null,null,null,null,null,null,null,null,39.599999999999902,"NO SATISFACTORIO"]
[136,null,null,null,null,null,null,null,null,null,null,null,null,null,null,"2017-01-20",null,null,null,null,null,null,null,null,null,null,39.699999999999903,"NO SATISFACTORIO"]
[137,null,null,null,null,null,null,null,null,null,null,null,null,null,null,"2017-01-21",null,null,null,null,null,null,null,null,null,null,39.799999999999898,"NO SATISFACTORIO"]
[138,null,null,null,null,null,null,null,null,null,null,null,null,null,null,"2017-01-22",null,null,null,null,null,null,null,null,null,null,39.899999999999899,"NO SATISFACTORIO"]
[139,null,null,null,null,null,null,null,null,null,null,null,null,null,null,"2017-01-23",null,null,null,null,null,null,null,null,null,null,39.999999999999901,"NO SATISFACTORIO"]
[140,null,null,null,null,null,null,null,null,null,null,null,null,null,null,"2017-01-24",null,null,null,null,null,null,null,null,null,null,40.099999999999902,"NO SATISFACTORIO"]
[141,null,null,null,null,null,null,null,null,null,null,null,null,null,null,"2017-01-25",null,null,null,null,null,null,null,null,null,null,40.199999999999903,"NO SATISFACTORIO"]
[142,null,null,null,null,null,null,null,null,null,null,null,null,null,null,"2017-01-26",null,null,null,null,null,null,null,null,null,null,40.299999999999898,"NO SATISFACTORIO"]
[143,null,null,null,null,null,null,null,null,null,null,null,null,null,null,"2017-01-27",null,null,null,null,null,null,null,null,null,null,40.399999999999899,"NO SATISFACTORIO"]
[144,null,null,null,null,null,null,null,null,null,null,null,null,null,null,"2017-01-28",null,null,null,null,null,null,null,null,null,null,40.499999999999901,"NO SATISFACTORIO"]
[145,null,null,null,null,null,null,null,null,null,null,null,null,null,null,"2017-01-29",null,null,null,null,null,null,null,null,null,null,40.599999999999902,"NO SATISFACTORIO"]
[146,null,null,null,null,null,null,null,null,null,null,null,null,null,null,"2017-01-30",null,null,null,null,null,null,null,null,null,null,40.699999999999903,"NO SATISFACTORIO"]
[147,null,null,null,null,null,null,null,null,null,null,null,null,null,null,"2017-01-31",null,null,null,null,null,null,null,null,null,null,40.799999999999898,"NO SATISFACTORIO"]
[148,null,null,null,null,null,null,null,null,null,null,null,null,null,null,"2017-02-01",null,null,null,null,null,null,null,null,null,null,40.899999999999899,"NO SATISFACTORIO"]
[149,null,null,null,null,null,null,null,null,null,null,null,null,null,null,"2017-02-02",null,null,null,null,null,null,null,null,null,null,40.999999999999901,"NO SATISFACTORIO"]
[150,null,null,null,null,null,null,null,null,null,null,null,null,null,null,"2017-02-03",null,null,null,null,null,null,null,null,null,null,41.099999999999902,"NO SATISFACTORIO"]
[151,null,null,null,null,null,null,null,null,null,null,null,null,null,null,"2017-02-04",null,null,null,null,null,null,null,null,null,null,41.199999999999903,"NO SATISFACTORIO"]
[152,null,null,null,null,null,null,null,null,null,null,null,null,null,null,"2017-02-05",null,null,null,null,null,null,null,null,null,null,41.299999999999898,"NO SATISFACTORIO"]
[153,null,null,null,null,null,null,null,null,null,null,null,null,null,null,"2017-02-06",null,null,null,null,null,null,null,null,null,null,41.399999999999899,"NO SATISFACTORIO"]
[154,null,null,null,null,null,null,null,null,null,null,null,null,null,null,"2017-02-07",null,null,null,null,null,null,null,null,null,null,41.499999999999901,"NO SATISFACTORIO"]
[155,null,null,null,null,null,null,null,null,null,null,null,null,null,null,"2017-02-08",null,null,null,null,null,null,null,null,null,null,41.599999999999902,"NO SATISFACTORIO"]
[156,null,null,null,null,null,null,null,null,null,null,null,null,null,null,"2017-02-09",null,null,null,null,null,null,null,null,null,null,41.699999999999903,"NO SATISFACTORIO"]
[157,null,null,null,null,null,null,null,null,null,null,null,null,null,null,"2017-02-10",null,null,null,null,null,null,null,null,null,null,41.799999999999898,"NO SATISFACTORIO"]
[158,null,null,null,null,null,null,null,null,null,null,null,null,null,null,"2017-02-11",null,null,null,null,null,null,null,null,null,null,41.899999999999899,"NO SATISFACTORIO"]
[159,null,null,null,null,null,null,null,null,null,null,null,null,null,null,"2017-02-12",null,null,null,null,null,null,null,null,null,null,41.999999999999901,"NO SATISFACTORIO"]
[160,null,null,null,null,null,null,null,null,null,null,null,null,null,null,"2017-02-13",null,null,null,null,null,null,null,null,null,null,42.099999999999902,"NO SATISFACTORIO"]
[161,null,null,null,null,null,null,null,null,null,null,null,null,null,null,"2017-02-14",null,null,null,null,null,null,null,null,null,null,42.199999999999903,"NO SATISFACTORIO"]
[162,null,null,null,null,null,null,null,null,null,null,null,null,null,null,"2017-02-15",null,null,null,null,null,null,null,null,null,null,42.299999999999898,"NO SATISFACTORIO"]
[163,null,null,null,null,null,null,null,null,null,null,null,null,null,null,"2017-02-16",null,null,null,null,null,null,null,null,null,null,42.399999999999899,"NO SATISFACTORIO"]
[164,null,null,null,null,null,null,null,null,null,null,null,null,null,null,"2017-02-17",null,null,null,null,null,null,null,null,null,null,42.499999999999901,"NO SATISFACTORIO"]
[165,null,null,null,null,null,null,null,null,null,null,null,null,null,null,"2017-02-18",null,null,null,null,null,null,null,null,null,null,42.599999999999902,"NO SATISFACTORIO"]
[166,null,null,null,null,null,null,null,null,null,null,null,null,null,null,"2017-02-19",null,null,null,null,null,null,null,null,null,null,42.699999999999903,"NO SATISFACTORIO"]
[167,null,null,null,null,null,null,null,null,null,null,null,null,null,null,"2017-02-20",null,null,null,null,null,null,null,null,null,null,42.799999999999898,"NO SATISFACTORIO"]
[168,null,null,null,null,null,null,null,null,null,null,null,null,null,null,"2017-02-21",null,null,null,null,null,null,null,null,null,null,42.899999999999899,"NO SATISFACTORIO"]
[169,null,null,null,null,null,null,null,null,null,null,null,null,null,null,"2017-02-22",null,null,null,null,null,null,null,null,null,null,42.999999999999901,"NO SATISFACTORIO"]
[170,null,null,null,null,null,null,null,null,null,null,null,null,null,null,"2017-02-23",null,null,null,null,null,null,null,null,null,null,43.099999999999902,"NO SATISFACTORIO"]
[171,null,null,null,null,null,null,null,null,null,null,null,null,null,null,"2017-02-24",null,null,null,null,null,null,null,null,null,null,43.199999999999903,"NO SATISFACTORIO"]
[172,null,null,null,null,null,null,null,null,null,null,null,null,null,null,"2017-02-25",null,null,null,null,null,null,null,null,null,null,43.299999999999898,"NO SATISFACTORIO"]
[173,null,null,null,null,null,null,null,null,null,null,null,null,null,null,"2017-02-26",null,null,null,null,null,null,null,null,null,null,43.399999999999899,"NO SATISFACTORIO"]
[174,null,null,null,null,null,null,null,null,null,null,null,null,null,null,"2017-02-27",null,null,null,null,null,null,null,null,null,null,43.499999999999901,"NO SATISFACTORIO"]
[175,null,null,null,null,null,null,null,null,null,null,null,null,null,null,"2017-02-28",null,null,null,null,null,null,null,null,null,null,43.599999999999902,"NO SATISFACTORIO"]
[176,null,null,null,null,null,null,null,null,null,null,null,null,null,null,"2017-03-01",null,null,null,null,null,null,null,null,null,null,43.699999999999903,"NO SATISFACTORIO"]
[177,null,null,null,null,null,null,null,null,null,null,null,null,null,null,"2017-03-02",null,null,null,null,null,null,null,null,null,null,43.799999999999898,"NO SATISFACTORIO"]
[null,null,null,null,null,null,null,null,null,null,null,null,null,null,null,"2017-03-03",null,null,null,null,null,null,null,null,null,null,43.899999999999899,"NO SATISFACTORIO"]
["COMPROMISO LABORAL",null,null,null,null,null,null,null,null,null,null,null,null,null,null,"2017-03-04",null,null,null,null,null,null,null,null,null,null,43.999999999999901,"NO SATISFACTORIO"]
["COMPETENCIA COMPORTAMENTAL",null,null,null,null,null,null,null,null,null,null,null,null,null,null,"2017-03-05",null,null,null,null,null,null,null,null,null,null,44.099999999999902,"NO SATISFACTORIO"]
[null,null,null,null,null,null,null,null,null,null,null,null,null,null,null,"2017-03-06",null,null,null,null,null,null,null,null,null,null,44.199999999999903,"NO SATISFACTORIO"]
["SEGUIMIENTO",null,null,null,null,null,null,null,null,null,null,null,null,null,null,"2017-03-07",null,null,null,null,null,null,null,null,null,null,44.299999999999898,"NO SATISFACTORIO"]
["EXTRAORDINARIA",null,null,null,null,null,null,null,null,null,null,null,null,null,null,"2017-03-08",null,null,null,null,null,null,null,null,null,null,44.399999999999899,"NO SATISFACTORIO"]
["EVENTUAL",null,null,null,null,null,null,null,null,null,null,null,null,null,null,"2017-03-09",null,null,null,null,null,null,null,null,null,null,44.499999999999901,"NO SATISFACTORIO"]
["1. PARCIAL SEMESTRAL",null,null,null,null,null,null,null,null,null,null,null,null,null,null,"2017-03-10",null,null,null,null,null,null,null,null,null,null,44.599999999999902,"NO SATISFACTORIO"]
["EVA. INF. A 1 AÑO",null,null,null,null,null,null,null,null,null,null,null,null,null,null,"2017-03-11",null,null,null,null,null,null,null,null,null,null,44.699999999999903,"NO SATISFACTORIO"]
["2. PARCIAL SEMESTRAL",null,null,null,null,null,null,null,null,null,null,null,null,null,null,"2017-03-12",null,null,null,null,null,null,null,null,null,null,44.799999999999898,"NO SATISFACTORIO"]
["PERÍODO DE PRUEBA",null,null,null,null,null,null,null,null,null,null,null,null,null,null,"2017-03-13",null,null,null,null,null,null,null,null,null,null,44.899999999999899,"NO SATISFACTORIO"]
[null,null,null,null,null,null,null,null,null,null,null,null,null,null,null,"2017-03-14",null,null,null,null,null,null,null,null,null,null,44.999999999999901,"NO SATISFACTORIO"]
[null,null,null,null,null,null,null,null,null,null,null,null,null,null,null,"2017-03-15",null,null,null,null,null,null,null,null,null,null,45.099999999999902,"NO SATISFACTORIO"]
[null,null,null,null,null,null,null,null,null,null,null,null,null,null,null,"2017-03-16",null,null,null,null,null,null,null,null,null,null,45.199999999999903,"NO SATISFACTORIO"]
[null,null,null,null,null,null,null,null,null,null,null,null,null,null,null,"2017-03-17",null,null,null,null,null,null,null,null,null,null,45.299999999999898,"NO SATISFACTORIO"]
[null,null,null,null,null,null,null,null,null,null,null,null,null,null,null,"2017-03-18",null,null,null,null,null,null,null,null,null,null,45.399999999999899,"NO SATISFACTORIO"]
[null,null,null,null,null,null,null,null,null,null,null,null,null,null,null,"2017-03-19",null,null,null,null,null,null,null,null,null,null,45.499999999999901,"NO SATISFACTORIO"]
[null,null,null,null,null,null,null,null,null,null,null,null,null,null,null,"2017-03-20",null,null,null,null,null,null,null,null,null,null,45.599999999999902,"NO SATISFACTORIO"]
[null,null,null,null,null,null,null,null,null,null,null,null,null,null,null,"2017-03-21",null,null,null,null,null,null,null,null,null,null,45.699999999999903,"NO SATISFACTORIO"]
[null,null,null,null,null,null,null,null,null,null,null,null,null,null,null,"2017-03-22",null,null,null,null,null,null,null,null,null,null,45.799999999999898,"NO SATISFACTORIO"]
[null,null,null,null,null,null,null,null,null,null,null,null,null,null,null,"2017-03-23",null,null,null,null,null,null,null,null,null,null,45.899999999999899,"NO SATISFACTORIO"]
[null,null,null,null,null,null,null,null,null,null,null,null,null,null,null,"2017-03-24",null,null,null,null,null,null,null,null,null,null,45.999999999999901,"NO SATISFACTORIO"]
["NO EVALUADO",0,null,null,null,null,null,null,null,null,null,null,null,null,null,"2017-03-25",null,null,null,null,null,null,null,null,null,null,46.099999999999902,"NO SATISFACTORIO"]
["BAJO",6,4,null,null,null,null,null,null,null,null,null,null,null,null,"2017-03-26",null,null,null,null,null,null,null,null,null,null,46.199999999999903,"NO SATISFACTORIO"]
["ACEPTABLE",9,6,null,null,null,null,null,null,null,null,null,null,null,null,"2017-03-27",null,null,null,null,null,null,null,null,null,null,46.299999999999898,"NO SATISFACTORIO"]
["ALTO",12,8,null,null,null,null,null,null,null,null,null,null,null,null,"2017-03-28",null,null,null,null,null,null,null,null,null,null,46.399999999999899,"NO SATISFACTORIO"]
["MUY ALTO",15,10,null,null,null,null,null,null,null,null,null,null,null,null,"2017-03-29",null,null,null,null,null,null,null,null,null,null,46.499999999999901,"NO SATISFACTORIO"]
[null,null,null,null,null,null,null,null,null,null,null,null,null,null,null,"2017-03-30",null,null,null,null,null,null,null,null,null,null,46.599999999999902,"NO SATISFACTORIO"]
[null,null,null,null,null,null,null,null,null,null,null,null,null,null,null,"2017-03-31",null,null,null,null,null,null,null,null,null,null,46.699999999999903,"NO SATISFACTORIO"]
["Período anual u ordinario- Compromiso 1",{"$f":"#REF!","v":{"$error":"#REF!"}},null,null,null,null,null,null,null,null,null,null,null,null,null,"2017-04-01",null,null,null,null,null,null,null,null,null,null,46.799999999999898,"NO SATISFACTORIO"]
["Período anual u ordinario- Compromiso 2",{"$f":"#REF!","v":{"$error":"#REF!"}},null,null,null,null,null,null,null,null,null,null,null,null,null,"2017-04-02",null,null,null,null,null,null,null,null,null,null,46.899999999999899,"NO SATISFACTORIO"]
["Período anual u ordinario- Compromiso 3",{"$f":"#REF!","v":{"$error":"#REF!"}},null,null,null,null,null,null,null,null,null,null,null,null,null,"2017-04-03",null,null,null,null,null,null,null,null,null,null,46.999999999999901,"NO SATISFACTORIO"]
["Período anual u ordinario- Compromiso 4",{"$f":"#REF!","v":{"$error":"#REF!"}},null,null,null,null,null,null,null,null,null,null,null,null,null,"2017-04-04",null,null,null,null,null,null,null,null,null,null,47.099999999999902,"NO SATISFACTORIO"]
["Período anual u ordinario- Compromiso 5",{"$f":"#REF!","v":{"$error":"#REF!"}},null,null,null,null,null,null,null,null,null,null,null,null,null,"2017-04-05",null,null,null,null,null,null,null,null,null,null,47.199999999999903,"NO SATISFACTORIO"]
["Período anual u ordinario- Competencia 1",{"$f":"#REF!","v":{"$error":"#REF!"}},null,null,null,null,null,null,null,null,null,null,null,null,null,"2017-04-06",null,null,null,null,null,null,null,null,null,null,47.299999999999898,"NO SATISFACTORIO"]
["Período anual u ordinario- Competencia 2",{"$f":"#REF!","v":{"$error":"#REF!"}},null,null,null,null,null,null,null,null,null,null,null,null,null,"2017-04-08",null,null,null,null,null,null,null,null,null,null,47.399999999999899,"NO SATISFACTORIO"]
["Período anual u ordinario- Competencia 3",{"$f":"#REF!","v":{"$error":"#REF!"}},null,null,null,null,null,null,null,null,null,null,null,null,null,"2017-04-09",null,null,null,null,null,null,null,null,null,null,47.499999999999901,"NO SATISFACTORIO"]
["Período anual u ordinario- Competencia 4",{"$f":"#REF!","v":{"$error":"#REF!"}},null,null,null,null,null,null,null,null,null,null,null,null,null,"2017-04-10",null,null,null,null,null,null,null,null,null,null,47.599999999999902,"NO SATISFACTORIO"]
["Período de prueba- Compromiso 1",{"$f":"#REF!","v":{"$error":"#REF!"}},null,null,null,null,null,null,null,null,null,null,null,null,null,"2017-04-11",null,null,null,null,null,null,null,null,null,null,47.699999999999903,"NO SATISFACTORIO"]
["Período de prueba- Compromiso 2",{"$f":"#REF!","v":{"$error":"#REF!"}},null,null,null,null,null,null,null,null,null,null,null,null,null,"2017-04-12",null,null,null,null,null,null,null,null,null,null,47.799999999999898,"NO SATISFACTORIO"]
["Período de prueba- Compromiso 3",{"$f":"#REF!","v":{"$error":"#REF!"}},null,null,null,null,null,null,null,null,null,null,null,null,null,"2017-04-13",null,null,null,null,null,null,null,null,null,null,47.899999999999899,"NO SATISFACTORIO"]
["Período de prueba- Competencia 1",{"$f":"#REF!","v":{"$error":"#REF!"}},null,null,null,null,null,null,null,null,null,null,null,null,null,"2017-04-14",null,null,null,null,null,null,null,null,null,null,47.999999999999901,"NO SATISFACTORIO"]
["Período de prueba- Competencia 2",{"$f":"#REF!","v":{"$error":"#REF!"}},null,null,null,null,null,null,null,null,null,null,null,null,null,"2017-04-15",null,null,null,null,null,null,null,null,null,null,48.099999999999902,"NO SATISFACTORIO"]
["Período de prueba- Competencia 3",{"$f":"#REF!","v":{"$error":"#REF!"}},null,null,null,null,null,null,null,null,null,null,null,null,null,"2017-04-16",null,null,null,null,null,null,null,null,null,null,48.199999999999903,"NO SATISFACTORIO"]
["Período de prueba- Competencia 4",{"$f":"#REF!","v":{"$error":"#REF!"}},null,null,null,null,null,null,null,null,null,null,null,null,null,"2017-04-18",null,null,null,null,null,null,null,null,null,null,48.299999999999898,"NO SATISFACTORIO"]
[null,null,null,null,null,null,null,null,null,null,null,null,null,null,null,"2017-04-19",null,null,null,null,null,null,null,null,null,null,48.399999999999899,"NO SATISFACTORIO"]
[null,null,null,null,null,null,null,null,null,null,null,null,null,null,null,"2017-04-20",null,null,null,null,null,null,null,null,null,null,48.499999999999901,"NO SATISFACTORIO"]
["Período de prueba",null,null,null,null,null,null,null,null,null,null,null,null,null,null,"2017-04-21",null,null,null,null,null,null,null,null,null,null,48.599999999999902,"NO SATISFACTORIO"]
["Período anual u ordinario",null,null,null,null,null,null,null,null,null,null,null,null,null,null,"2017-04-22",null,null,null,null,null,null,null,null,null,null,48.699999999999903,"NO SATISFACTORIO"]
[null,null,null,null,null,null,null,null,null,null,null,null,null,null,null,"2017-04-23",null,null,null,null,null,null,null,null,null,null,48.799999999999898,"NO SATISFACTORIO"]
[null,null,null,null,null,null,null,null,null,null,null,null,null,null,null,"2017-04-24",null,null,null,null,null,null,null,null,null,null,48.899999999999899,"NO SATISFACTORIO"]
[null,null,null,null,null,null,null,null,null,null,null,null,null,null,null,"2017-04-25",null,null,null,null,null,null,null,null,null,null,48.999999999999901,"NO SATISFACTORIO"]
["EVALUACION EXTRAORDINARIA",null,null,null,null,null,null,null,null,null,null,null,null,null,null,"2017-04-26",null,null,null,null,null,null,null,null,null,null,49.099999999999902,"NO SATISFACTORIO"]
["SUMA EVALUACION PREVIA","SUMA EVALUACION ULTIMO PERIODO",null,null,null,null,null,null,null,null,null,null,null,null,null,"2017-04-27",null,null,null,null,null,null,null,null,null,null,49.199999999999903,"NO SATISFACTORIO"]
[{"$f":"IF(#REF!=\"\",0,VLOOKUP(#REF!,Hoja4!$A$461:$B$464,2,FALSE))","v":{"$error":"#REF!"}},{"$f":"IF(#REF!=\"\",0,VLOOKUP(#REF!,Hoja4!$A$461:$B$464,2,FALSE))","v":{"$error":"#REF!"}},null,null,null,null,null,null,null,null,null,null,null,null,null,"2017-04-28",null,null,null,null,null,null,null,null,null,null,49.299999999999898,"NO SATISFACTORIO"]
[{"$f":"IF(#REF!=\"\",0,VLOOKUP(#REF!,Hoja4!$A$461:$B$464,2,FALSE))","v":{"$error":"#REF!"}},{"$f":"IF(#REF!=\"\",0,VLOOKUP(#REF!,Hoja4!$A$461:$B$464,2,FALSE))","v":{"$error":"#REF!"}},null,null,null,null,null,null,null,null,null,null,null,null,null,"2017-04-29",null,null,null,null,null,null,null,null,null,null,49.399999999999899,"NO SATISFACTORIO"]
[{"$f":"IF(#REF!=\"\",0,VLOOKUP(#REF!,Hoja4!$A$461:$B$464,2,FALSE))","v":{"$error":"#REF!"}},{"$f":"IF(#REF!=\"\",0,VLOOKUP(#REF!,Hoja4!$A$461:$B$464,2,FALSE))","v":{"$error":"#REF!"}},null,null,null,null,null,null,null,null,null,null,null,null,null,"2017-04-30",null,null,null,null,null,null,null,null,null,null,49.499999999999901,"NO SATISFACTORIO"]
[{"$f":"IF(#REF!=\"\",0,VLOOKUP(#REF!,Hoja4!$A$461:$B$464,2,FALSE))","v":{"$error":"#REF!"}},{"$f":"IF(#REF!=\"\",0,VLOOKUP(#REF!,Hoja4!$A$461:$B$464,2,FALSE))","v":{"$error":"#REF!"}},null,null,null,null,null,null,null,null,null,null,null,null,null,"2017-05-01",null,null,null,null,null,null,null,null,null,null,49.599999999999902,"NO SATISFACTORIO"]
[{"$f":"SUBTOTAL(9,A492:A495)","v":{"$error":"#REF!"}},{"$f":"SUBTOTAL(9,B492:B495)","v":{"$error":"#REF!"}},null,null,null,null,null,null,null,null,null,null,null,null,null,"2017-05-02",null,null,null,null,null,null,null,null,null,null,49.699999999999903,"NO SATISFACTORIO"]
[null,null,null,null,null,null,null,null,null,null,null,null,null,null,null,"2017-05-03",null,null,null,null,null,null,null,null,null,null,49.799999999999898,"NO SATISFACTORIO"]
[null,null,null,null,null,null,null,null,null,null,null,null,null,null,null,"2017-05-04",null,null,null,null,null,null,null,null,null,null,49.899999999999899,"NO SATISFACTORIO"]
[null,null,null,null,null,null,null,null,null,null,null,null,null,null,null,"2017-05-05",null,null,null,null,null,null,null,null,null,null,49.999999999999901,"NO SATISFACTORIO"]
[null,null,null,null,null,null,null,null,null,null,null,null,null,null,null,"2017-05-06",null,null,null,null,null,null,null,null,null,null,50.099999999999902,"NO SATISFACTORIO"]
[null,null,null,null,null,null,null,null,null,null,null,null,null,null,null,"2017-05-07",null,null,null,null,null,null,null,null,null,null,50.199999999999903,"NO SATISFACTORIO"]
["EVALUACION INFERIOR A 1 AÑO",null,null,null,null,null,null,null,null,null,null,null,null,null,null,"2017-05-08",null,null,null,null,null,null,null,null,null,null,50.299999999999898,"NO SATISFACTORIO"]
["SUMA EVALUACION PREVIA","SUMA EVALUACION ULTIMO PERIODO",null,null,null,null,null,null,null,null,null,null,null,null,null,"2017-05-09",null,null,null,null,null,null,null,null,null,null,50.399999999999899,"NO SATISFACTORIO"]
[{"$f":"IF(#REF!=\"\",0,VLOOKUP(#REF!,Hoja4!$A$461:$C$464,3,FALSE))","v":{"$error":"#REF!"}},{"$f":"IF(#REF!=\"\",0,VLOOKUP(#REF!,Hoja4!$A$461:$C$464,3,FALSE))","v":{"$error":"#REF!"}},null,null,null,null,null,null,null,null,null,null,null,null,null,"2017-05-10",null,null,null,null,null,null,null,null,null,null,50.499999999999901,"NO SATISFACTORIO"]
[{"$f":"IF(#REF!=\"\",0,VLOOKUP(#REF!,Hoja4!$A$461:$C$464,3,FALSE))","v":{"$error":"#REF!"}},{"$f":"IF(#REF!=\"\",0,VLOOKUP(#REF!,Hoja4!$A$461:$C$464,3,FALSE))","v":{"$error":"#REF!"}},null,null,null,null,null,null,null,null,null,null,null,null,null,"2017-05-11",null,null,null,null,null,null,null,null,null,null,50.599999999999902,"NO SATISFACTORIO"]
[{"$f":"IF(#REF!=\"\",0,VLOOKUP(#REF!,Hoja4!$A$461:$C$464,3,FALSE))","v":{"$error":"#REF!"}},{"$f":"IF(#REF!=\"\",0,VLOOKUP(#REF!,Hoja4!$A$461:$C$464,3,FALSE))","v":{"$error":"#REF!"}},null,null,null,null,null,null,null,null,null,null,null,null,null,"2017-05-12",null,null,null,null,null,null,null,null,null,null,50.699999999999903,"NO SATISFACTORIO"]
[{"$f":"IF(#REF!=\"\",0,VLOOKUP(#REF!,Hoja4!$A$461:$C$464,3,FALSE))","v":{"$error":"#REF!"}},{"$f":"IF(#REF!=\"\",0,VLOOKUP(#REF!,Hoja4!$A$461:$C$464,3,FALSE))","v":{"$error":"#REF!"}},null,null,null,null,null,null,null,null,null,null,null,null,null,"2017-05-13",null,null,null,null,null,null,null,null,null,null,50.799999999999898,"NO SATISFACTORIO"]
[{"$f":"SUBTOTAL(9,A504:A507)","v":{"$error":"#REF!"}},{"$f":"SUBTOTAL(9,B504:B507)","v":{"$error":"#REF!"}},null,null,null,null,null,null,null,null,null,null,null,null,null,"2017-05-14",null,null,null,null,null,null,null,null,null,null,50.899999999999899,"NO SATISFACTORIO"]
[null,null,null,null,null,null,null,null,null,null,null,null,null,null,null,"2017-05-15",null,null,null,null,null,null,null,null,null,null,50.999999999999901,"NO SATISFACTORIO"]
[null,null,null,null,null,null,null,null,null,null,null,null,null,null,null,"2017-05-16",null,null,null,null,null,null,null,null,null,null,51.099999999999902,"NO SATISFACTORIO"]
[null,null,null,null,null,null,null,null,null,null,null,null,null,null,null,"2017-05-17",null,null,null,null,null,null,null,null,null,null,51.199999999999903,"NO SATISFACTORIO"]
["Ajuste de compromisos","Cambio de evaluador",null,null,null,null,null,null,null,null,null,null,null,null,null,"2017-05-18",null,null,null,null,null,null,null,null,null,null,51.299999999999898,"NO SATISFACTORIO"]
["Cambio de evaluador","Interrupción del período de prueba por más de 20 días calendario",null,null,null,null,null,null,null,null,null,null,null,null,null,"2017-05-19",null,null,null,null,null,null,null,null,null,null,51.399999999999899,"NO SATISFACTORIO"]
["Cambio del empleo","Lapso entre la última evaluación y el final del período",null,null,null,null,null,null,null,null,null,null,null,null,null,"2017-05-20",null,null,null,null,null,null,null,null,null,null,51.499999999999901,"NO SATISFACTORIO"]
["Lapso entre la última evaluación y el final del período",null,null,null,null,null,null,null,null,null,null,null,null,null,null,"2017-05-21",null,null,null,null,null,null,null,null,null,null,51.599999999999902,"NO SATISFACTORIO"]
["Por período de prueba en otro empleo",null,null,null,null,null,null,null,null,null,null,null,null,null,null,"2017-05-22",null,null,null,null,null,null,null,null,null,null,51.699999999999903,"NO SATISFACTORIO"]
["Separación temporal del empleo por más de 30 días calendario",null,null,null,null,null,null,null,null,null,null,null,null,null,null,"2017-05-23",null,null,null,null,null,null,null,null,null,null,51.799999999999898,"NO SATISFACTORIO"]
[null,null,null,null,null,null,null,null,null,null,null,null,null,null,null,"2017-05-24",null,null,null,null,null,null,null,null,null,null,51.8999999999998,"NO SATISFACTORIO"]
[null,null,null,null,null,null,null,null,null,null,null,null,null,null,null,"2017-05-25",null,null,null,null,null,null,null,null,null,null,51.999999999999901,"NO SATISFACTORIO"]
[null,null,null,null,null,null,null,null,null,null,null,null,null,null,null,"2017-05-26",null,null,null,null,null,null,null,null,null,null,52.099999999999902,"NO SATISFACTORIO"]
[null,null,null,null,null,null,null,null,null,null,null,null,null,null,null,"2017-05-27",null,null,null,null,null,null,null,null,null,null,52.199999999999903,"NO SATISFACTORIO"]
[null,null,null,null,null,null,null,null,null,null,null,null,null,null,null,"2017-05-28",null,null,null,null,null,null,null,null,null,null,52.299999999999898,"NO SATISFACTORIO"]
[null,null,null,null,null,null,null,null,null,null,null,null,null,null,null,"2017-05-29",null,null,null,null,null,null,null,null,null,null,52.3999999999998,"NO SATISFACTORIO"]
[null,null,null,null,null,null,null,null,null,null,null,null,null,null,null,"2017-05-30",null,null,null,null,null,null,null,null,null,null,52.499999999999901,"NO SATISFACTORIO"]
["PERIODO SEMESTRAL","CALIFICACION LABORALES","TIEMPO","% TOTAL TIEMPO","CALIFICACIÓN COMPORTAMENTALES",null,null,null,null,null,null,null,null,null,null,"2017-05-31",null,null,null,null,null,null,null,null,null,null,52.599999999999902,"NO SATISFACTORIO"]
["PRIMER SEMESTRE",{"$f":"#REF!","v":{"$error":"#REF!"}},{"$f":"#REF!","v":{"$error":"#REF!"}},{"$f":"+C526/C528","v":{"$error":"#REF!"}},{"$f":"#REF!","v":{"$error":"#REF!"}},null,null,null,null,null,null,null,null,null,null,"2017-06-01",null,null,null,null,null,null,null,null,null,null,52.699999999999797,"NO SATISFACTORIO"]
["SEGUNDO SEMESTRE",{"$f":"#REF!","v":{"$error":"#REF!"}},{"$f":"#REF!","v":{"$error":"#REF!"}},{"$f":"+C527/C529","v":{"$error":"#REF!"}},{"$f":"#REF!","v":{"$error":"#REF!"}},null,null,null,null,null,null,null,null,null,null,"2017-06-02",null,null,null,null,null,null,null,null,null,null,52.799999999999798,"NO SATISFACTORIO"]
[null,null,{"$f":"SUM(C526:C527)","v":{"$error":"#REF!"}},1]
[]
[]
[null,null,null,null,null,null,null,null,null,null,null,null,null,null,null,"2017-06-03",null,null,null,null,null,null,null,null,null,null,52.8999999999998,"NO SATISFACTORIO"]
["PARCIALES EVENTAULES","CALIFICACION LABORALES","TIEMPO",null,"CALIFICACIÓN COMPORTAMENTALES",null,null,null,null,null,null,null,null,null,null,"2017-06-04",null,null,null,null,null,null,null,null,null,null,52.999999999999901,"NO SATISFACTORIO"]
["PRIMER SEMESTRE",{"$f":"#REF!","v":{"$error":"#REF!"}},{"$f":"#REF!","v":{"$error":"#REF!"}},{"$f":"+C533/C535","v":{"$error":"#REF!"}},{"$f":"#REF!","v":{"$error":"#REF!"}},null,null,null,null,null,null,null,null,null,null,"2017-06-05",null,null,null,null,null,null,null,null,null,null,53.099999999999902,"NO SATISFACTORIO"]
["SEGUNDO SEMESTRE",{"$f":"#REF!","v":{"$error":"#REF!"}},{"$f":"#REF!","v":{"$error":"#REF!"}},{"$f":"+C534/C535","v":{"$error":"#REF!"}},{"$f":"#REF!","v":{"$error":"#REF!"}},null,null,null,null,null,null,null,null,null,null,"2017-06-06",null,null,null,null,null,null,null,null,null,null,53.199999999999797,"NO SATISFACTORIO"]
[null,null,{"$f":"SUM(C533:C534)","v":{"$error":"#REF!"}},1,null,null,null,null,null,null,null,null,null,null,null,"2017-06-07",null,null,null,null,null,null,null,null,null,null,53.299999999999798,"NO SATISFACTORIO"]
[null,null,null,null,null,null,null,null,null,null,null,null,null,null,null,"2017-06-08",null,null,null,null,null,null,null,null,null,null,53.3999999999998,"NO SATISFACTORIO"]
[null,null,null,null,null,null,null,null,null,null,null,null,null,null,null,"2017-06-09",null,null,null,null,null,null,null,null,null,null,53.499999999999801,"NO SATISFACTORIO"]
[null,null,"TIEMPO",null,null,null,null,null,null,null,null,null,null,null,null,"2017-06-10",null,null,null,null,null,null,null,null,null,null,53.599999999999802,"NO SATISFACTORIO"]
[null,"Primer Semestre",{"$f":"IF(C533=\"No Aplica\",C526,C533)","v":{"$error":"#REF!"}},{"$f":"+C539/$C$541","v":{"$error":"#REF!"}},null,null,null,null,null,null,null,null,null,null,null,"2017-06-11",null,null,null,null,null,null,null,null,null,null,53.699999999999797,"NO SATISFACTORIO"]
[null,"Segundo Semestre",{"$f":"IF(C534=\"No Aplica\",C527,C534)","v":{"$error":"#REF!"}},{"$f":"+C540/$C$541","v":{"$error":"#REF!"}},null,null,null,null,null,null,null,null,null,null,null,"2017-06-12",null,null,null,null,null,null,null,null,null,null,53.799999999999798,"NO SATISFACTORIO"]
[null,"TOTAL TIEMPO",{"$f":"SUM(C539:C540)","v":{"$error":"#REF!"}},null,null,null,null,null,null,null,null,null,null,null,null,"2017-06-13",null,null,null,null,null,null,null,null,null,null,53.8999999999998,"NO SATISFACTORIO"]
[null,null,null,null,null,null,null,null,null,null,null,null,null,null,null,"2017-06-14",null,null,null,null,null,null,null,null,null,null,53.999999999999801,"NO SATISFACTORIO"]
[null,null,null,null,null,null,null,null,null,null,null,null,null,null,null,"2017-06-15",null,null,null,null,null,null,null,null,null,null,54.099999999999802,"NO SATISFACTORIO"]
[null,null,null,null,null,null,null,null,null,null,null,null,null,null,null,"2017-06-16",null,null,null,null,null,null,null,null,null,null,54.199999999999797,"NO SATISFACTORIO"]
[null,null,null,null,null,null,null,null,null,null,null,null,null,null,null,"2017-06-17",null,null,null,null,null,null,null,null,null,null,54.299999999999798,"NO SATISFACTORIO"]
[null,null,null,null,null,null,null,null,null,null,null,null,null,null,null,"2017-06-18",null,null,null,null,null,null,null,null,null,null,54.3999999999998,"NO SATISFACTORIO"]
[null,null,null,null,null,null,null,null,null,null,null,null,null,null,null,"2017-06-19",null,null,null,null,null,null,null,null,null,null,54.499999999999801,"NO SATISFACTORIO"]
[null,null,null,null,null,null,null,null,null,null,null,null,null,null,null,"2017-06-20",null,null,null,null,null,null,null,null,null,null,54.599999999999802,"NO SATISFACTORIO"]
[null,null,null,null,null,null,null,null,null,null,null,null,null,null,null,"2017-06-21",null,null,null,null,null,null,null,null,null,null,54.699999999999797,"NO SATISFACTORIO"]
[null,null,null,null,null,null,null,null,null,null,null,null,null,null,null,"2017-06-22",null,null,null,null,null,null,null,null,null,null,54.799999999999798,"NO SATISFACTORIO"]
[null,null,null,null,null,null,null,null,null,null,null,null,null,null,null,"2017-06-23",null,null,null,null,null,null,null,null,null,null,54.8999999999998,"NO SATISFACTORIO"]
[null,null,null,null,null,null,null,null,null,null,null,null,null,null,null,"2017-06-24",null,null,null,null,null,null,null,null,null,null,54.999999999999801,"NO SATISFACTORIO"]
[null,null,null,null,null,null,null,null,null,null,null,null,null,null,null,"2017-06-25",null,null,null,null,null,null,null,null,null,null,55.099999999999802,"NO SATISFACTORIO"]
[null,null,null,null,null,null,null,null,null,null,null,null,null,null,null,"2017-06-26",null,null,null,null,null,null,null,null,null,null,55.199999999999797,"NO SATISFACTORIO"]
[null,null,null,null,null,null,null,null,null,null,null,null,null,null,null,"2017-06-27",null,null,null,null,null,null,null,null,null,null,55.299999999999798,"NO SATISFACTORIO"]
[null,null,null,null,null,null,null,null,null,null,null,null,null,null,null,"2017-06-28",null,null,null,null,null,null,null,null,null,null,55.3999999999998,"NO SATISFACTORIO"]
[null,null,null,null,null,null,null,null,null,null,null,null,null,null,null,"2017-06-29",null,null,null,null,null,null,null,null,null,null,55.499999999999801,"NO SATISFACTORIO"]
[null,null,null,null,null,null,null,null,null,null,null,null,null,null,null,"2017-06-30",null,null,null,null,null,null,null,null,null,null,55.599999999999802,"NO SATISFACTORIO"]
[null,null,null,null,null,null,null,null,null,null,null,null,null,null,null,"2017-07-01",null,null,null,null,null,null,null,null,null,null,55.699999999999797,"NO SATISFACTORIO"]
[null,null,null,null,null,null,null,null,null,null,null,null,null,null,null,"2017-07-02",null,null,null,null,null,null,null,null,null,null,55.799999999999798,"NO SATISFACTORIO"]
[null,null,null,null,null,null,null,null,null,null,null,null,null,null,null,"2017-07-03",null,null,null,null,null,null,null,null,null,null,55.8999999999998,"NO SATISFACTORIO"]
[null,null,null,null,null,null,null,null,null,null,null,null,null,null,null,"2017-07-04",null,null,null,null,null,null,null,null,null,null,55.999999999999801,"NO SATISFACTORIO"]
[null,null,null,null,null,null,null,null,null,null,null,null,null,null,null,"2017-07-05",null,null,null,null,null,null,null,null,null,null,56.099999999999802,"NO SATISFACTORIO"]
[null,null,null,null,null,null,null,null,null,null,null,null,null,null,null,"2017-07-06",null,null,null,null,null,null,null,null,null,null,56.199999999999797,"NO SATISFACTORIO"]
[null,null,null,null,null,null,null,null,null,null,null,null,null,null,null,"2017-07-07",null,null,null,null,null,null,null,null,null,null,56.299999999999798,"NO SATISFACTORIO"]
[null,null,null,null,null,null,null,null,null,null,null,null,null,null,null,"2017-07-08",null,null,null,null,null,null,null,null,null,null,56.3999999999998,"NO SATISFACTORIO"]
[null,null,null,null,null,null,null,null,null,null,null,null,null,null,null,"2017-07-09",null,null,null,null,null,null,null,null,null,null,56.499999999999801,"NO SATISFACTORIO"]
[null,null,null,null,null,null,null,null,null,null,null,null,null,null,null,"2017-07-10",null,null,null,null,null,null,null,null,null,null,56.599999999999802,"NO SATISFACTORIO"]
[null,null,null,null,null,null,null,null,null,null,null,null,null,null,null,"2017-07-11",null,null,null,null,null,null,null,null,null,null,56.699999999999797,"NO SATISFACTORIO"]
[null,null,null,null,null,null,null,null,null,null,null,null,null,null,null,"2017-07-12",null,null,null,null,null,null,null,null,null,null,56.799999999999798,"NO SATISFACTORIO"]
[null,null,null,null,null,null,null,null,null,null,null,null,null,null,null,"2017-07-13",null,null,null,null,null,null,null,null,null,null,56.8999999999998,"NO SATISFACTORIO"]
[null,null,null,null,null,null,null,null,null,null,null,null,null,null,null,"2017-07-14",null,null,null,null,null,null,null,null,null,null,56.999999999999801,"NO SATISFACTORIO"]
[null,null,null,null,null,null,null,null,null,null,null,null,null,null,null,"2017-07-15",null,null,null,null,null,null,null,null,null,null,57.099999999999802,"NO SATISFACTORIO"]
[null,null,null,null,null,null,null,null,null,null,null,null,null,null,null,"2017-07-16",null,null,null,null,null,null,null,null,null,null,57.199999999999797,"NO SATISFACTORIO"]
[null,null,null,null,null,null,null,null,null,null,null,null,null,null,null,"2017-07-17",null,null,null,null,null,null,null,null,null,null,57.299999999999798,"NO SATISFACTORIO"]
[null,null,null,null,null,null,null,null,null,null,null,null,null,null,null,"2017-07-18",null,null,null,null,null,null,null,null,null,null,57.3999999999998,"NO SATISFACTORIO"]
[null,null,null,null,null,null,null,null,null,null,null,null,null,null,null,"2017-07-19",null,null,null,null,null,null,null,null,null,null,57.499999999999801,"NO SATISFACTORIO"]
[null,null,null,null,null,null,null,null,null,null,null,null,null,null,null,"2017-07-20",null,null,null,null,null,null,null,null,null,null,57.599999999999802,"NO SATISFACTORIO"]
[null,null,null,null,null,null,null,null,null,null,null,null,null,null,null,"2017-07-21",null,null,null,null,null,null,null,null,null,null,57.699999999999797,"NO SATISFACTORIO"]
[null,null,null,null,null,null,null,null,null,null,null,null,null,null,null,"2017-07-22",null,null,null,null,null,null,null,null,null,null,57.799999999999798,"NO SATISFACTORIO"]
[null,null,null,null,null,null,null,null,null,null,null,null,null,null,null,"2017-07-23",null,null,null,null,null,null,null,null,null,null,57.8999999999998,"NO SATISFACTORIO"]
[null,null,null,null,null,null,null,null,null,null,null,null,null,null,null,"2017-07-24",null,null,null,null,null,null,null,null,null,null,57.999999999999801,"NO SATISFACTORIO"]
[null,null,null,null,null,null,null,null,null,null,null,null,null,null,null,"2017-07-25",null,null,null,null,null,null,null,null,null,null,58.099999999999802,"NO SATISFACTORIO"]
[null,null,null,null,null,null,null,null,null,null,null,null,null,null,null,"2017-07-26",null,null,null,null,null,null,null,null,null,null,58.199999999999797,"NO SATISFACTORIO"]
[null,null,null,null,null,null,null,null,null,null,null,null,null,null,null,"2017-07-27",null,null,null,null,null,null,null,null,null,null,58.299999999999798,"NO SATISFACTORIO"]
[null,null,null,null,null,null,null,null,null,null,null,null,null,null,null,"2017-07-28",null,null,null,null,null,null,null,null,null,null,58.3999999999998,"NO SATISFACTORIO"]
[null,null,null,null,null,null,null,null,null,null,null,null,null,null,null,"2017-07-29",null,null,null,null,null,null,null,null,null,null,58.499999999999801,"NO SATISFACTORIO"]
[null,null,null,null,null,null,null,null,null,null,null,null,null,null,null,"2017-07-30",null,null,null,null,null,null,null,null,null,null,58.599999999999802,"NO SATISFACTORIO"]
[null,null,null,null,null,null,null,null,null,null,null,null,null,null,null,"2017-07-31",null,null,null,null,null,null,null,null,null,null,58.699999999999797,"NO SATISFACTORIO"]
[null,null,null,null,null,null,null,null,null,null,null,null,null,null,null,"2017-08-01",null,null,null,null,null,null,null,null,null,null,58.799999999999798,"NO SATISFACTORIO"]
[null,null,null,null,null,null,null,null,null,null,null,null,null,null,null,"2017-08-02",null,null,null,null,null,null,null,null,null,null,58.8999999999998,"NO SATISFACTORIO"]
[null,null,null,null,null,null,null,null,null,null,null,null,null,null,null,"2017-08-03",null,null,null,null,null,null,null,null,null,null,58.999999999999801,"NO SATISFACTORIO"]
[null,null,null,null,null,null,null,null,null,null,null,null,null,null,null,"2017-08-04",null,null,null,null,null,null,null,null,null,null,59.099999999999802,"NO SATISFACTORIO"]
[null,null,null,null,null,null,null,null,null,null,null,null,null,null,null,"2017-08-05",null,null,null,null,null,null,null,null,null,null,59.199999999999797,"NO SATISFACTORIO"]
[null,null,null,null,null,null,null,null,null,null,null,null,null,null,null,"2017-08-06",null,null,null,null,null,null,null,null,null,null,59.299999999999798,"NO SATISFACTORIO"]
[null,null,null,null,null,null,null,null,null,null,null,null,null,null,null,"2017-08-07",null,null,null,null,null,null,null,null,null,null,59.3999999999998,"NO SATISFACTORIO"]
[null,null,null,null,null,null,null,null,null,null,null,null,null,null,null,"2017-08-08",null,null,null,null,null,null,null,null,null,null,59.499999999999801,"NO SATISFACTORIO"]
[null,null,null,null,null,null,null,null,null,null,null,null,null,null,null,"2017-08-09",null,null,null,null,null,null,null,null,null,null,59.599999999999802,"NO SATISFACTORIO"]
[null,null,null,null,null,null,null,null,null,null,null,null,null,null,null,"2017-08-10",null,null,null,null,null,null,null,null,null,null,59.699999999999797,"NO SATISFACTORIO"]
["NIVEL","Competencia","Concatenar","Definición de la competencia","Conductas asociadas",null,null,null,null,null,null,null,null,null,null,"2017-08-11",null,null,null,null,null,null,null,null,null,null,59.799999999999798,"NO SATISFACTORIO"]
["ASESOR","Orientación a resultados ",{"$f":"A601&B601","v":"ASESOROrientación a resultados "},"Realizar las funciones y cumplir los compromisos organizacionales con eficacia y calidad. ","▪ Cumple con oportunidad en función de estándares, objetivos y metas establecidas por la entidad, las funciones que le son asignadas.\n▪ Asume la responsabilidad por sus resultados.\n▪ Compromete recursos y tiempos para mejorar la productividad tomando las medidas necesarias para minimizar los riesgos.\n▪ Realiza todas las acciones necesarias para alcanzar los objetivos propuestos enfrentando los obstáculos que se presentan.",null,null,null,null,null,null,null,null,null,null,"2017-08-12",null,null,null,null,null,null,null,null,null,null,59.8999999999998,"NO SATISFACTORIO"]
["ASESOR","Orientación al usuario y al ciudadano",{"$f":"A602&B602","v":"ASESOROrientación al usuario y al ciudadano"},"Dirigir las decisiones y acciones a la satisfacción de las necesidades e intereses de los usuarios internos y externos, de conformidad con las responsabilidades públicas asignadas a la entidad.","▪ Atiende y valora las necesidades y peticiones de los usuarios y de ciudadanos en general.\n▪Considera las necesidades de los usuarios al diseñar proyectos o servicios.\n▪Da respuesta oportuna a las necesidades de los usuarios de conformidad con el servicio que ofrece la entidad.\n▪Establece diferentes canales de comunicación con el usuario para conocer sus necesidades y propuestas y responde a las mismas.\n▪Reconoce la interdependencia entre su trabajo y el de otros.",null,null,null,null,null,null,null,null,null,null,"2017-08-13",null,null,null,null,null,null,null,null,null,null,59.999999999999801,"NO SATISFACTORIO"]
["ASESOR","Compromiso con la Organización","ASESORCompromiso con la Organización","Alinear el propio comportamiento a las necesidades, prioridades y metas organizacionales.","▪Promueve las metas de la organización y respeta sus normas.\n▪Antepone las necesidades de la organización a sus propias necesidades.\n▪Apoya a la organización en situaciones difíciles.\n▪Demuestra sentido de pertenencia en todas sus actuaciones.",null,null,null,null,null,null,null,null,null,null,"2017-08-14",null,null,null,null,null,null,null,null,null,null,60.099999999999802,"NO SATISFACTORIO"]
["ASESOR","Experticia profesional","ASESORExperticia profesional","Aplicar el conocimiento profesional","▪Orienta el desarrollo de proyectos especiales para el logro de resultados de la alta dirección.\n▪Aconseja y orienta la toma de decisiones en los temas que le han sido asignados.\n▪Asesora en materias propias de su campo de conocimiento, emitiendo conceptos, juicios o propuestas ajustados a lineamientos teóricos y técnicos.\n▪Se comunica de modo lógico, claro, efectivo y seguro.",null,null,null,null,null,null,null,null,null,null,"2017-08-15",null,null,null,null,null,null,null,null,null,null,60.199999999999797,"NO SATISFACTORIO"]
["ASESOR","Conocimiento del entorno","ASESORConocimiento del entorno","Conocer e interpretar la organización, su funcionamiento y sus relaciones políticas y administrativas.","▪Comprende el entorno organizacional que enmarca las situaciones objeto de asesoría y lo toma como referente obligado para emitir juicios, conceptos o propuestas a desarrollar.\n▪Se informa permanentemente sobre políticas gubernamentales, problemas y demandas del entorno.",null,null,null,null,null,null,null,null,null,null,"2017-08-16",null,null,null,null,null,null,null,null,null,null,60.299999999999798,"NO SATISFACTORIO"]
["ASESOR","Construcción de relaciones","ASESORConstrucción de relaciones","Establecer y mantener relaciones cordiales y recíprocas con redes o grupos de personas internas y externas a la organización que faciliten la consecución de los objetivos institucionales.","▪Utiliza sus contactos para conseguir objetivos.\n▪Comparte información para establecer lazos.\n▪Interactúa con otros de un modo efectivo y adecuado.",null,null,null,null,null,null,null,null,null,null,"2017-08-17",null,null,null,null,null,null,null,null,null,null,60.3999999999998,"NO SATISFACTORIO"]
["ASESOR","Iniciativa","ASESORIniciativa","Anticiparse a los problemas iniciando acciones para superar los obstáculos y alcanzar metas concretas","▪Prevé situaciones y alternativas de solución que orientan la toma de decisiones de la alta dirección.\n▪Enfrenta los problemas y propone acciones concretas para solucionarlos.\n▪Reconoce y hace viables las oportunidades.",null,null,null,null,null,null,null,null,null,null,"2017-08-18",null,null,null,null,null,null,null,null,null,null,60.499999999999801,"NO SATISFACTORIO"]
["PROFESIONAL","Orientación a resultados ","PROFESIONALOrientación a resultados ","Realizar las funciones y cumplir los compromisos organizacionales con eficacia y calidad. ","▪ Cumple con oportunidad en función de estándares, objetivos y metas establecidas por la entidad, las funciones que le son asignadas.\n▪ Asume la responsabilidad por sus resultados.\n▪ Compromete recursos y tiempos para mejorar la productividad tomando las medidas necesarias para minimizar los riesgos.\n▪ Realiza todas las acciones necesarias para alcanzar los objetivos propuestos enfrentando los obstáculos que se presentan.",null,null,null,null,null,null,null,null,null,null,"2017-08-19",null,null,null,null,null,null,null,null,null,null,60.599999999999802,"NO SATISFACTORIO"]
["PROFESIONAL","Orientación al usuario y al ciudadano","PROFESIONALOrientación al usuario y al ciudadano","Dirigir las decisiones y acciones a la satisfacción de las necesidades e intereses de los usuarios internos y externos, de conformidad con las responsabilidades públicas asignadas a la entidad.","▪ Atiende y valora las necesidades y peticiones de los usuarios y de ciudadanos en general.\n▪Considera las necesidades de los usuarios al diseñar proyectos o servicios.\n▪Da respuesta oportuna a las necesidades de los usuarios de conformidad con el servicio que ofrece la entidad.\n▪Establece diferentes canales de comunicación con el usuario para conocer sus necesidades y propuestas y responde a las mismas.\n▪Reconoce la interdependencia entre su trabajo y el de otros.",null,null,null,null,null,null,null,null,null,null,"2017-08-20",null,null,null,null,null,null,null,null,null,null,60.699999999999797,"NO SATISFACTORIO"]
["PROFESIONAL","Compromiso con la Organización","PROFESIONALCompromiso con la Organización","Alinear el propio comportamiento a las necesidades, prioridades y metas organizacionales.","▪Promueve las metas de la organización y respeta sus normas.\n▪Antepone las necesidades de la organización a sus propias necesidades.\n▪Apoya a la organización en situaciones difíciles.\n▪Demuestra sentido de pertenencia en todas sus actuaciones.",null,null,null,null,null,null,null,null,null,null,"2017-08-21",null,null,null,null,null,null,null,null,null,null,60.799999999999798,"NO SATISFACTORIO"]
["PROFESIONAL","Aprendizaje Continuo","PROFESIONALAprendizaje Continuo","Adquirir y desarrollar permanentemente conocimientos, destrezas y habilidades, con el fin de mantener altos estándares de eficacia organizacional.","▪Aprende de la experiencia de otros y de la propia.\n▪Se adapta y aplica nuevas tecnologías que se implanten en la organización.\n▪Aplica los conocimientos adquiridos a los desafíos que se presentan en el desarrollo del trabajo.\n▪Investiga, indaga y profundiza en los temas de su entorno área de desempeño.\n▪Reconoce las propias limitaciones y las necesidades de mejorar su preparación.\n▪Asimila nueva información y la aplica correctamente.",null,null,null,null,null,null,null,null,null,null,"2017-08-22",null,null,null,null,null,null,null,null,null,null,60.8999999999998,"NO SATISFACTORIO"]
["PROFESIONAL","Experticia profesional","PROFESIONALExperticia profesional","Aplicar el conocimiento profesional en la resolución de problemas y transferirlo a su entorno laboral.","▪Analiza de un modo sistemático y racional los aspectos del trabajo, basándose en la información relevante.\n▪Aplica reglas básicas y conceptos complejos aprendidos\n▪Identifica y reconoce con facilidad las causas de los problemas y sus soluciones.\n▪Clarifica datos o situaciones complejas.\n▪Planea, organiza y ejecuta múltiples tareas tendientes a alcanzar resultados institucionales.",null,null,null,null,null,null,null,null,null,null,"2017-08-23",null,null,null,null,null,null,null,null,null,null,60.999999999999801,"NO SATISFACTORIO"]
["PROFESIONAL","Trabajo en equipo y Colaboración","PROFESIONALTrabajo en equipo y Colaboración","Trabajar con otros de forma conjunta y de manera participativa, integrando esfuerzos para la consecución de metas institucionales comunes.","▪Coopera en distintas situaciones y comparte información.\n▪Aporta sugerencias, ideas y opiniones.\n▪Expresa expectativas positivas del equipo o de los miembros del mismo.\n▪Planifica las propias acciones teniendo en cuenta la repercusión de las mismas para la consecución de los objetivos grupales.\n▪Establece diálogo directo con los miembros del equipo que permita compartir información e ideas en condiciones de respeto y cordialidad.\n▪Respeta criterios dispares y distintas opiniones del equipo.",null,null,null,null,null,null,null,null,null,null,"2017-08-24",null,null,null,null,null,null,null,null,null,null,61.099999999999802,"NO SATISFACTORIO"]
["PROFESIONAL","Creatividad e Innovación","PROFESIONALCreatividad e Innovación","Generar y desarrollar nuevas ideas, conceptos, métodos y soluciones.","▪Ofrece respuestas alternativas.\n▪Aprovecha las oportunidades y problemas para dar soluciones novedosas.\n▪Desarrolla nuevas formas de hacer y tecnologías.\n▪Busca nuevas alternativas de solución y se arriesga a romper esquemas tradicionales.\n▪Inicia acciones para superar los obstáculos y alcanzar metas específicas.",null,null,null,null,null,null,null,null,null,null,"2017-08-25",null,null,null,null,null,null,null,null,null,null,61.199999999999797,"NO SATISFACTORIO"]
["PROFESIONAL","Liderazgo de Grupos de Trabajo (personal a cargo)","PROFESIONALLiderazgo de Grupos de Trabajo (personal a cargo)","Asumir el rol de orientar y guía de un grupo o equipo de trabajo, utilizando la autoridad con arreglo a las normas y promoviendo la Efectividad en la consecución de objetivos y metas institucionales.","▪Establece los objetivos del grupo de forma clara y equilibrada.\n▪Asegura que los integrantes del grupo compartan planes, programas y proyectos institucionales.\n▪Orienta y coordina el trabajo del grupo para la identificación de planes y actividades a seguir.\n▪Facilita la colaboración con otras áreas y dependencias.\n▪Escucha y tiene en cuenta las opiniones de los integrantes del grupo.\n▪Gestiona los recursos necesarios para poder cumplir con las metas propuestas.\n▪Garantiza los recursos necesarios para poder cumplir con las metas propuestas.\n▪Garantiza que el grupo tenga la información necesaria.\n▪Explica las razones de las decisiones.",null,null,null,null,null,null,null,null,null,null,"2017-08-26",null,null,null,null,null,null,null,null,null,null,61.299999999999798,"NO SATISFACTORIO"]
["PROFESIONAL","Toma de decisiones (personal a cargo)","PROFESIONALToma de decisiones (personal a cargo)","Elegir entre una o varias alternativas para solucionar un problema y tomar las acciones concretas y consecuentes con la elección realizada.","▪Elige alternativas de solución efectiva y suficiente para atender los asuntos encomendados.\n▪Decide y establece prioridades para el trabajo del grupo.\n▪Asume posiciones concretas para el manejo de temas o situaciones que demandan su atención.\n▪Efectúa cambios en las actividades o en la manera de desarrollar sus responsabilidades cuando detecta dificultades para su realización o mejores prácticas que pueden optimizar el desempeño.\n▪Asume las consecuencias de las decisiones adoptadas.\n▪Fomenta la participación en la toma de decisiones.",null,null,null,null,null,null,null,null,null,null,"2017-08-27",null,null,null,null,null,null,null,null,null,null,61.3999999999998,"NO SATISFACTORIO"]
["TECNICO","Orientación a resultados ","TECNICOOrientación a resultados ","Realizar las funciones y cumplir los compromisos organizacionales con eficacia y calidad. ","▪ Cumple con oportunidad en función de estándares, objetivos y metas establecidas por la entidad, las funciones que le son asignadas.\n▪ Asume la responsabilidad por sus resultados.\n▪ Compromete recursos y tiempos para mejorar la productividad tomando las medidas necesarias para minimizar los riesgos.\n▪ Realiza todas las acciones necesarias para alcanzar los objetivos propuestos enfrentando los obstáculos que se presentan.",null,null,null,null,null,null,null,null,null,null,"2017-08-28",null,null,null,null,null,null,null,null,null,null,61.499999999999801,"NO SATISFACTORIO"]
["TECNICO","Orientación al usuario y al ciudadano","TECNICOOrientación al usuario y al ciudadano","Dirigir las decisiones y acciones a la satisfacción de las necesidades e intereses de los usuarios internos y externos, de conformidad con las responsabilidades públicas asignadas a la entidad.","▪ Atiende y valora las necesidades y peticiones de los usuarios y de ciudadanos en general.\n▪Considera las necesidades de los usuarios al diseñar proyectos o servicios.\n▪Da respuesta oportuna a las necesidades de los usuarios de conformidad con el servicio que ofrece la entidad.\n▪Establece diferentes canales de comunicación con el usuario para conocer sus necesidades y propuestas y responde a las mismas.\n▪Reconoce la interdependencia entre su trabajo y el de otros.",null,null,null,null,null,null,null,null,null,null,"2017-08-29",null,null,null,null,null,null,null,null,null,null,61.599999999999802,"NO SATISFACTORIO"]
["TECNICO","Compromiso con la Organización","TECNICOCompromiso con la Organización","Alinear el propio comportamiento a las necesidades, prioridades y metas organizacionales.","▪Promueve las metas de la organización y respeta sus normas.\n▪Antepone las necesidades de la organización a sus propias necesidades.\n▪Apoya a la organización en situaciones difíciles.\n▪Demuestra sentido de pertenencia en todas sus actuaciones.",null,null,null,null,null,null,null,null,null,null,"2017-08-30",null,null,null,null,null,null,null,null,null,null,61.699999999999797,"NO SATISFACTORIO"]
["TECNICO","Experticia Técnica","TECNICOExperticia Técnica","Entender y aplicar los conocimientos técnicos del área de desempeño y mantenerlos actualizados","▪Capta y asimila con facilidad conceptos e información.\n▪Aplica el conocimiento técnico a las actividades cotidianas.\n▪Analiza la información de acuerdo con las necesidades de la organización.\n▪Comprende los aspectos técnicos y los aplica al desarrollo de procesos y procedimientos en los que está involucrado.\n▪Resuelve problemas utilizando sus conocimientos técnicos de su especialidad y garantizando indicadores y estándares establecidos.",null,null,null,null,null,null,null,null,null,null,"2017-08-31",null,null,null,null,null,null,null,null,null,null,61.799999999999798,"NO SATISFACTORIO"]
["TECNICO","Trabajo en equipo","TECNICOTrabajo en equipo","Trabajar con otros para conseguir metas comunes","▪Identifica claramente los objetivos del grupo y orienta su trabajo a la consecución de los mismos.\n▪Colabora con otros para la realización de actividades y metas grupales.",null,null,null,null,null,null,null,null,null,null,"2017-09-01",null,null,null,null,null,null,null,null,null,null,61.8999999999998,"NO SATISFACTORIO"]
["TECNICO","Creatividad e innovación","TECNICOCreatividad e innovación","Presentar ideas y métodos novedosos y concretarlos en acciones","▪Propone y encuentra formas nuevas y eficaces de hacer las cosas.\n▪Es recursivo.\n▪Es práctico.\n▪Busca nuevas alternativas de solución.\n▪Revisa permanentemente los procesos y procedimientos para optimizar los resultados.",null,null,null,null,null,null,null,null,null,null,"2017-09-02",null,null,null,null,null,null,null,null,null,null,61.999999999999801,"NO SATISFACTORIO"]
["ASISTENCIAL","Orientación a resultados ","ASISTENCIALOrientación a resultados ","Realizar las funciones y cumplir los compromisos organizacionales con eficacia y calidad. ","▪ Cumple con oportunidad en función de estándares, objetivos y metas establecidas por la entidad, las funciones que le son asignadas.\n▪ Asume la responsabilidad por sus resultados.\n▪ Compromete recursos y tiempos para mejorar la productividad tomando las medidas necesarias para minimizar los riesgos.\n▪ Realiza todas las acciones necesarias para alcanzar los objetivos propuestos enfrentando los obstáculos que se presentan.",null,null,null,null,null,null,null,null,null,null,"2017-09-03",null,null,null,null,null,null,null,null,null,null,62.099999999999802,"NO SATISFACTORIO"]
["ASISTENCIAL","Orientación al usuario y al ciudadano","ASISTENCIALOrientación al usuario y al ciudadano","Dirigir las decisiones y acciones a la satisfacción de las necesidades e intereses de los usuarios internos y externos, de conformidad con las responsabilidades públicas asignadas a la entidad.","▪ Atiende y valora las necesidades y peticiones de los usuarios y de ciudadanos en general.\n▪Considera las necesidades de los usuarios al diseñar proyectos o servicios.\n▪Da respuesta oportuna a las necesidades de los usuarios de conformidad con el servicio que ofrece la entidad.\n▪Establece diferentes canales de comunicación con el usuario para conocer sus necesidades y propuestas y responde a las mismas.\n▪Reconoce la interdependencia entre su trabajo y el de otros.",null,null,null,null,null,null,null,null,null,null,"2017-09-04",null,null,null,null,null,null,null,null,null,null,62.199999999999797,"NO SATISFACTORIO"]
["ASISTENCIAL","Compromiso con la Organización","ASISTENCIALCompromiso con la Organización","Alinear el propio comportamiento a las necesidades, prioridades y metas organizacionales.","▪Promueve las metas de la organización y respeta sus normas.\n▪Antepone las necesidades de la organización a sus propias necesidades.\n▪Apoya a la organización en situaciones difíciles.\n▪Demuestra sentido de pertenencia en todas sus actuaciones.",null,null,null,null,null,null,null,null,null,null,"2017-09-05",null,null,null,null,null,null,null,null,null,null,62.299999999999798,"NO SATISFACTORIO"]
["ASISTENCIAL","Manejo de la información","ASISTENCIALManejo de la información","Manejar con respeto las informaciones personales e institucionales de que dispone.","▪Evade temas que indagan sobre información confidencial.\n▪Recoge sólo información imprescindible para el desarrollo de la tarea.\n▪Organiza y guarda de forma adecuada la información a su cuidado, teniendo en cuenta las normas legales y de la organización.\n▪No hace pública información laboral o de las personas que pueda afectar la organización o las personas.",null,null,null,null,null,null,null,null,null,null,"2017-09-06",null,null,null,null,null,null,null,null,null,null,62.3999999999998,"NO SATISFACTORIO"]
["ASISTENCIAL","Adaptación al cambio","ASISTENCIALAdaptación al cambio","Enfrentarse con flexibilidad y versatilidad a situaciones nuevas para aceptar los cambios positiva y constructivamente.","▪Acepta y se adapta fácilmente los cambios.\n▪Responde al cambio con flexibilidad.\n▪Promueve el cambio.",null,null,null,null,null,null,null,null,null,null,"2017-09-07",null,null,null,null,null,null,null,null,null,null,62.499999999999801,"NO SATISFACTORIO"]
["ASISTENCIAL","Disciplina","ASISTENCIALDisciplina","Adaptarse a las políticas institucionales y buscar información de los cambios en la autoridad competente.","▪Acepta instrucciones aunque se difiera de ellas.\n▪Realiza los cometidos y tareas del puesto de trabajo.\n▪Acepta la supervisión constante.\n▪Realiza funciones orientadas a apoyar la acción de otros miembros de la organización.",null,null,null,null,null,null,null,null,null,null,"2017-09-08",null,null,null,null,null,null,null,null,null,null,62.599999999999802,"NO SATISFACTORIO"]
["ASISTENCIAL","Relaciones Interpersonales","ASISTENCIALRelaciones Interpersonales","Establecer y mantener relaciones de trabajo amistosas y positivas, basadas en la comunicación abierta y fluida y en el respeto por los demás.","▪Escucha con interés a las personas y capta las preocupaciones, intereses y necesidades de los demás.\n▪Transmite eficazmente las ideas, sentimientos e información impidiendo con ello malos entendidos o situaciones confusas que puedan generar conflictos.",null,null,null,null,null,null,null,null,null,null,"2017-09-09",null,null,null,null,null,null,null,null,null,null,62.699999999999797,"NO SATISFACTORIO"]
["ASISTENCIAL","Colaboración","ASISTENCIALColaboración","Cooperar con los demás con el fin de alcanzar los objetivos institucionales","▪Ayuda al logro de los objetivos articulando sus actuaciones con los demás.\n▪Cumple los compromisos que adquiere.\n▪Facilita la labor de sus superiores y compañeros de trabajo.",null,null,null,null,null,null,null,null,null,null,"2017-09-10",null,null,null,null,null,null,null,null,null,null,62.799999999999798,"NO SATISFACTORIO"]
["DIRECTIVO","Orientación a resultados ",{"$f":"A631&B631","v":"DIRECTIVOOrientación a resultados "},"Realizar las funciones y cumplir los compromisos organizacionales con eficacia y calidad. ","▪ Cumple con oportunidad en función de estándares, objetivos y metas establecidas por la entidad, las funciones que le son asignadas.\n▪ Asume la responsabilidad por sus resultados.\n▪ Compromete recursos y tiempos para mejorar la productividad tomando las medidas necesarias para minimizar los riesgos.\n▪ Realiza todas las acciones necesarias para alcanzar los objetivos propuestos enfrentando los obstáculos que se presentan.",null,null,null,null,null,null,null,null,null,null,"2017-09-11",null,null,null,null,null,null,null,null,null,null,62.8999999999998,"NO SATISFACTORIO"]
["DIRECTIVO","Orientación al usuario y al ciudadano",{"$f":"A632&B632","v":"DIRECTIVOOrientación al usuario y al ciudadano"},"Dirigir las decisiones y acciones a la satisfacción de las necesidades e intereses de los usuarios internos y externos, de conformidad con las responsabilidades públicas asignadas a la entidad.","▪ Atiende y valora las necesidades y peticiones de los usuarios y de ciudadanos en general.\n▪Considera las necesidades de los usuarios al diseñar proyectos o servicios.\n▪Da respuesta oportuna a las necesidades de los usuarios de conformidad con el servicio que ofrece la entidad.\n▪Establece diferentes canales de comunicación con el usuario para conocer sus necesidades y propuestas y responde a las mismas.\n▪Reconoce la interdependencia entre su trabajo y el de otros.",null,null,null,null,null,null,null,null,null,null,"2017-09-12",null,null,null,null,null,null,null,null,null,null,62.999999999999801,"NO SATISFACTORIO"]
["DIRECTIVO","Compromiso con la Organización","DIRECTIVOCompromiso con la Organización","Alinear el propio comportamiento a las necesidades, prioridades y metas organizacionales.","▪Promueve las metas de la organización y respeta sus normas.\n▪Antepone las necesidades de la organización a sus propias necesidades.\n▪Apoya a la organización en situaciones difíciles.\n▪Demuestra sentido de pertenencia en todas sus actuaciones.",null,null,null,null,null,null,null,null,null,null,"2017-09-13",null,null,null,null,null,null,null,null,null,null,63.099999999999802,"NO SATISFACTORIO"]
["DIRECTIVO","Liderazgo","DIRECTIVOLiderazgo","Guiar y dirigir grupos y establecer y mantener la cohesión de grupo necesaria para alcanzar los objetivos organizacionales.","• Mantiene a sus colaboradores motivados.\n• Fomenta la comunicación clara, directa y concreta.\n• Constituye y mantiene grupos de trabajo con un desempeño conforme a los estándares.\n• Promueve la eficacia del equipo.\n• Genera un clima positivo y de seguridad en sus colaboradores.\n• Fomenta la participación de todos en los procesos de reflexión y de toma de decisiones.\n• Unifica esfuerzos hacia objetivos y metas institucionales.",null,null,null,null,null,null,null,null,null,null,"2017-09-14",null,null,null,null,null,null,null,null,null,null,63.199999999999797,"NO SATISFACTORIO"]
["DIRECTIVO","Planeación","DIRECTIVOPlaneación","Determinar eficazmente las metas y prioridades institucionales, identificando las acciones, los responsables, los plazos y los recursos requeridos para alcanzarlas.","• Anticipa situaciones y escenarios futuros con acierto.\n• Establece objetivos claros y concisos, estructurados y coherentes con las metas organizacionales.\n• Traduce los objetivos estratégicos en planes prácticos y factibles.\n• Busca soluciones a los problemas.\n• Distribuye el tiempo con eficiencia.\n• Establece planes alternativos de acción.",null,null,null,null,null,null,null,null,null,null,"2017-09-15",null,null,null,null,null,null,null,null,null,null,63.299999999999798,"NO SATISFACTORIO"]
["DIRECTIVO","Toma de decisiones","DIRECTIVOToma de decisiones","Elegir entre una o varias alternativas para solucionar un problema o atender una situación, comprometiéndose con acciones concretas y consecuentes con la decisión.","• Elige con oportunidad, entre muchas alternativas, los proyectos a realizar.\n• Efectúa cambios complejos y comprometidos en sus actividades o en las funciones que tiene asignadas cuando detecta problemas o dificultades para su realización.\n• Decide bajo presión.\n• Decide en situaciones de alta complejidad e incertidumbre.",null,null,null,null,null,null,null,null,null,null,"2017-09-16",null,null,null,null,null,null,null,null,null,null,63.3999999999998,"NO SATISFACTORIO"]
["DIRECTIVO","Dirección y Desarrollo de Personal","DIRECTIVODirección y Desarrollo de Personal","Favorecer el aprendizaje y desarrollo de sus colaboradores, articulando las potencialidades y necesidades individuales con las de la organización para optimizar la calidad de las contribuciones de los equipos de trabajo y de las personas, en el cumplimiento de los objetivos y metas organizacionales presentes y futuras.","• Identifica necesidades de formación y capacitación y propone acciones para satisfacerlas.\n• Permite niveles de autonomía con el fin de estimular el desarrollo integral del empleado.\n• Delega de manera efectiva sabiendo cuando intervenir y cuando no hacerlo.\n• Hace uso de las habilidades y recurso de su grupo de trabajo para alcanzar las metas y los estándares de productividad.\n• Establece espacios regulares de retroalimentación y reconocimiento del desempeño y sabe manejar hábilmente el bajo desempeño.\n• Tiene en cuenta las opiniones de sus colaboradores.\n• Mantiene con sus colaboradores relaciones de respeto.",null,null,null,null,null,null,null,null,null,null,"2017-09-17",null,null,null,null,null,null,null,null,null,null,63.499999999999801,"NO SATISFACTORIO"]
["DIRECTIVO","Conocimiento del entorno","DIRECTIVOConocimiento del entorno","Estar al tanto de las circunstancias y las relaciones de poder que influyen en el entorno organizacional","• Es consciente de las condiciones específicas del entorno organizacional.\n• Está al día en los acontecimientos claves del sector y del Estado.\n• Conoce y hace seguimiento a las políticas gubernamentales.\n• Identifica las fuerzas políticas que afectan la organización y las posibles alianzas para cumplir con los propósitos organizacionales.",null,null,null,null,null,null,null,null,null,null,"2017-09-18",null,null,null,null,null,null,null,null,null,null,63.599999999999802,"NO SATISFACTORIO"]
[null,null,null,null,null,null,null,null,null,null,null,null,null,null,null,"2017-09-19",null,null,null,null,null,null,null,null,null,null,63.699999999999797,"NO SATISFACTORIO"]
[null,null,null,null,null,null,null,null,null,null,null,null,null,null,null,"2017-09-20",null,null,null,null,null,null,null,null,null,null,63.799999999999798,"NO SATISFACTORIO"]
[null,null,null,null,null,null,null,null,null,null,null,null,null,null,null,"2017-09-21",null,null,null,null,null,null,null,null,null,null,63.8999999999998,"NO SATISFACTORIO"]
[null,null,null,null,null,null,null,null,null,null,null,null,null,null,null,"2017-09-22",null,null,null,null,null,null,null,null,null,null,63.999999999999801,"NO SATISFACTORIO"]
[null,null,null,null,null,null,null,null,null,null,null,null,null,null,null,"2017-09-23",null,null,null,null,null,null,null,null,null,null,64.099999999999795,"NO SATISFACTORIO"]
[null,null,null,null,null,null,null,null,null,null,null,null,null,null,null,"2017-09-24",null,null,null,null,null,null,null,null,null,null,64.199999999999804,"NO SATISFACTORIO"]
[null,null,null,null,null,null,null,null,null,null,null,null,null,null,null,"2017-09-25",null,null,null,null,null,null,null,null,null,null,64.299999999999798,"NO SATISFACTORIO"]
[null,null,null,null,null,null,null,null,null,null,null,null,null,null,null,"2017-09-26",null,null,null,null,null,null,null,null,null,null,64.399999999999807,"NO SATISFACTORIO"]
[null,null,null,null,null,null,null,null,null,null,null,null,null,null,null,"2017-09-27",null,null,null,null,null,null,null,null,null,null,64.499999999999801,"NO SATISFACTORIO"]
[null,null,null,null,null,null,null,null,null,null,null,null,null,null,null,"2017-09-28",null,null,null,null,null,null,null,null,null,null,64.599999999999795,"NO SATISFACTORIO"]
[null,null,null,null,null,null,null,null,null,null,null,null,null,null,null,"2017-09-29",null,null,null,null,null,null,null,null,null,null,64.699999999999804,"NO SATISFACTORIO"]
[null,null,null,null,null,null,null,null,null,null,null,null,null,null,null,"2017-09-30",null,null,null,null,null,null,null,null,null,null,64.799999999999798,"NO SATISFACTORIO"]
[null,null,null,null,null,null,null,null,null,null,null,null,null,null,null,"2017-10-01",null,null,null,null,null,null,null,null,null,null,64.899999999999807,"NO SATISFACTORIO"]
[null,null,null,null,null,null,null,null,null,null,null,null,null,null,null,"2017-10-02",null,null,null,null,null,null,null,null,null,null,64.999999999999801,"NO SATISFACTORIO"]
[null,null,null,null,null,null,null,null,null,null,null,null,null,null,null,"2017-10-03",null,null,null,null,null,null,null,null,null,null,65.010000000000005,"SATISFACTORIO"]
[null,null,null,null,null,null,null,null,null,null,null,null,null,null,null,"2017-10-04",null,null,null,null,null,null,null,null,null,null,65.199999999999804,"SATISFACTORIO"]
[null,null,null,null,null,null,null,null,null,null,null,null,null,null,null,"2017-10-05",null,null,null,null,null,null,null,null,null,null,65.299999999999798,"SATISFACTORIO"]
[null,null,null,null,null,null,null,null,null,null,null,null,null,null,null,"2017-10-06",null,null,null,null,null,null,null,null,null,null,65.399999999999807,"SATISFACTORIO"]
[null,null,null,null,null,null,null,null,null,null,null,null,null,null,null,"2017-10-07",null,null,null,null,null,null,null,null,null,null,65.499999999999801,"SATISFACTORIO"]
[null,null,null,null,null,null,null,null,null,null,null,null,null,null,null,"2017-10-08",null,null,null,null,null,null,null,null,null,null,65.599999999999795,"SATISFACTORIO"]
[null,null,null,null,null,null,null,null,null,null,null,null,null,null,null,"2017-10-09",null,null,null,null,null,null,null,null,null,null,65.699999999999804,"SATISFACTORIO"]
[null,null,null,null,null,null,null,null,null,null,null,null,null,null,null,"2017-10-10",null,null,null,null,null,null,null,null,null,null,65.799999999999798,"SATISFACTORIO"]
[null,null,null,null,null,null,null,null,null,null,null,null,null,null,null,"2017-10-11",null,null,null,null,null,null,null,null,null,null,65.899999999999807,"SATISFACTORIO"]
[null,null,null,null,null,null,null,null,null,null,null,null,null,null,null,"2017-10-12",null,null,null,null,null,null,null,null,null,null,65.999999999999801,"SATISFACTORIO"]
[null,null,null,null,null,null,null,null,null,null,null,null,null,null,null,"2017-10-13",null,null,null,null,null,null,null,null,null,null,66.099999999999795,"SATISFACTORIO"]
[null,null,null,null,null,null,null,null,null,null,null,null,null,null,null,"2017-10-14",null,null,null,null,null,null,null,null,null,null,66.199999999999804,"SATISFACTORIO"]
[null,null,null,null,null,null,null,null,null,null,null,null,null,null,null,"2017-10-15",null,null,null,null,null,null,null,null,null,null,66.299999999999798,"SATISFACTORIO"]
[null,null,null,null,null,null,null,null,null,null,null,null,null,null,null,"2017-10-16",null,null,null,null,null,null,null,null,null,null,66.399999999999807,"SATISFACTORIO"]
[null,null,null,null,null,null,null,null,null,null,null,null,null,null,null,"2017-10-17",null,null,null,null,null,null,null,null,null,null,66.499999999999801,"SATISFACTORIO"]
[null,null,null,null,null,null,null,null,null,null,null,null,null,null,null,"2017-10-18",null,null,null,null,null,null,null,null,null,null,66.599999999999795,"SATISFACTORIO"]
[null,null,null,null,null,null,null,null,null,null,null,null,null,null,null,"2017-10-19",null,null,null,null,null,null,null,null,null,null,66.699999999999804,"SATISFACTORIO"]
[null,null,null,null,null,null,null,null,null,null,null,null,null,null,null,"2017-10-20",null,null,null,null,null,null,null,null,null,null,66.799999999999798,"SATISFACTORIO"]
[null,null,null,null,null,null,null,null,null,null,null,null,null,null,null,"2017-10-21",null,null,null,null,null,null,null,null,null,null,66.899999999999807,"SATISFACTORIO"]
[null,null,null,null,null,null,null,null,null,null,null,null,null,null,null,"2017-10-22",null,null,null,null,null,null,null,null,null,null,66.999999999999801,"SATISFACTORIO"]
[null,null,null,null,null,null,null,null,null,null,null,null,null,null,null,"2017-10-23",null,null,null,null,null,null,null,null,null,null,67.099999999999795,"SATISFACTORIO"]
[null,null,null,null,null,null,null,null,null,null,null,null,null,null,null,"2017-10-24",null,null,null,null,null,null,null,null,null,null,67.199999999999804,"SATISFACTORIO"]
[null,null,null,null,null,null,null,null,null,null,null,null,null,null,null,"2017-10-25",null,null,null,null,null,null,null,null,null,null,67.299999999999798,"SATISFACTORIO"]
[null,null,null,null,null,null,null,null,null,null,null,null,null,null,null,"2017-10-26",null,null,null,null,null,null,null,null,null,null,67.399999999999807,"SATISFACTORIO"]
[null,null,null,null,null,null,null,null,null,null,null,null,null,null,null,"2017-10-27",null,null,null,null,null,null,null,null,null,null,67.499999999999801,"SATISFACTORIO"]
[null,null,null,null,null,null,null,null,null,null,null,null,null,null,null,"2017-10-28",null,null,null,null,null,null,null,null,null,null,67.599999999999795,"SATISFACTORIO"]
[null,null,null,null,null,null,null,null,null,null,null,null,null,null,null,"2017-10-29",null,null,null,null,null,null,null,null,null,null,67.699999999999804,"SATISFACTORIO"]
[null,null,null,null,null,null,null,null,null,null,null,null,null,null,null,"2017-10-30",null,null,null,null,null,null,null,null,null,null,67.799999999999798,"SATISFACTORIO"]
[null,null,null,null,null,null,null,null,null,null,null,null,null,null,null,"2017-10-31",null,null,null,null,null,null,null,null,null,null,67.899999999999807,"SATISFACTORIO"]
[null,null,null,null,null,null,null,null,null,null,null,null,null,null,null,"2017-11-01",null,null,null,null,null,null,null,null,null,null,67.999999999999801,"SATISFACTORIO"]
[null,null,null,null,null,null,null,null,null,null,null,null,null,null,null,"2017-11-02",null,null,null,null,null,null,null,null,null,null,68.099999999999795,"SATISFACTORIO"]
[null,null,null,null,null,null,null,null,null,null,null,null,null,null,null,"2017-11-03",null,null,null,null,null,null,null,null,null,null,68.199999999999804,"SATISFACTORIO"]
[null,null,null,null,null,null,null,null,null,null,null,null,null,null,null,"2017-11-04",null,null,null,null,null,null,null,null,null,null,68.299999999999798,"SATISFACTORIO"]
[null,null,null,null,null,null,null,null,null,null,null,null,null,null,null,"2017-11-05",null,null,null,null,null,null,null,null,null,null,68.399999999999807,"SATISFACTORIO"]
[null,null,null,null,null,null,null,null,null,null,null,null,null,null,null,"2017-11-06",null,null,null,null,null,null,null,null,null,null,68.499999999999801,"SATISFACTORIO"]
[null,null,null,null,null,null,null,null,null,null,null,null,null,null,null,"2017-11-07",null,null,null,null,null,null,null,null,null,null,68.599999999999795,"SATISFACTORIO"]
[null,null,null,null,null,null,null,null,null,null,null,null,null,null,null,"2017-11-08",null,null,null,null,null,null,null,null,null,null,68.699999999999804,"SATISFACTORIO"]
[null,null,null,null,null,null,null,null,null,null,null,null,null,null,null,"2017-11-09",null,null,null,null,null,null,null,null,null,null,68.799999999999798,"SATISFACTORIO"]
[null,null,null,null,null,null,null,null,null,null,null,null,null,null,null,"2017-11-10",null,null,null,null,null,null,null,null,null,null,68.899999999999807,"SATISFACTORIO"]
[null,null,null,null,null,null,null,null,null,null,null,null,null,null,null,"2017-11-11",null,null,null,null,null,null,null,null,null,null,68.999999999999801,"SATISFACTORIO"]
[null,null,null,null,null,null,null,null,null,null,null,null,null,null,null,"2017-11-12",null,null,null,null,null,null,null,null,null,null,69.099999999999795,"SATISFACTORIO"]
[null,null,null,null,null,null,null,null,null,null,null,null,null,null,null,"2017-11-13",null,null,null,null,null,null,null,null,null,null,69.199999999999804,"SATISFACTORIO"]
[null,null,null,null,null,null,null,null,null,null,null,null,null,null,null,"2017-11-14",null,null,null,null,null,null,null,null,null,null,69.299999999999798,"SATISFACTORIO"]
[null,null,null,null,null,null,null,null,null,null,null,null,null,null,null,"2017-11-15",null,null,null,null,null,null,null,null,null,null,69.399999999999807,"SATISFACTORIO"]
[null,null,null,null,null,null,null,null,null,null,null,null,null,null,null,"2017-11-16",null,null,null,null,null,null,null,null,null,null,69.499999999999801,"SATISFACTORIO"]
[null,null,null,null,null,null,null,null,null,null,null,null,null,null,null,"2017-11-17",null,null,null,null,null,null,null,null,null,null,69.599999999999795,"SATISFACTORIO"]
[null,null,null,null,null,null,null,null,null,null,null,null,null,null,null,"2017-11-18",null,null,null,null,null,null,null,null,null,null,69.699999999999804,"SATISFACTORIO"]
[null,null,null,null,null,null,null,null,null,null,null,null,null,null,null,"2017-11-19",null,null,null,null,null,null,null,null,null,null,69.799999999999798,"SATISFACTORIO"]
[null,null,null,null,null,null,null,null,null,null,null,null,null,null,null,"2017-11-20",null,null,null,null,null,null,null,null,null,null,69.899999999999807,"SATISFACTORIO"]
[null,null,null,null,null,null,null,null,null,null,null,null,null,null,null,"2017-11-21",null,null,null,null,null,null,null,null,null,null,69.999999999999801,"SATISFACTORIO"]
[null,null,null,null,null,null,null,null,null,null,null,null,null,null,null,"2017-11-22",null,null,null,null,null,null,null,null,null,null,70.099999999999795,"SATISFACTORIO"]
[null,null,null,null,null,null,null,null,null,null,null,null,null,null,null,"2017-11-23",null,null,null,null,null,null,null,null,null,null,70.199999999999804,"SATISFACTORIO"]
[null,null,null,null,null,null,null,null,null,null,null,null,null,null,null,"2017-11-24",null,null,null,null,null,null,null,null,null,null,70.299999999999798,"SATISFACTORIO"]
[null,null,null,null,null,null,null,null,null,null,null,null,null,null,null,"2017-11-25",null,null,null,null,null,null,null,null,null,null,70.399999999999807,"SATISFACTORIO"]
[null,null,null,null,null,null,null,null,null,null,null,null,null,null,null,"2017-11-26",null,null,null,null,null,null,null,null,null,null,70.499999999999801,"SATISFACTORIO"]
[null,null,null,null,null,null,null,null,null,null,null,null,null,null,null,"2017-11-27",null,null,null,null,null,null,null,null,null,null,70.599999999999795,"SATISFACTORIO"]
[null,null,null,null,null,null,null,null,null,null,null,null,null,null,null,"2017-11-28",null,null,null,null,null,null,null,null,null,null,70.699999999999804,"SATISFACTORIO"]
[null,null,null,null,null,null,null,null,null,null,null,null,null,null,null,"2017-11-29",null,null,null,null,null,null,null,null,null,null,70.799999999999798,"SATISFACTORIO"]
[null,null,null,null,null,null,null,null,null,null,null,null,null,null,null,"2017-11-30",null,null,null,null,null,null,null,null,null,null,70.899999999999807,"SATISFACTORIO"]
[null,null,null,null,null,null,null,null,null,null,null,null,null,null,null,"2017-12-01",null,null,null,null,null,null,null,null,null,null,70.999999999999801,"SATISFACTORIO"]
[null,null,null,null,null,null,null,null,null,null,null,null,null,null,null,"2017-12-02",null,null,null,null,null,null,null,null,null,null,71.099999999999795,"SATISFACTORIO"]
[null,null,null,null,null,null,null,null,null,null,null,null,null,null,null,"2017-12-03",null,null,null,null,null,null,null,null,null,null,71.199999999999804,"SATISFACTORIO"]
[null,null,null,null,null,null,null,null,null,null,null,null,null,null,null,"2017-12-04",null,null,null,null,null,null,null,null,null,null,71.299999999999798,"SATISFACTORIO"]
[null,null,null,null,null,null,null,null,null,null,null,null,null,null,null,"2017-12-05",null,null,null,null,null,null,null,null,null,null,71.399999999999807,"SATISFACTORIO"]
[null,null,null,null,null,null,null,null,null,null,null,null,null,null,null,"2017-12-06",null,null,null,null,null,null,null,null,null,null,71.499999999999801,"SATISFACTORIO"]
[null,null,null,null,null,null,null,null,null,null,null,null,null,null,null,"2017-12-07",null,null,null,null,null,null,null,null,null,null,71.599999999999795,"SATISFACTORIO"]
[null,null,null,null,null,null,null,null,null,null,null,null,null,null,null,"2017-12-08",null,null,null,null,null,null,null,null,null,null,71.699999999999804,"SATISFACTORIO"]
[null,null,null,null,null,null,null,null,null,null,null,null,null,null,null,"2017-12-09",null,null,null,null,null,null,null,null,null,null,71.799999999999798,"SATISFACTORIO"]
[null,null,null,null,null,null,null,null,null,null,null,null,null,null,null,"2017-12-10",null,null,null,null,null,null,null,null,null,null,71.899999999999807,"SATISFACTORIO"]
[null,null,null,null,null,null,null,null,null,null,null,null,null,null,null,"2017-12-11",null,null,null,null,null,null,null,null,null,null,71.999999999999801,"SATISFACTORIO"]
[null,null,null,null,null,null,null,null,null,null,null,null,null,null,null,"2017-12-12",null,null,null,null,null,null,null,null,null,null,72.099999999999795,"SATISFACTORIO"]
[null,null,null,null,null,null,null,null,null,null,null,null,null,null,null,"2017-12-13",null,null,null,null,null,null,null,null,null,null,72.199999999999804,"SATISFACTORIO"]
[null,null,null,null,null,null,null,null,null,null,null,null,null,null,null,"2017-12-14",null,null,null,null,null,null,null,null,null,null,72.299999999999798,"SATISFACTORIO"]
[null,null,null,null,null,null,null,null,null,null,null,null,null,null,null,"2017-12-15",null,null,null,null,null,null,null,null,null,null,72.399999999999807,"SATISFACTORIO"]
[null,null,null,null,null,null,null,null,null,null,null,null,null,null,null,"2017-12-16",null,null,null,null,null,null,null,null,null,null,72.499999999999801,"SATISFACTORIO"]
[null,null,null,null,null,null,null,null,null,null,null,null,null,null,null,"2017-12-17",null,null,null,null,null,null,null,null,null,null,72.599999999999795,"SATISFACTORIO"]
[null,null,null,null,null,null,null,null,null,null,null,null,null,null,null,"2017-12-18",null,null,null,null,null,null,null,null,null,null,72.699999999999804,"SATISFACTORIO"]
[null,null,null,null,null,null,null,null,null,null,null,null,null,null,null,"2017-12-19",null,null,null,null,null,null,null,null,null,null,72.799999999999798,"SATISFACTORIO"]
[null,null,null,null,null,null,null,null,null,null,null,null,null,null,null,"2017-12-20",null,null,null,null,null,null,null,null,null,null,72.899999999999807,"SATISFACTORIO"]
[null,null,null,null,null,null,null,null,null,null,null,null,null,null,null,"2017-12-21",null,null,null,null,null,null,null,null,null,null,72.999999999999801,"SATISFACTORIO"]
[null,null,null,null,null,null,null,null,null,null,null,null,null,null,null,"2017-12-22",null,null,null,null,null,null,null,null,null,null,73.099999999999795,"SATISFACTORIO"]
[null,null,null,null,null,null,null,null,null,null,null,null,null,null,null,"2017-12-23",null,null,null,null,null,null,null,null,null,null,73.199999999999804,"SATISFACTORIO"]
[null,null,null,null,null,null,null,null,null,null,null,null,null,null,null,"2017-12-24",null,null,null,null,null,null,null,null,null,null,73.299999999999798,"SATISFACTORIO"]
[null,null,null,null,null,null,null,null,null,null,null,null,null,null,null,"2017-12-25",null,null,null,null,null,null,null,null,null,null,73.399999999999807,"SATISFACTORIO"]
[null,null,null,null,null,null,null,null,null,null,null,null,null,null,null,"2017-12-26",null,null,null,null,null,null,null,null,null,null,73.499999999999801,"SATISFACTORIO"]
[null,null,null,null,null,null,null,null,null,null,null,null,null,null,null,"2017-12-27",null,null,null,null,null,null,null,null,null,null,73.599999999999795,"SATISFACTORIO"]
[null,null,null,null,null,null,null,null,null,null,null,null,null,null,null,"2017-12-28",null,null,null,null,null,null,null,null,null,null,73.699999999999804,"SATISFACTORIO"]
[null,null,null,null,null,null,null,null,null,null,null,null,null,null,null,"2017-12-29",null,null,null,null,null,null,null,null,null,null,73.799999999999798,"SATISFACTORIO"]
[null,null,null,null,null,null,null,null,null,null,null,null,null,null,null,"2017-12-30",null,null,null,null,null,null,null,null,null,null,73.899999999999807,"SATISFACTORIO"]
[null,null,null,null,null,null,null,null,null,null,null,null,null,null,null,"2017-12-31",null,null,null,null,null,null,null,null,null,null,73.999999999999801,"SATISFACTORIO"]
[null,null,null,null,null,null,null,null,null,null,null,null,null,null,null,"2018-01-01",null,null,null,null,null,null,null,null,null,null,74.099999999999795,"SATISFACTORIO"]
[null,null,null,null,null,null,null,null,null,null,null,null,null,null,null,"2018-01-02",null,null,null,null,null,null,null,null,null,null,74.199999999999804,"SATISFACTORIO"]
[null,null,null,null,null,null,null,null,null,null,null,null,null,null,null,"2018-01-03",null,null,null,null,null,null,null,null,null,null,74.299999999999798,"SATISFACTORIO"]
[null,null,null,null,null,null,null,null,null,null,null,null,null,null,null,"2018-01-04",null,null,null,null,null,null,null,null,null,null,74.399999999999807,"SATISFACTORIO"]
[null,null,null,null,null,null,null,null,null,null,null,null,null,null,null,"2018-01-05",null,null,null,null,null,null,null,null,null,null,74.499999999999801,"SATISFACTORIO"]
[null,null,null,null,null,null,null,null,null,null,null,null,null,null,null,"2018-01-06",null,null,null,null,null,null,null,null,null,null,74.599999999999795,"SATISFACTORIO"]
[null,null,null,null,null,null,null,null,null,null,null,null,null,null,null,"2018-01-07",null,null,null,null,null,null,null,null,null,null,74.699999999999804,"SATISFACTORIO"]
[null,null,null,null,null,null,null,null,null,null,null,null,null,null,null,"2018-01-08",null,null,null,null,null,null,null,null,null,null,74.799999999999798,"SATISFACTORIO"]
[null,null,null,null,null,null,null,null,null,null,null,null,null,null,null,"2018-01-09",null,null,null,null,null,null,null,null,null,null,74.899999999999807,"SATISFACTORIO"]
[null,null,null,null,null,null,null,null,null,null,null,null,null,null,null,"2018-01-10",null,null,null,null,null,null,null,null,null,null,74.999999999999801,"SATISFACTORIO"]
[null,null,null,null,null,null,null,null,null,null,null,null,null,null,null,"2018-01-11",null,null,null,null,null,null,null,null,null,null,75.099999999999795,"SATISFACTORIO"]
[null,null,null,null,null,null,null,null,null,null,null,null,null,null,null,"2018-01-12",null,null,null,null,null,null,null,null,null,null,75.199999999999804,"SATISFACTORIO"]
[null,null,null,null,null,null,null,null,null,null,null,null,null,null,null,"2018-01-13",null,null,null,null,null,null,null,null,null,null,75.299999999999798,"SATISFACTORIO"]
[null,null,null,null,null,null,null,null,null,null,null,null,null,null,null,"2018-01-14",null,null,null,null,null,null,null,null,null,null,75.399999999999807,"SATISFACTORIO"]
[null,null,null,null,null,null,null,null,null,null,null,null,null,null,null,"2018-01-15",null,null,null,null,null,null,null,null,null,null,75.499999999999801,"SATISFACTORIO"]
[null,null,null,null,null,null,null,null,null,null,null,null,null,null,null,"2018-01-16",null,null,null,null,null,null,null,null,null,null,75.599999999999795,"SATISFACTORIO"]
[null,null,null,null,null,null,null,null,null,null,null,null,null,null,null,"2018-01-17",null,null,null,null,null,null,null,null,null,null,75.699999999999804,"SATISFACTORIO"]
[null,null,null,null,null,null,null,null,null,null,null,null,null,null,null,"2018-01-18",null,null,null,null,null,null,null,null,null,null,75.799999999999798,"SATISFACTORIO"]
[null,null,null,null,null,null,null,null,null,null,null,null,null,null,null,"2018-01-19",null,null,null,null,null,null,null,null,null,null,75.899999999999807,"SATISFACTORIO"]
[null,null,null,null,null,null,null,null,null,null,null,null,null,null,null,"2018-01-20",null,null,null,null,null,null,null,null,null,null,75.999999999999801,"SATISFACTORIO"]
[null,null,null,null,null,null,null,null,null,null,null,null,null,null,null,"2018-01-21",null,null,null,null,null,null,null,null,null,null,76.099999999999795,"SATISFACTORIO"]
[null,null,null,null,null,null,null,null,null,null,null,null,null,null,null,"2018-01-22",null,null,null,null,null,null,null,null,null,null,76.199999999999804,"SATISFACTORIO"]
[null,null,null,null,null,null,null,null,null,null,null,null,null,null,null,"2018-01-23",null,null,null,null,null,null,null,null,null,null,76.299999999999798,"SATISFACTORIO"]
[null,null,null,null,null,null,null,null,null,null,null,null,null,null,null,"2018-01-24",null,null,null,null,null,null,null,null,null,null,76.399999999999807,"SATISFACTORIO"]
[null,null,null,null,null,null,null,null,null,null,null,null,null,null,null,"2018-01-25",null,null,null,null,null,null,null,null,null,null,76.499999999999801,"SATISFACTORIO"]
[null,null,null,null,null,null,null,null,null,null,null,null,null,null,null,"2018-01-26",null,null,null,null,null,null,null,null,null,null,76.599999999999795,"SATISFACTORIO"]
[null,null,null,null,null,null,null,null,null,null,null,null,null,null,null,"2018-01-27",null,null,null,null,null,null,null,null,null,null,76.699999999999804,"SATISFACTORIO"]
[null,null,null,null,null,null,null,null,null,null,null,null,null,null,null,"2018-01-28",null,null,null,null,null,null,null,null,null,null,76.799999999999798,"SATISFACTORIO"]
[null,null,null,null,null,null,null,null,null,null,null,null,null,null,null,"2018-01-29",null,null,null,null,null,null,null,null,null,null,76.899999999999807,"SATISFACTORIO"]
[null,null,null,null,null,null,null,null,null,null,null,null,null,null,null,"2018-01-30",null,null,null,null,null,null,null,null,null,null,76.999999999999801,"SATISFACTORIO"]
[null,null,null,null,null,null,null,null,null,null,null,null,null,null,null,"2018-01-31",null,null,null,null,null,null,null,null,null,null,77.099999999999795,"SATISFACTORIO"]
[null,null,null,null,null,null,null,null,null,null,null,null,null,null,null,"2018-02-01",null,null,null,null,null,null,null,null,null,null,77.199999999999804,"SATISFACTORIO"]
[null,null,null,null,null,null,null,null,null,null,null,null,null,null,null,"2018-02-02",null,null,null,null,null,null,null,null,null,null,77.299999999999798,"SATISFACTORIO"]
[null,null,null,null,null,null,null,null,null,null,null,null,null,null,null,"2018-02-03",null,null,null,null,null,null,null,null,null,null,77.399999999999807,"SATISFACTORIO"]
[null,null,null,null,null,null,null,null,null,null,null,null,null,null,null,"2018-02-04",null,null,null,null,null,null,null,null,null,null,77.499999999999801,"SATISFACTORIO"]
[null,null,null,null,null,null,null,null,null,null,null,null,null,null,null,"2018-02-05",null,null,null,null,null,null,null,null,null,null,77.599999999999795,"SATISFACTORIO"]
[null,null,null,null,null,null,null,null,null,null,null,null,null,null,null,"2018-02-06",null,null,null,null,null,null,null,null,null,null,77.699999999999804,"SATISFACTORIO"]
[null,null,null,null,null,null,null,null,null,null,null,null,null,null,null,"2018-02-07",null,null,null,null,null,null,null,null,null,null,77.799999999999798,"SATISFACTORIO"]
[null,null,null,null,null,null,null,null,null,null,null,null,null,null,null,"2018-02-08",null,null,null,null,null,null,null,null,null,null,77.899999999999807,"SATISFACTORIO"]
[null,null,null,null,null,null,null,null,null,null,null,null,null,null,null,"2018-02-09",null,null,null,null,null,null,null,null,null,null,77.999999999999801,"SATISFACTORIO"]
[null,null,null,null,null,null,null,null,null,null,null,null,null,null,null,"2018-02-10",null,null,null,null,null,null,null,null,null,null,78.099999999999795,"SATISFACTORIO"]
[null,null,null,null,null,null,null,null,null,null,null,null,null,null,null,"2018-02-11",null,null,null,null,null,null,null,null,null,null,78.199999999999804,"SATISFACTORIO"]
[null,null,null,null,null,null,null,null,null,null,null,null,null,null,null,"2018-02-12",null,null,null,null,null,null,null,null,null,null,78.299999999999798,"SATISFACTORIO"]
[null,null,null,null,null,null,null,null,null,null,null,null,null,null,null,"2018-02-13",null,null,null,null,null,null,null,null,null,null,78.399999999999807,"SATISFACTORIO"]
[null,null,null,null,null,null,null,null,null,null,null,null,null,null,null,"2018-02-14",null,null,null,null,null,null,null,null,null,null,78.499999999999801,"SATISFACTORIO"]
[null,null,null,null,null,null,null,null,null,null,null,null,null,null,null,"2018-02-15",null,null,null,null,null,null,null,null,null,null,78.599999999999795,"SATISFACTORIO"]
[null,null,null,null,null,null,null,null,null,null,null,null,null,null,null,"2018-02-16",null,null,null,null,null,null,null,null,null,null,78.699999999999804,"SATISFACTORIO"]
[null,null,null,null,null,null,null,null,null,null,null,null,null,null,null,"2018-02-17",null,null,null,null,null,null,null,null,null,null,78.799999999999798,"SATISFACTORIO"]
[null,null,null,null,null,null,null,null,null,null,null,null,null,null,null,"2018-02-18",null,null,null,null,null,null,null,null,null,null,78.899999999999693,"SATISFACTORIO"]
[null,null,null,null,null,null,null,null,null,null,null,null,null,null,null,"2018-02-19",null,null,null,null,null,null,null,null,null,null,78.999999999999801,"SATISFACTORIO"]
[null,null,null,null,null,null,null,null,null,null,null,null,null,null,null,"2018-02-20",null,null,null,null,null,null,null,null,null,null,79.099999999999795,"SATISFACTORIO"]
[null,null,null,null,null,null,null,null,null,null,null,null,null,null,null,"2018-02-21",null,null,null,null,null,null,null,null,null,null,79.199999999999804,"SATISFACTORIO"]
[null,null,null,null,null,null,null,null,null,null,null,null,null,null,null,"2018-02-22",null,null,null,null,null,null,null,null,null,null,79.299999999999798,"SATISFACTORIO"]
[null,null,null,null,null,null,null,null,null,null,null,null,null,null,null,"2018-02-23",null,null,null,null,null,null,null,null,null,null,79.399999999999693,"SATISFACTORIO"]
[null,null,null,null,null,null,null,null,null,null,null,null,null,null,null,"2018-02-24",null,null,null,null,null,null,null,null,null,null,79.499999999999801,"SATISFACTORIO"]
[null,null,null,null,null,null,null,null,null,null,null,null,null,null,null,"2018-02-25",null,null,null,null,null,null,null,null,null,null,79.599999999999795,"SATISFACTORIO"]
[null,null,null,null,null,null,null,null,null,null,null,null,null,null,null,"2018-02-26",null,null,null,null,null,null,null,null,null,null,79.699999999999804,"SATISFACTORIO"]
[null,null,null,null,null,null,null,null,null,null,null,null,null,null,null,"2018-02-27",null,null,null,null,null,null,null,null,null,null,79.799999999999798,"SATISFACTORIO"]
[null,null,null,null,null,null,null,null,null,null,null,null,null,null,null,"2018-02-28",null,null,null,null,null,null,null,null,null,null,79.899999999999693,"SATISFACTORIO"]
[null,null,null,null,null,null,null,null,null,null,null,null,null,null,null,"2018-03-01",null,null,null,null,null,null,null,null,null,null,79.999999999999801,"DESTACADO"]
[null,null,null,null,null,null,null,null,null,null,null,null,null,null,null,"2018-03-02",null,null,null,null,null,null,null,null,null,null,80.099999999999795,"DESTACADO"]
[null,null,null,null,null,null,null,null,null,null,null,null,null,null,null,"2018-03-03",null,null,null,null,null,null,null,null,null,null,80.199999999999704,"DESTACADO"]
[null,null,null,null,null,null,null,null,null,null,null,null,null,null,null,"2018-03-04",null,null,null,null,null,null,null,null,null,null,80.299999999999798,"DESTACADO"]
[null,null,null,null,null,null,null,null,null,null,null,null,null,null,null,"2018-03-05",null,null,null,null,null,null,null,null,null,null,80.399999999999693,"DESTACADO"]
[null,null,null,null,null,null,null,null,null,null,null,null,null,null,null,"2018-03-06",null,null,null,null,null,null,null,null,null,null,80.499999999999702,"DESTACADO"]
[null,null,null,null,null,null,null,null,null,null,null,null,null,null,null,"2018-03-07",null,null,null,null,null,null,null,null,null,null,80.599999999999795,"DESTACADO"]
[null,null,null,null,null,null,null,null,null,null,null,null,null,null,null,"2018-03-08",null,null,null,null,null,null,null,null,null,null,80.699999999999704,"DESTACADO"]
[null,null,null,null,null,null,null,null,null,null,null,null,null,null,null,"2018-03-09",null,null,null,null,null,null,null,null,null,null,80.799999999999798,"DESTACADO"]
[null,null,null,null,null,null,null,null,null,null,null,null,null,null,null,"2018-03-10",null,null,null,null,null,null,null,null,null,null,80.899999999999693,"DESTACADO"]
[null,null,null,null,null,null,null,null,null,null,null,null,null,null,null,"2018-03-11",null,null,null,null,null,null,null,null,null,null,80.999999999999702,"DESTACADO"]
[null,null,null,null,null,null,null,null,null,null,null,null,null,null,null,"2018-03-12",null,null,null,null,null,null,null,null,null,null,81.099999999999795,"DESTACADO"]
[null,null,null,null,null,null,null,null,null,null,null,null,null,null,null,"2018-03-13",null,null,null,null,null,null,null,null,null,null,81.199999999999704,"DESTACADO"]
[null,null,null,null,null,null,null,null,null,null,null,null,null,null,null,"2018-03-14",null,null,null,null,null,null,null,null,null,null,81.299999999999798,"DESTACADO"]
[null,null,null,null,null,null,null,null,null,null,null,null,null,null,null,"2018-03-15",null,null,null,null,null,null,null,null,null,null,81.399999999999693,"DESTACADO"]
[null,null,null,null,null,null,null,null,null,null,null,null,null,null,null,"2018-03-16",null,null,null,null,null,null,null,null,null,null,81.499999999999702,"DESTACADO"]
[null,null,null,null,null,null,null,null,null,null,null,null,null,null,null,"2018-03-17",null,null,null,null,null,null,null,null,null,null,81.599999999999795,"DESTACADO"]
[null,null,null,null,null,null,null,null,null,null,null,null,null,null,null,"2018-03-18",null,null,null,null,null,null,null,null,null,null,81.699999999999704,"DESTACADO"]
[null,null,null,null,null,null,null,null,null,null,null,null,null,null,null,"2018-03-19",null,null,null,null,null,null,null,null,null,null,81.799999999999699,"DESTACADO"]
[null,null,null,null,null,null,null,null,null,null,null,null,null,null,null,"2018-03-20",null,null,null,null,null,null,null,null,null,null,81.899999999999693,"DESTACADO"]
[null,null,null,null,null,null,null,null,null,null,null,null,null,null,null,"2018-03-21",null,null,null,null,null,null,null,null,null,null,81.999999999999702,"DESTACADO"]
[null,null,null,null,null,null,null,null,null,null,null,null,null,null,null,"2018-03-22",null,null,null,null,null,null,null,null,null,null,82.099999999999696,"DESTACADO"]
[null,null,null,null,null,null,null,null,null,null,null,null,null,null,null,"2018-03-23",null,null,null,null,null,null,null,null,null,null,82.199999999999704,"DESTACADO"]
[null,null,null,null,null,null,null,null,null,null,null,null,null,null,null,"2018-03-24",null,null,null,null,null,null,null,null,null,null,82.299999999999699,"DESTACADO"]
[null,null,null,null,null,null,null,null,null,null,null,null,null,null,null,"2018-03-25",null,null,null,null,null,null,null,null,null,null,82.399999999999693,"DESTACADO"]
[null,null,null,null,null,null,null,null,null,null,null,null,null,null,null,"2018-03-26",null,null,null,null,null,null,null,null,null,null,82.499999999999702,"DESTACADO"]
[null,null,null,null,null,null,null,null,null,null,null,null,null,null,null,"2018-03-27",null,null,null,null,null,null,null,null,null,null,82.599999999999696,"DESTACADO"]
[null,null,null,null,null,null,null,null,null,null,null,null,null,null,null,"2018-03-28",null,null,null,null,null,null,null,null,null,null,82.699999999999704,"DESTACADO"]
[null,null,null,null,null,null,null,null,null,null,null,null,null,null,null,"2018-03-29",null,null,null,null,null,null,null,null,null,null,82.799999999999699,"DESTACADO"]
[null,null,null,null,null,null,null,null,null,null,null,null,null,null,null,"2018-03-30",null,null,null,null,null,null,null,null,null,null,82.899999999999693,"DESTACADO"]
[null,null,null,null,null,null,null,null,null,null,null,null,null,null,null,"2018-03-31",null,null,null,null,null,null,null,null,null,null,82.999999999999702,"DESTACADO"]
[null,null,null,null,null,null,null,null,null,null,null,null,null,null,null,"2018-04-01",null,null,null,null,null,null,null,null,null,null,83.099999999999696,"DESTACADO"]
[null,null,null,null,null,null,null,null,null,null,null,null,null,null,null,"2018-04-02",null,null,null,null,null,null,null,null,null,null,83.199999999999704,"DESTACADO"]
[null,null,null,null,null,null,null,null,null,null,null,null,null,null,null,"2018-04-03",null,null,null,null,null,null,null,null,null,null,83.299999999999699,"DESTACADO"]
[null,null,null,null,null,null,null,null,null,null,null,null,null,null,null,"2018-04-04",null,null,null,null,null,null,null,null,null,null,83.399999999999693,"DESTACADO"]
[null,null,null,null,null,null,null,null,null,null,null,null,null,null,null,"2018-04-05",null,null,null,null,null,null,null,null,null,null,83.499999999999702,"DESTACADO"]
[null,null,null,null,null,null,null,null,null,null,null,null,null,null,null,"2018-04-06",null,null,null,null,null,null,null,null,null,null,83.599999999999696,"DESTACADO"]
[null,null,null,null,null,null,null,null,null,null,null,null,null,null,null,"2018-04-07",null,null,null,null,null,null,null,null,null,null,83.699999999999704,"DESTACADO"]
[null,null,null,null,null,null,null,null,null,null,null,null,null,null,null,"2018-04-08",null,null,null,null,null,null,null,null,null,null,83.799999999999699,"DESTACADO"]
[null,null,null,null,null,null,null,null,null,null,null,null,null,null,null,"2018-04-09",null,null,null,null,null,null,null,null,null,null,83.899999999999693,"DESTACADO"]
[null,null,null,null,null,null,null,null,null,null,null,null,null,null,null,"2018-04-10",null,null,null,null,null,null,null,null,null,null,83.999999999999702,"DESTACADO"]
[null,null,null,null,null,null,null,null,null,null,null,null,null,null,null,"2018-04-11",null,null,null,null,null,null,null,null,null,null,84.099999999999696,"DESTACADO"]
[null,null,null,null,null,null,null,null,null,null,null,null,null,null,null,"2018-04-12",null,null,null,null,null,null,null,null,null,null,84.199999999999704,"DESTACADO"]
[null,null,null,null,null,null,null,null,null,null,null,null,null,null,null,"2018-04-13",null,null,null,null,null,null,null,null,null,null,84.299999999999699,"DESTACADO"]
[null,null,null,null,null,null,null,null,null,null,null,null,null,null,null,"2018-04-14",null,null,null,null,null,null,null,null,null,null,84.399999999999693,"DESTACADO"]
[null,null,null,null,null,null,null,null,null,null,null,null,null,null,null,"2018-04-15",null,null,null,null,null,null,null,null,null,null,84.499999999999702,"DESTACADO"]
[null,null,null,null,null,null,null,null,null,null,null,null,null,null,null,"2018-04-16",null,null,null,null,null,null,null,null,null,null,84.599999999999696,"DESTACADO"]
[null,null,null,null,null,null,null,null,null,null,null,null,null,null,null,"2018-04-17",null,null,null,null,null,null,null,null,null,null,84.699999999999704,"DESTACADO"]
[null,null,null,null,null,null,null,null,null,null,null,null,null,null,null,"2018-04-18",null,null,null,null,null,null,null,null,null,null,84.799999999999699,"DESTACADO"]
[null,null,null,null,null,null,null,null,null,null,null,null,null,null,null,"2018-04-19",null,null,null,null,null,null,null,null,null,null,84.899999999999693,"DESTACADO"]
[null,null,null,null,null,null,null,null,null,null,null,null,null,null,null,"2018-04-20",null,null,null,null,null,null,null,null,null,null,84.999999999999702,"DESTACADO"]
[null,null,null,null,null,null,null,null,null,null,null,null,null,null,null,"2018-04-21",null,null,null,null,null,null,null,null,null,null,85.099999999999696,"DESTACADO"]
[null,null,null,null,null,null,null,null,null,null,null,null,null,null,null,"2018-04-22",null,null,null,null,null,null,null,null,null,null,85.199999999999704,"DESTACADO"]
[null,null,null,null,null,null,null,null,null,null,null,null,null,null,null,"2018-04-23",null,null,null,null,null,null,null,null,null,null,85.299999999999699,"DESTACADO"]
[null,null,null,null,null,null,null,null,null,null,null,null,null,null,null,"2018-04-24",null,null,null,null,null,null,null,null,null,null,85.399999999999693,"DESTACADO"]
[null,null,null,null,null,null,null,null,null,null,null,null,null,null,null,"2018-04-25",null,null,null,null,null,null,null,null,null,null,85.499999999999702,"DESTACADO"]
[null,null,null,null,null,null,null,null,null,null,null,null,null,null,null,"2018-04-26",null,null,null,null,null,null,null,null,null,null,85.599999999999696,"DESTACADO"]
[null,null,null,null,null,null,null,null,null,null,null,null,null,null,null,"2018-04-27",null,null,null,null,null,null,null,null,null,null,85.699999999999704,"DESTACADO"]
[null,null,null,null,null,null,null,null,null,null,null,null,null,null,null,"2018-04-28",null,null,null,null,null,null,null,null,null,null,85.799999999999699,"DESTACADO"]
[null,null,null,null,null,null,null,null,null,null,null,null,null,null,null,"2018-04-29",null,null,null,null,null,null,null,null,null,null,85.899999999999693,"DESTACADO"]
[null,null,null,null,null,null,null,null,null,null,null,null,null,null,null,"2018-04-30",null,null,null,null,null,null,null,null,null,null,85.999999999999702,"DESTACADO"]
[null,null,null,null,null,null,null,null,null,null,null,null,null,null,null,"2018-05-01",null,null,null,null,null,null,null,null,null,null,86.099999999999696,"DESTACADO"]
[null,null,null,null,null,null,null,null,null,null,null,null,null,null,null,"2018-05-02",null,null,null,null,null,null,null,null,null,null,86.199999999999704,"DESTACADO"]
[null,null,null,null,null,null,null,null,null,null,null,null,null,null,null,"2018-05-03",null,null,null,null,null,null,null,null,null,null,86.299999999999699,"DESTACADO"]
[null,null,null,null,null,null,null,null,null,null,null,null,null,null,null,"2018-05-04",null,null,null,null,null,null,null,null,null,null,86.399999999999693,"DESTACADO"]
[null,null,null,null,null,null,null,null,null,null,null,null,null,null,null,"2018-05-05",null,null,null,null,null,null,null,null,null,null,86.499999999999702,"DESTACADO"]
[null,null,null,null,null,null,null,null,null,null,null,null,null,null,null,"2018-05-06",null,null,null,null,null,null,null,null,null,null,86.599999999999696,"DESTACADO"]
[null,null,null,null,null,null,null,null,null,null,null,null,null,null,null,"2018-05-07",null,null,null,null,null,null,null,null,null,null,86.699999999999704,"DESTACADO"]
[null,null,null,null,null,null,null,null,null,null,null,null,null,null,null,"2018-05-08",null,null,null,null,null,null,null,null,null,null,86.799999999999699,"DESTACADO"]
[null,null,null,null,null,null,null,null,null,null,null,null,null,null,null,"2018-05-09",null,null,null,null,null,null,null,null,null,null,86.899999999999693,"DESTACADO"]
[null,null,null,null,null,null,null,null,null,null,null,null,null,null,null,"2018-05-10",null,null,null,null,null,null,null,null,null,null,86.999999999999702,"DESTACADO"]
[null,null,null,null,null,null,null,null,null,null,null,null,null,null,null,"2018-05-11",null,null,null,null,null,null,null,null,null,null,87.099999999999696,"DESTACADO"]
[null,null,null,null,null,null,null,null,null,null,null,null,null,null,null,"2018-05-12",null,null,null,null,null,null,null,null,null,null,87.199999999999704,"DESTACADO"]
[null,null,null,null,null,null,null,null,null,null,null,null,null,null,null,"2018-05-13",null,null,null,null,null,null,null,null,null,null,87.299999999999699,"DESTACADO"]
[null,null,null,null,null,null,null,null,null,null,null,null,null,null,null,"2018-05-14",null,null,null,null,null,null,null,null,null,null,87.399999999999693,"DESTACADO"]
[null,null,null,null,null,null,null,null,null,null,null,null,null,null,null,"2018-05-15",null,null,null,null,null,null,null,null,null,null,87.499999999999702,"DESTACADO"]
[null,null,null,null,null,null,null,null,null,null,null,null,null,null,null,"2018-05-16",null,null,null,null,null,null,null,null,null,null,87.599999999999696,"DESTACADO"]
[null,null,null,null,null,null,null,null,null,null,null,null,null,null,null,"2018-05-17",null,null,null,null,null,null,null,null,null,null,87.699999999999704,"DESTACADO"]
[null,null,null,null,null,null,null,null,null,null,null,null,null,null,null,"2018-05-18",null,null,null,null,null,null,null,null,null,null,87.799999999999699,"DESTACADO"]
[null,null,null,null,null,null,null,null,null,null,null,null,null,null,null,"2018-05-19",null,null,null,null,null,null,null,null,null,null,87.899999999999693,"DESTACADO"]
[null,null,null,null,null,null,null,null,null,null,null,null,null,null,null,"2018-05-20",null,null,null,null,null,null,null,null,null,null,87.999999999999702,"DESTACADO"]
[null,null,null,null,null,null,null,null,null,null,null,null,null,null,null,"2018-05-21",null,null,null,null,null,null,null,null,null,null,88.099999999999696,"DESTACADO"]
[null,null,null,null,null,null,null,null,null,null,null,null,null,null,null,"2018-05-22",null,null,null,null,null,null,null,null,null,null,88.199999999999704,"DESTACADO"]
[null,null,null,null,null,null,null,null,null,null,null,null,null,null,null,"2018-05-23",null,null,null,null,null,null,null,null,null,null,88.299999999999699,"DESTACADO"]
[null,null,null,null,null,null,null,null,null,null,null,null,null,null,null,"2018-05-24",null,null,null,null,null,null,null,null,null,null,88.399999999999693,"DESTACADO"]
[null,null,null,null,null,null,null,null,null,null,null,null,null,null,null,"2018-05-25",null,null,null,null,null,null,null,null,null,null,88.499999999999702,"DESTACADO"]
[null,null,null,null,null,null,null,null,null,null,null,null,null,null,null,"2018-05-26",null,null,null,null,null,null,null,null,null,null,88.599999999999696,"DESTACADO"]
[null,null,null,null,null,null,null,null,null,null,null,null,null,null,null,"2018-05-27",null,null,null,null,null,null,null,null,null,null,88.699999999999704,"DESTACADO"]
[null,null,null,null,null,null,null,null,null,null,null,null,null,null,null,"2018-05-28",null,null,null,null,null,null,null,null,null,null,88.799999999999699,"DESTACADO"]
[null,null,null,null,null,null,null,null,null,null,null,null,null,null,null,"2018-05-29",null,null,null,null,null,null,null,null,null,null,88.899999999999693,"DESTACADO"]
[null,null,null,null,null,null,null,null,null,null,null,null,null,null,null,"2018-05-30",null,null,null,null,null,null,null,null,null,null,88.999999999999702,"DESTACADO"]
[null,null,null,null,null,null,null,null,null,null,null,null,null,null,null,"2018-05-31",null,null,null,null,null,null,null,null,null,null,89.099999999999696,"DESTACADO"]
[null,null,null,null,null,null,null,null,null,null,null,null,null,null,null,"2018-06-01",null,null,null,null,null,null,null,null,null,null,89.199999999999704,"DESTACADO"]
[null,null,null,null,null,null,null,null,null,null,null,null,null,null,null,"2018-06-02",null,null,null,null,null,null,null,null,null,null,89.299999999999699,"DESTACADO"]
[null,null,null,null,null,null,null,null,null,null,null,null,null,null,null,"2018-06-03",null,null,null,null,null,null,null,null,null,null,89.399999999999693,"DESTACADO"]
[null,null,null,null,null,null,null,null,null,null,null,null,null,null,null,"2018-06-04",null,null,null,null,null,null,null,null,null,null,89.499999999999702,"DESTACADO"]
[null,null,null,null,null,null,null,null,null,null,null,null,null,null,null,"2018-06-05",null,null,null,null,null,null,null,null,null,null,89.599999999999696,"DESTACADO"]
[null,null,null,null,null,null,null,null,null,null,null,null,null,null,null,"2018-06-06",null,null,null,null,null,null,null,null,null,null,89.699999999999704,"DESTACADO"]
[null,null,null,null,null,null,null,null,null,null,null,null,null,null,null,"2018-06-07",null,null,null,null,null,null,null,null,null,null,89.799999999999699,"DESTACADO"]
[null,null,null,null,null,null,null,null,null,null,null,null,null,null,null,"2018-06-08",null,null,null,null,null,null,null,null,null,null,89.899999999999693,"DESTACADO"]
[null,null,null,null,null,null,null,null,null,null,null,null,null,null,null,"2018-06-09",null,null,null,null,null,null,null,null,null,null,89.999999999999702,"DESTACADO"]
[null,null,null,null,null,null,null,null,null,null,null,null,null,null,null,"2018-06-10",null,null,null,null,null,null,null,null,null,null,90.099999999999696,"DESTACADO"]
[null,null,null,null,null,null,null,null,null,null,null,null,null,null,null,"2018-06-11",null,null,null,null,null,null,null,null,null,null,90.199999999999704,"DESTACADO"]
[null,null,null,null,null,null,null,null,null,null,null,null,null,null,null,"2018-06-12",null,null,null,null,null,null,null,null,null,null,90.299999999999699,"DESTACADO"]
[null,null,null,null,null,null,null,null,null,null,null,null,null,null,null,"2018-06-13",null,null,null,null,null,null,null,null,null,null,90.399999999999693,"DESTACADO"]
[null,null,null,null,null,null,null,null,null,null,null,null,null,null,null,"2018-06-14",null,null,null,null,null,null,null,null,null,null,90.499999999999702,"DESTACADO"]
[null,null,null,null,null,null,null,null,null,null,null,null,null,null,null,"2018-06-15",null,null,null,null,null,null,null,null,null,null,90.599999999999696,"DESTACADO"]
[null,null,null,null,null,null,null,null,null,null,null,null,null,null,null,"2018-06-16",null,null,null,null,null,null,null,null,null,null,90.699999999999704,"DESTACADO"]
[null,null,null,null,null,null,null,null,null,null,null,null,null,null,null,"2018-06-17",null,null,null,null,null,null,null,null,null,null,90.799999999999699,"DESTACADO"]
[null,null,null,null,null,null,null,null,null,null,null,null,null,null,null,"2018-06-18",null,null,null,null,null,null,null,null,null,null,90.899999999999693,"DESTACADO"]
[null,null,null,null,null,null,null,null,null,null,null,null,null,null,null,"2018-06-19",null,null,null,null,null,null,null,null,null,null,90.999999999999702,"DESTACADO"]
[null,null,null,null,null,null,null,null,null,null,null,null,null,null,null,"2018-06-20",null,null,null,null,null,null,null,null,null,null,91.099999999999696,"DESTACADO"]
[null,null,null,null,null,null,null,null,null,null,null,null,null,null,null,"2018-06-21",null,null,null,null,null,null,null,null,null,null,91.199999999999704,"DESTACADO"]
[null,null,null,null,null,null,null,null,null,null,null,null,null,null,null,"2018-06-22",null,null,null,null,null,null,null,null,null,null,91.299999999999699,"DESTACADO"]
[null,null,null,null,null,null,null,null,null,null,null,null,null,null,null,"2018-06-23",null,null,null,null,null,null,null,null,null,null,91.399999999999693,"DESTACADO"]
[null,null,null,null,null,null,null,null,null,null,null,null,null,null,null,"2018-06-24",null,null,null,null,null,null,null,null,null,null,91.499999999999702,"DESTACADO"]
[null,null,null,null,null,null,null,null,null,null,null,null,null,null,null,"2018-06-25",null,null,null,null,null,null,null,null,null,null,91.599999999999696,"DESTACADO"]
[null,null,null,null,null,null,null,null,null,null,null,null,null,null,null,"2018-06-26",null,null,null,null,null,null,null,null,null,null,91.699999999999704,"DESTACADO"]
[null,null,null,null,null,null,null,null,null,null,null,null,null,null,null,"2018-06-27",null,null,null,null,null,null,null,null,null,null,91.799999999999699,"DESTACADO"]
[null,null,null,null,null,null,null,null,null,null,null,null,null,null,null,"2018-06-28",null,null,null,null,null,null,null,null,null,null,91.899999999999693,"DESTACADO"]
[null,null,null,null,null,null,null,null,null,null,null,null,null,null,null,"2018-06-29",null,null,null,null,null,null,null,null,null,null,91.999999999999702,"DESTACADO"]
[null,null,null,null,null,null,null,null,null,null,null,null,null,null,null,"2018-06-30",null,null,null,null,null,null,null,null,null,null,92.099999999999696,"DESTACADO"]
[null,null,null,null,null,null,null,null,null,null,null,null,null,null,null,"2018-07-01",null,null,null,null,null,null,null,null,null,null,92.199999999999704,"DESTACADO"]
[null,null,null,null,null,null,null,null,null,null,null,null,null,null,null,"2018-07-02",null,null,null,null,null,null,null,null,null,null,92.299999999999699,"DESTACADO"]
[null,null,null,null,null,null,null,null,null,null,null,null,null,null,null,"2018-07-03",null,null,null,null,null,null,null,null,null,null,92.399999999999693,"DESTACADO"]
[null,null,null,null,null,null,null,null,null,null,null,null,null,null,null,"2018-07-04",null,null,null,null,null,null,null,null,null,null,92.499999999999702,"DESTACADO"]
[null,null,null,null,null,null,null,null,null,null,null,null,null,null,null,"2018-07-05",null,null,null,null,null,null,null,null,null,null,92.599999999999696,"DESTACADO"]
[null,null,null,null,null,null,null,null,null,null,null,null,null,null,null,"2018-07-06",null,null,null,null,null,null,null,null,null,null,92.699999999999704,"DESTACADO"]
[null,null,null,null,null,null,null,null,null,null,null,null,null,null,null,"2018-07-07",null,null,null,null,null,null,null,null,null,null,92.799999999999699,"DESTACADO"]
[null,null,null,null,null,null,null,null,null,null,null,null,null,null,null,"2018-07-08",null,null,null,null,null,null,null,null,null,null,92.899999999999693,"DESTACADO"]
[null,null,null,null,null,null,null,null,null,null,null,null,null,null,null,"2018-07-09",null,null,null,null,null,null,null,null,null,null,92.999999999999702,"DESTACADO"]
[null,null,null,null,null,null,null,null,null,null,null,null,null,null,null,"2018-07-10",null,null,null,null,null,null,null,null,null,null,93.099999999999696,"DESTACADO"]
[null,null,null,null,null,null,null,null,null,null,null,null,null,null,null,"2018-07-11",null,null,null,null,null,null,null,null,null,null,93.199999999999704,"DESTACADO"]
[null,null,null,null,null,null,null,null,null,null,null,null,null,null,null,"2018-07-12",null,null,null,null,null,null,null,null,null,null,93.299999999999699,"DESTACADO"]
[null,null,null,null,null,null,null,null,null,null,null,null,null,null,null,"2018-07-13",null,null,null,null,null,null,null,null,null,null,93.399999999999693,"DESTACADO"]
[null,null,null,null,null,null,null,null,null,null,null,null,null,null,null,"2018-07-14",null,null,null,null,null,null,null,null,null,null,93.499999999999702,"DESTACADO"]
[null,null,null,null,null,null,null,null,null,null,null,null,null,null,null,"2018-07-15",null,null,null,null,null,null,null,null,null,null,93.599999999999696,"DESTACADO"]
[null,null,null,null,null,null,null,null,null,null,null,null,null,null,null,"2018-07-16",null,null,null,null,null,null,null,null,null,null,93.699999999999704,"DESTACADO"]
[null,null,null,null,null,null,null,null,null,null,null,null,null,null,null,"2018-07-17",null,null,null,null,null,null,null,null,null,null,93.799999999999699,"DESTACADO"]
[null,null,null,null,null,null,null,null,null,null,null,null,null,null,null,"2018-07-18",null,null,null,null,null,null,null,null,null,null,93.899999999999693,"DESTACADO"]
[null,null,null,null,null,null,null,null,null,null,null,null,null,null,null,"2018-07-19",null,null,null,null,null,null,null,null,null,null,93.999999999999702,"DESTACADO"]
[null,null,null,null,null,null,null,null,null,null,null,null,null,null,null,"2018-07-20",null,null,null,null,null,null,null,null,null,null,94.099999999999696,"DESTACADO"]
[null,null,null,null,null,null,null,null,null,null,null,null,null,null,null,"2018-07-21",null,null,null,null,null,null,null,null,null,null,94.199999999999704,"DESTACADO"]
[null,null,null,null,null,null,null,null,null,null,null,null,null,null,null,"2018-07-22",null,null,null,null,null,null,null,null,null,null,94.299999999999699,"DESTACADO"]
[null,null,null,null,null,null,null,null,null,null,null,null,null,null,null,"2018-07-23",null,null,null,null,null,null,null,null,null,null,94.399999999999693,"DESTACADO"]
[null,null,null,null,null,null,null,null,null,null,null,null,null,null,null,"2018-07-24",null,null,null,null,null,null,null,null,null,null,94.499999999999702,"DESTACADO"]
[null,null,null,null,null,null,null,null,null,null,null,null,null,null,null,"2018-07-25",null,null,null,null,null,null,null,null,null,null,94.599999999999696,"DESTACADO"]
[null,null,null,null,null,null,null,null,null,null,null,null,null,null,null,"2018-07-26",null,null,null,null,null,null,null,null,null,null,94.699999999999704,"DESTACADO"]
[null,null,null,null,null,null,null,null,null,null,null,null,null,null,null,"2018-07-27",null,null,null,null,null,null,null,null,null,null,94.799999999999699,"DESTACADO"]
[null,null,null,null,null,null,null,null,null,null,null,null,null,null,null,"2018-07-28",null,null,null,null,null,null,null,null,null,null,94.899999999999693,"DESTACADO"]
[null,null,null,null,null,null,null,null,null,null,null,null,null,null,null,"2018-07-29",null,null,null,null,null,null,null,null,null,null,94.999999999999702,"SOBRESALIENTE"]
[null,null,null,null,null,null,null,null,null,null,null,null,null,null,null,"2018-07-30",null,null,null,null,null,null,null,null,null,null,95.099999999999696,"SOBRESALIENTE"]
[null,null,null,null,null,null,null,null,null,null,null,null,null,null,null,"2018-07-31",null,null,null,null,null,null,null,null,null,null,95.199999999999704,"SOBRESALIENTE"]
[null,null,null,null,null,null,null,null,null,null,null,null,null,null,null,"2018-08-01",null,null,null,null,null,null,null,null,null,null,95.299999999999699,"SOBRESALIENTE"]
[null,null,null,null,null,null,null,null,null,null,null,null,null,null,null,"2018-08-02",null,null,null,null,null,null,null,null,null,null,95.399999999999693,"SOBRESALIENTE"]
[null,null,null,null,null,null,null,null,null,null,null,null,null,null,null,"2018-08-03",null,null,null,null,null,null,null,null,null,null,95.499999999999702,"SOBRESALIENTE"]
[null,null,null,null,null,null,null,null,null,null,null,null,null,null,null,"2018-08-04",null,null,null,null,null,null,null,null,null,null,95.599999999999696,"SOBRESALIENTE"]
[null,null,null,null,null,null,null,null,null,null,null,null,null,null,null,"2018-08-05",null,null,null,null,null,null,null,null,null,null,95.699999999999704,"SOBRESALIENTE"]
[null,null,null,null,null,null,null,null,null,null,null,null,null,null,null,"2018-08-06",null,null,null,null,null,null,null,null,null,null,95.799999999999699,"SOBRESALIENTE"]
[null,null,null,null,null,null,null,null,null,null,null,null,null,null,null,"2018-08-07",null,null,null,null,null,null,null,null,null,null,95.899999999999693,"SOBRESALIENTE"]
[null,null,null,null,null,null,null,null,null,null,null,null,null,null,null,"2018-08-08",null,null,null,null,null,null,null,null,null,null,95.999999999999702,"SOBRESALIENTE"]
[null,null,null,null,null,null,null,null,null,null,null,null,null,null,null,"2018-08-09",null,null,null,null,null,null,null,null,null,null,96.099999999999696,"SOBRESALIENTE"]
[null,null,null,null,null,null,null,null,null,null,null,null,null,null,null,"2018-08-10",null,null,null,null,null,null,null,null,null,null,96.199999999999704,"SOBRESALIENTE"]
[null,null,null,null,null,null,null,null,null,null,null,null,null,null,null,"2018-08-11",null,null,null,null,null,null,null,null,null,null,96.299999999999699,"SOBRESALIENTE"]
[null,null,null,null,null,null,null,null,null,null,null,null,null,null,null,"2018-08-12",null,null,null,null,null,null,null,null,null,null,96.399999999999693,"SOBRESALIENTE"]
[null,null,null,null,null,null,null,null,null,null,null,null,null,null,null,"2018-08-13",null,null,null,null,null,null,null,null,null,null,96.499999999999702,"SOBRESALIENTE"]
[null,null,null,null,null,null,null,null,null,null,null,null,null,null,null,"2018-08-14",null,null,null,null,null,null,null,null,null,null,96.599999999999696,"SOBRESALIENTE"]
[null,null,null,null,null,null,null,null,null,null,null,null,null,null,null,"2018-08-15",null,null,null,null,null,null,null,null,null,null,96.699999999999704,"SOBRESALIENTE"]
[null,null,null,null,null,null,null,null,null,null,null,null,null,null,null,"2018-08-16",null,null,null,null,null,null,null,null,null,null,96.799999999999699,"SOBRESALIENTE"]
[null,null,null,null,null,null,null,null,null,null,null,null,null,null,null,"2018-08-17",null,null,null,null,null,null,null,null,null,null,96.899999999999693,"SOBRESALIENTE"]
[null,null,null,null,null,null,null,null,null,null,null,null,null,null,null,"2018-08-18",null,null,null,null,null,null,null,null,null,null,96.999999999999702,"SOBRESALIENTE"]
[null,null,null,null,null,null,null,null,null,null,null,null,null,null,null,"2018-08-19",null,null,null,null,null,null,null,null,null,null,97.099999999999696,"SOBRESALIENTE"]
[null,null,null,null,null,null,null,null,null,null,null,null,null,null,null,"2018-08-20",null,null,null,null,null,null,null,null,null,null,97.199999999999704,"SOBRESALIENTE"]
[null,null,null,null,null,null,null,null,null,null,null,null,null,null,null,"2018-08-21",null,null,null,null,null,null,null,null,null,null,97.299999999999699,"SOBRESALIENTE"]
[null,null,null,null,null,null,null,null,null,null,null,null,null,null,null,"2018-08-22",null,null,null,null,null,null,null,null,null,null,97.399999999999693,"SOBRESALIENTE"]
[null,null,null,null,null,null,null,null,null,null,null,null,null,null,null,"2018-08-23",null,null,null,null,null,null,null,null,null,null,97.499999999999702,"SOBRESALIENTE"]
[null,null,null,null,null,null,null,null,null,null,null,null,null,null,null,"2018-08-24",null,null,null,null,null,null,null,null,null,null,97.599999999999696,"SOBRESALIENTE"]
[null,null,null,null,null,null,null,null,null,null,null,null,null,null,null,"2018-08-25",null,null,null,null,null,null,null,null,null,null,97.699999999999704,"SOBRESALIENTE"]
[null,null,null,null,null,null,null,null,null,null,null,null,null,null,null,"2018-08-26",null,null,null,null,null,null,null,null,null,null,97.799999999999699,"SOBRESALIENTE"]
[null,null,null,null,null,null,null,null,null,null,null,null,null,null,null,"2018-08-27",null,null,null,null,null,null,null,null,null,null,97.899999999999693,"SOBRESALIENTE"]
[null,null,null,null,null,null,null,null,null,null,null,null,null,null,null,"2018-08-28",null,null,null,null,null,null,null,null,null,null,97.999999999999702,"SOBRESALIENTE"]
[null,null,null,null,null,null,null,null,null,null,null,null,null,null,null,"2018-08-29",null,null,null,null,null,null,null,null,null,null,98.099999999999696,"SOBRESALIENTE"]
[null,null,null,null,null,null,null,null,null,null,null,null,null,null,null,"2018-08-30",null,null,null,null,null,null,null,null,null,null,98.199999999999704,"SOBRESALIENTE"]
[null,null,null,null,null,null,null,null,null,null,null,null,null,null,null,"2018-08-31",null,null,null,null,null,null,null,null,null,null,98.299999999999699,"SOBRESALIENTE"]
[null,null,null,null,null,null,null,null,null,null,null,null,null,null,null,"2018-09-01",null,null,null,null,null,null,null,null,null,null,98.399999999999693,"SOBRESALIENTE"]
[null,null,null,null,null,null,null,null,null,null,null,null,null,null,null,"2018-09-02",null,null,null,null,null,null,null,null,null,null,98.499999999999702,"SOBRESALIENTE"]
[null,null,null,null,null,null,null,null,null,null,null,null,null,null,null,"2018-09-03",null,null,null,null,null,null,null,null,null,null,98.599999999999696,"SOBRESALIENTE"]
[null,null,null,null,null,null,null,null,null,null,null,null,null,null,null,"2018-09-04",null,null,null,null,null,null,null,null,null,null,98.699999999999704,"SOBRESALIENTE"]
[null,null,null,null,null,null,null,null,null,null,null,null,null,null,null,"2018-09-05",null,null,null,null,null,null,null,null,null,null,98.799999999999699,"SOBRESALIENTE"]
[null,null,null,null,null,null,null,null,null,null,null,null,null,null,null,"2018-09-06",null,null,null,null,null,null,null,null,null,null,98.899999999999693,"SOBRESALIENTE"]
[null,null,null,null,null,null,null,null,null,null,null,null,null,null,null,"2018-09-07",null,null,null,null,null,null,null,null,null,null,98.999999999999702,"SOBRESALIENTE"]
[null,null,null,null,null,null,null,null,null,null,null,null,null,null,null,"2018-09-08",null,null,null,null,null,null,null,null,null,null,99.099999999999696,"SOBRESALIENTE"]
[null,null,null,null,null,null,null,null,null,null,null,null,null,null,null,"2018-09-09",null,null,null,null,null,null,null,null,null,null,99.199999999999704,"SOBRESALIENTE"]
[null,null,null,null,null,null,null,null,null,null,null,null,null,null,null,"2018-09-10",null,null,null,null,null,null,null,null,null,null,99.299999999999699,"SOBRESALIENTE"]
[null,null,null,null,null,null,null,null,null,null,null,null,null,null,null,"2018-09-11",null,null,null,null,null,null,null,null,null,null,99.399999999999693,"SOBRESALIENTE"]
[null,null,null,null,null,null,null,null,null,null,null,null,null,null,null,"2018-09-12",null,null,null,null,null,null,null,null,null,null,99.499999999999702,"SOBRESALIENTE"]
[null,null,null,null,null,null,null,null,null,null,null,null,null,null,null,"2018-09-13",null,null,null,null,null,null,null,null,null,null,99.599999999999696,"SOBRESALIENTE"]
[null,null,null,null,null,null,null,null,null,null,null,null,null,null,null,"2018-09-14",null,null,null,null,null,null,null,null,null,null,99.699999999999704,"SOBRESALIENTE"]
[null,null,null,null,null,null,null,null,null,null,null,null,null,null,null,"2018-09-15",null,null,null,null,null,null,null,null,null,null,99.799999999999699,"SOBRESALIENTE"]
[null,null,null,null,null,null,null,null,null,null,null,null,null,null,null,"2018-09-16",null,null,null,null,null,null,null,null,null,null,99.899999999999693,"SOBRESALIENTE"]
[null,null,null,null,null,null,null,null,null,null,null,null,null,null,null,"2018-09-17",null,null,null,null,null,null,null,null,null,null,99.999999999999702,"SOBRESALIENTE"]
[null,null,null,null,null,null,null,null,null,null,null,null,null,null,null,"2018-09-18"]
[null,null,null,null,null,null,null,null,null,null,null,null,null,null,null,"2018-09-19"]
[null,null,null,null,null,null,null,null,null,null,null,null,null,null,null,"2018-09-20"]
[null,null,null,null,null,null,null,null,null,null,null,null,null,null,null,"2018-09-21"]
[null,null,null,null,null,null,null,null,null,null,null,null,null,null,null,"2018-09-22"]
[null,null,null,null,null,null,null,null,null,null,null,null,null,null,null,"2018-09-23"]
[null,null,null,null,null,null,null,null,null,null,null,null,null,null,null,"2018-09-24"]
[null,null,null,null,null,null,null,null,null,null,null,null,null,null,null,"2018-09-25"]
[null,null,null,null,null,null,null,null,null,null,null,null,null,null,null,"2018-09-26"]
[null,null,null,null,null,null,null,null,null,null,null,null,null,null,null,"2018-09-27"]
[null,null,null,null,null,null,null,null,null,null,null,null,null,null,null,"2018-09-28"]
[null,null,null,null,null,null,null,null,null,null,null,null,null,null,null,"2018-09-29"]
[null,null,null,null,null,null,null,null,null,null,null,null,null,null,null,"2018-09-30"]
[null,null,null,null,null,null,null,null,null,null,null,null,null,null,null,"2018-10-01"]
[null,null,null,null,null,null,null,null,null,null,null,null,null,null,null,"2018-10-02"]
[null,null,null,null,null,null,null,null,null,null,null,null,null,null,null,"2018-10-03"]
[null,null,null,null,null,null,null,null,null,null,null,null,null,null,null,"2018-10-04"]
[null,null,null,null,null,null,null,null,null,null,null,null,null,null,null,"2018-10-05"]
[null,null,null,null,null,null,null,null,null,null,null,null,null,null,null,"2018-10-06"]
[null,null,null,null,null,null,null,null,null,null,null,null,null,null,null,"2018-10-07"]
[null,null,null,null,null,null,null,null,null,null,null,null,null,null,null,"2018-10-08"]
[null,null,null,null,null,null,null,null,null,null,null,null,null,null,null,"2018-10-09"]
[null,null,null,null,null,null,null,null,null,null,null,null,null,null,null,"2018-10-10"]
[null,null,null,null,null,null,null,null,null,null,null,null,null,null,null,"2018-10-11"]
[null,null,null,null,null,null,null,null,null,null,null,null,null,null,null,"2018-10-12"]
[null,null,null,null,null,null,null,null,null,null,null,null,null,null,null,"2018-10-13"]
[null,null,null,null,null,null,null,null,null,null,null,null,null,null,null,"2018-10-14"]
[null,null,null,null,null,null,null,null,null,null,null,null,null,null,null,"2018-10-15"]
[null,null,null,null,null,null,null,null,null,null,null,null,null,null,null,"2018-10-16"]
[null,null,null,null,null,null,null,null,null,null,null,null,null,null,null,"2018-10-17"]
[null,null,null,null,null,null,null,null,null,null,null,null,null,null,null,"2018-10-18"]
[null,null,null,null,null,null,null,null,null,null,null,null,null,null,null,"2018-10-19"]
[null,null,null,null,null,null,null,null,null,null,null,null,null,null,null,"2018-10-20"]
[null,null,null,null,null,null,null,null,null,null,null,null,null,null,null,"2018-10-21"]
[null,null,null,null,null,null,null,null,null,null,null,null,null,null,null,"2018-10-22"]
[null,null,null,null,null,null,null,null,null,null,null,null,null,null,null,"2018-10-23"]
[null,null,null,null,null,null,null,null,null,null,null,null,null,null,null,"2018-10-24"]
[null,null,null,null,null,null,null,null,null,null,null,null,null,null,null,"2018-10-25"]
[null,null,null,null,null,null,null,null,null,null,null,null,null,null,null,"2018-10-26"]
[null,null,null,null,null,null,null,null,null,null,null,null,null,null,null,"2018-10-27"]
[null,null,null,null,null,null,null,null,null,null,null,null,null,null,null,"2018-10-28"]
[null,null,null,null,null,null,null,null,null,null,null,null,null,null,null,"2018-10-29"]
[null,null,null,null,null,null,null,null,null,null,null,null,null,null,null,"2018-10-30"]
[null,null,null,null,null,null,null,null,null,null,null,null,null,null,null,"2018-10-31"]
[null,null,null,null,null,null,null,null,null,null,null,null,null,null,null,"2018-11-01"]
[null,null,null,null,null,null,null,null,null,null,null,null,null,null,null,"2018-11-02"]
[null,null,null,null,null,null,null,null,null,null,null,null,null,null,null,"2018-11-03"]
[null,null,null,null,null,null,null,null,null,null,null,null,null,null,null,"2018-11-04"]
[null,null,null,null,null,null,null,null,null,null,null,null,null,null,null,"2018-11-05"]
[null,null,null,null,null,null,null,null,null,null,null,null,null,null,null,"2018-11-06"]
[null,null,null,null,null,null,null,null,null,null,null,null,null,null,null,"2018-11-07"]
[null,null,null,null,null,null,null,null,null,null,null,null,null,null,null,"2018-11-08"]
[null,null,null,null,null,null,null,null,null,null,null,null,null,null,null,"2018-11-09"]
[null,null,null,null,null,null,null,null,null,null,null,null,null,null,null,"2018-11-10"]
[null,null,null,null,null,null,null,null,null,null,null,null,null,null,null,"2018-11-11"]
[null,null,null,null,null,null,null,null,null,null,null,null,null,null,null,"2018-11-12"]
[null,null,null,null,null,null,null,null,null,null,null,null,null,null,null,"2018-11-13"]
[null,null,null,null,null,null,null,null,null,null,null,null,null,null,null,"2018-11-14"]
[null,null,null,null,null,null,null,null,null,null,null,null,null,null,null,"2018-11-15"]
[null,null,null,null,null,null,null,null,null,null,null,null,null,null,null,"2018-11-16"]
[null,null,null,null,null,null,null,null,null,null,null,null,null,null,null,"2018-11-17"]
[null,null,null,null,null,null,null,null,null,null,null,null,null,null,null,"2018-11-18"]
[null,null,null,null,null,null,null,null,null,null,null,null,null,null,null,"2018-11-19"]
[null,null,null,null,null,null,null,null,null,null,null,null,null,null,null,"2018-11-20"]
[null,null,null,null,null,null,null,null,null,null,null,null,null,null,null,"2018-11-21"]
[null,null,null,null,null,null,null,null,null,null,null,null,null,null,null,"2018-11-22"]
[null,null,null,null,null,null,null,null,null,null,null,null,null,null,null,"2018-11-23"]
[null,null,null,null,null,null,null,null,null,null,null,null,null,null,null,"2018-11-24"]
[null,null,null,null,null,null,null,null,null,null,null,null,null,null,null,"2018-11-25"]
[null,null,null,null,null,null,null,null,null,null,null,null,null,null,null,"2018-11-26"]
[null,null,null,null,null,null,null,null,null,null,null,null,null,null,null,"2018-11-27"]
[null,null,null,null,null,null,null,null,null,null,null,null,null,null,null,"2018-11-28"]
[null,null,null,null,null,null,null,null,null,null,null,null,null,null,null,"2018-11-29"]
[null,null,null,null,null,null,null,null,null,null,null,null,null,null,null,"2018-11-30"]
[null,null,null,null,null,null,null,null,null,null,null,null,null,null,null,"2018-12-01"]
[null,null,null,null,null,null,null,null,null,null,null,null,null,null,null,"2018-12-02"]
[null,null,null,null,null,null,null,null,null,null,null,null,null,null,null,"2018-12-03"]
[null,null,null,null,null,null,null,null,null,null,null,null,null,null,null,"2018-12-04"]
[null,null,null,null,null,null,null,null,null,null,null,null,null,null,null,"2018-12-05"]
[null,null,null,null,null,null,null,null,null,null,null,null,null,null,null,"2018-12-06"]
[null,null,null,null,null,null,null,null,null,null,null,null,null,null,null,"2018-12-07"]
[null,null,null,null,null,null,null,null,null,null,null,null,null,null,null,"2018-12-08"]
[null,null,null,null,null,null,null,null,null,null,null,null,null,null,null,"2018-12-09"]
[null,null,null,null,null,null,null,null,null,null,null,null,null,null,null,"2018-12-10"]
[null,null,null,null,null,null,null,null,null,null,null,null,null,null,null,"2018-12-11"]
[null,null,null,null,null,null,null,null,null,null,null,null,null,null,null,"2018-12-12"]
[null,null,null,null,null,null,null,null,null,null,null,null,null,null,null,"2018-12-13"]
[null,null,null,null,null,null,null,null,null,null,null,null,null,null,null,"2018-12-14"]
[null,null,null,null,null,null,null,null,null,null,null,null,null,null,null,"2018-12-15"]
[null,null,null,null,null,null,null,null,null,null,null,null,null,null,null,"2018-12-16"]
[null,null,null,null,null,null,null,null,null,null,null,null,null,null,null,"2018-12-17"]
[null,null,null,null,null,null,null,null,null,null,null,null,null,null,null,"2018-12-18"]
[null,null,null,null,null,null,null,null,null,null,null,null,null,null,null,"2018-12-19"]
[null,null,null,null,null,null,null,null,null,null,null,null,null,null,null,"2018-12-20"]
[null,null,null,null,null,null,null,null,null,null,null,null,null,null,null,"2018-12-21"]
[null,null,null,null,null,null,null,null,null,null,null,null,null,null,null,"2018-12-22"]
[null,null,null,null,null,null,null,null,null,null,null,null,null,null,null,"2018-12-23"]
[null,null,null,null,null,null,null,null,null,null,null,null,null,null,null,"2018-12-24"]
[null,null,null,null,null,null,null,null,null,null,null,null,null,null,null,"2018-12-25"]
[null,null,null,null,null,null,null,null,null,null,null,null,null,null,null,"2018-12-26"]
[null,null,null,null,null,null,null,null,null,null,null,null,null,null,null,"2018-12-27"]
[null,null,null,null,null,null,null,null,null,null,null,null,null,null,null,"2018-12-28"]
[null,null,null,null,null,null,null,null,null,null,null,null,null,null,null,"2018-12-29"]
[null,null,null,null,null,null,null,null,null,null,null,null,null,null,null,"2018-12-30"]
[null,null,null,null,null,null,null,null,null,null,null,null,null,null,null,"2018-12-31"]
[null,null,null,null,null,null,null,null,null,null,null,null,null,null,null,"2019-01-01"]
[null,null,null,null,null,null,null,null,null,null,null,null,null,null,null,"2019-01-02"]
[null,null,null,null,null,null,null,null,null,null,null,null,null,null,null,"2019-01-03"]
[null,null,null,null,null,null,null,null,null,null,null,null,null,null,null,"2019-01-04"]
[null,null,null,null,null,null,null,null,null,null,null,null,null,null,null,"2019-01-05"]
[null,null,null,null,null,null,null,null,null,null,null,null,null,null,null,"2019-01-06"]
[null,null,null,null,null,null,null,null,null,null,null,null,null,null,null,"2019-01-07"]
[null,null,null,null,null,null,null,null,null,null,null,null,null,null,null,"2019-01-08"]
[null,null,null,null,null,null,null,null,null,null,null,null,null,null,null,"2019-01-09"]
[null,null,null,null,null,null,null,null,null,null,null,null,null,null,null,"2019-01-10"]
[null,null,null,null,null,null,null,null,null,null,null,null,null,null,null,"2019-01-11"]
[null,null,null,null,null,null,null,null,null,null,null,null,null,null,null,"2019-01-12"]
[null,null,null,null,null,null,null,null,null,null,null,null,null,null,null,"2019-01-13"]
[null,null,null,null,null,null,null,null,null,null,null,null,null,null,null,"2019-01-14"]
[null,null,null,null,null,null,null,null,null,null,null,null,null,null,null,"2019-01-15"]
[null,null,null,null,null,null,null,null,null,null,null,null,null,null,null,"2019-01-16"]
[null,null,null,null,null,null,null,null,null,null,null,null,null,null,null,"2019-01-17"]
[null,null,null,null,null,null,null,null,null,null,null,null,null,null,null,"2019-01-18"]
[null,null,null,null,null,null,null,null,null,null,null,null,null,null,null,"2019-01-19"]
[null,null,null,null,null,null,null,null,null,null,null,null,null,null,null,"2019-01-20"]
[null,null,null,null,null,null,null,null,null,null,null,null,null,null,null,"2019-01-21"]
[null,null,null,null,null,null,null,null,null,null,null,null,null,null,null,"2019-01-22"]
[null,null,null,null,null,null,null,null,null,null,null,null,null,null,null,"2019-01-23"]
[null,null,null,null,null,null,null,null,null,null,null,null,null,null,null,"2019-01-24"]
[null,null,null,null,null,null,null,null,null,null,null,null,null,null,null,"2019-01-25"]
[null,null,null,null,null,null,null,null,null,null,null,null,null,null,null,"2019-01-26"]
[null,null,null,null,null,null,null,null,null,null,null,null,null,null,null,"2019-01-27"]
[null,null,null,null,null,null,null,null,null,null,null,null,null,null,null,"2019-01-28"]
[null,null,null,null,null,null,null,null,null,null,null,null,null,null,null,"2019-01-29"]
[null,null,null,null,null,null,null,null,null,null,null,null,null,null,null,"2019-01-30"]
[null,null,null,null,null,null,null,null,null,null,null,null,null,null,null,"2019-01-31"]
[null,null,null,null,null,null,null,null,null,null,null,null,null,null,null,"2019-02-01"]
[null,null,null,null,null,null,null,null,null,null,null,null,null,null,null,"2019-02-02"]
[null,null,null,null,null,null,null,null,null,null,null,null,null,null,null,"2019-02-03"]
[null,null,null,null,null,null,null,null,null,null,null,null,null,null,null,"2019-02-04"]
[null,null,null,null,null,null,null,null,null,null,null,null,null,null,null,"2019-02-05"]
[null,null,null,null,null,null,null,null,null,null,null,null,null,null,null,"2019-02-06"]
[null,null,null,null,null,null,null,null,null,null,null,null,null,null,null,"2019-02-07"]
[null,null,null,null,null,null,null,null,null,null,null,null,null,null,null,"2019-02-08"]
[null,null,null,null,null,null,null,null,null,null,null,null,null,null,null,"2019-02-09"]
[null,null,null,null,null,null,null,null,null,null,null,null,null,null,null,"2019-02-10"]
[null,null,null,null,null,null,null,null,null,null,null,null,null,null,null,"2019-02-11"]
[null,null,null,null,null,null,null,null,null,null,null,null,null,null,null,"2019-02-12"]
[null,null,null,null,null,null,null,null,null,null,null,null,null,null,null,"2019-02-13"]
[null,null,null,null,null,null,null,null,null,null,null,null,null,null,null,"2019-02-14"]
[null,null,null,null,null,null,null,null,null,null,null,null,null,null,null,"2019-02-15"]
[null,null,null,null,null,null,null,null,null,null,null,null,null,null,null,"2019-02-16"]
[null,null,null,null,null,null,null,null,null,null,null,null,null,null,null,"2019-02-17"]
[null,null,null,null,null,null,null,null,null,null,null,null,null,null,null,"2019-02-18"]
[null,null,null,null,null,null,null,null,null,null,null,null,null,null,null,"2019-02-19"]
[null,null,null,null,null,null,null,null,null,null,null,null,null,null,null,"2019-02-20"]
[null,null,null,null,null,null,null,null,null,null,null,null,null,null,null,"2019-02-21"]
[null,null,null,null,null,null,null,null,null,null,null,null,null,null,null,"2019-02-22"]
[null,null,null,null,null,null,null,null,null,null,null,null,null,null,null,"2019-02-23"]
[null,null,null,null,null,null,null,null,null,null,null,null,null,null,null,"2019-02-24"]
[null,null,null,null,null,null,null,null,null,null,null,null,null,null,null,"2019-02-25"]
[null,null,null,null,null,null,null,null,null,null,null,null,null,null,null,"2019-02-26"]
[null,null,null,null,null,null,null,null,null,null,null,null,null,null,null,"2019-02-27"]
[null,null,null,null,null,null,null,null,null,null,null,null,null,null,null,"2019-02-28"]
[null,null,null,null,null,null,null,null,null,null,null,null,null,null,null,"2019-03-01"]
[null,null,null,null,null,null,null,null,null,null,null,null,null,null,null,"2019-03-02"]
[null,null,null,null,null,null,null,null,null,null,null,null,null,null,null,"2019-03-03"]
[null,null,null,null,null,null,null,null,null,null,null,null,null,null,null,"2019-03-04"]
[null,null,null,null,null,null,null,null,null,null,null,null,null,null,null,"2019-03-05"]
[null,null,null,null,null,null,null,null,null,null,null,null,null,null,null,"2019-03-06"]
[null,null,null,null,null,null,null,null,null,null,null,null,null,null,null,"2019-03-07"]
[null,null,null,null,null,null,null,null,null,null,null,null,null,null,null,"2019-03-08"]
[null,null,null,null,null,null,null,null,null,null,null,null,null,null,null,"2019-03-09"]
[null,null,null,null,null,null,null,null,null,null,null,null,null,null,null,"2019-03-10"]
[null,null,null,null,null,null,null,null,null,null,null,null,null,null,null,"2019-03-11"]
[null,null,null,null,null,null,null,null,null,null,null,null,null,null,null,"2019-03-12"]
[null,null,null,null,null,null,null,null,null,null,null,null,null,null,null,"2019-03-13"]
[null,null,null,null,null,null,null,null,null,null,null,null,null,null,null,"2019-03-14"]
[null,null,null,null,null,null,null,null,null,null,null,null,null,null,null,"2019-03-15"]
[null,null,null,null,null,null,null,null,null,null,null,null,null,null,null,"2019-03-16"]
[null,null,null,null,null,null,null,null,null,null,null,null,null,null,null,"2019-03-17"]
[null,null,null,null,null,null,null,null,null,null,null,null,null,null,null,"2019-03-18"]
[null,null,null,null,null,null,null,null,null,null,null,null,null,null,null,"2019-03-19"]
[null,null,null,null,null,null,null,null,null,null,null,null,null,null,null,"2019-03-20"]
[null,null,null,null,null,null,null,null,null,null,null,null,null,null,null,"2019-03-21"]
[null,null,null,null,null,null,null,null,null,null,null,null,null,null,null,"2019-03-22"]
[null,null,null,null,null,null,null,null,null,null,null,null,null,null,null,"2019-03-23"]
[null,null,null,null,null,null,null,null,null,null,null,null,null,null,null,"2019-03-24"]
[null,null,null,null,null,null,null,null,null,null,null,null,null,null,null,"2019-03-25"]
[null,null,null,null,null,null,null,null,null,null,null,null,null,null,null,"2019-03-26"]
[null,null,null,null,null,null,null,null,null,null,null,null,null,null,null,"2019-03-27"]
[null,null,null,null,null,null,null,null,null,null,null,null,null,null,null,"2019-03-28"]
[null,null,null,null,null,null,null,null,null,null,null,null,null,null,null,"2019-03-29"]
[null,null,null,null,null,null,null,null,null,null,null,null,null,null,null,"2019-03-30"]
[null,null,null,null,null,null,null,null,null,null,null,null,null,null,null,"2019-03-31"]
[null,null,null,null,null,null,null,null,null,null,null,null,null,null,null,"2019-04-01"]
[null,null,null,null,null,null,null,null,null,null,null,null,null,null,null,"2019-04-02"]

{"sheet":"F5. EVA. ÁREAS O DEPENDENCIAS.","index":2,"n_rows":40,"n_cols":13,"rows_kept":40,"cut":false,"hidden":false,"merged":[[39,1,39,12],[16,15,16,22],[17,15,17,16],[17,19,17,20],[6,13,6,15],[7,13,7,15],[32,9,32,12],[38,2,38,12],[31,2,31,6],[32,2,32,6],[36,2,36,11],[37,2,37,12],[30,2,30,6],[25,2,25,6],[26,2,26,6],[19,9,19,12],[4,8,4,10],[5,8,5,9],[6,8,6,9],[0,11,7,12],[31,9,31,12],[30,7,30,8],[23,9,23,12],[24,9,24,12],[25,9,25,12],[26,9,26,12],[27,9,27,12],[26,7,26,8],[28,9,28,12],[29,9,29,12],[30,9,30,12],[18,9,18,12],[20,9,20,12],[21,9,21,12],[22,9,22,12],[0,1,7,4],[4,5,7,7],[7,8,7,9],[2,5,3,10],[0,5,1,10],[15,7,15,8],[16,7,16,8],[15,2,15,6],[16,2,16,6],[8,1,8,12],[9,1,10,4],[9,8,10,9],[11,1,11,12],[12,1,14,1],[12,2,14,6],[12,7,14,8],[12,9,14,12],[16,9,16,12],[19,7,19,8],[20,7,20,8],[19,2,19,6],[20,2,20,6],[17,7,17,8],[18,7,18,8],[17,2,17,6],[18,2,18,6],[21,7,21,8],[22,7,22,8],[21,2,21,6],[22,2,22,6],[23,7,23,8],[17,9,17,12],[15,9,15,12],[33,1,34,12],[35,2,35,11],[31,7,31,8],[32,7,32,8],[29,7,29,8],[27,7,27,8],[28,7,28,8],[27,2,27,6],[28,2,28,6],[29,2,29,6],[24,7,24,8],[23,2,23,6],[24,2,24,6],[25,7,25,8]]}
[null,null,null,null,null,"COMISIÓN NACIONAL DEL SERVICIO CIVIL",null,null,null,null,null,"INSERTE EL LOGOTIPO DE SU ENTIDAD"]
[]
[null,null,null,null,null,"FORMATO 5. EVALUACIÓN DE GESTIÓN POR ÁREAS O  DEPENDENCIAS"]
[]
[null,null,null,null,null,"PROCESO: EVALUACIÓN DEL DESEMPEÑO LABORAL",null,null,"CÓDIGO:  F-ED-006"]
[null,null,null,null,null,null,null,null,"FECHA EMISIÓN",null,"2016-12-27"]
[null,null,null,null,null,null,null,null,"Página",null,"1 de 1"]
[null,null,null,null,null,null,null,null,"Versión ",null,"2.0"]
[]
[null,"PERÍODO DE VIGENCIA ",null,null,null,"DÍA","MES","AÑO","al",null,"DÍA","MES","AÑO"]
[null,null,null,null,null,1,2,2018,null,null,31,1,2019]
[null,"Resultados de la evaluación por áreas o dependencias"]
[null,"N°","ÁREA O DEPENDENCIA.",null,null,null,null,"CALIFICACIÓN DEL ÁREA O DEPENDENCIA",null,"OBSERVACIONES"]
[]
[]
[null,1,"DESPACHO MINISTRO",null,null,null,null,10,null,"VER INFORME DE GESTION POR DEPENDENCIA "]
[null,2,"DIRECCIÓN DE DESARROLLO SECTORIAL",null,null,null,null,10,null,"VER INFORME DE GESTION POR DEPENDENCIA "]
[null,3,"DIRECCIÓN DE ESPACIO URBANO Y\nTERRITORIAL",null,null,null,null,10,null,"VER INFORME DE GESTION POR DEPENDENCIA "]
[null,4,"DIRECCIÓN DE PROGRAMAS",null,null,null,null,10,null,"VER INFORME DE GESTION POR DEPENDENCIA "]
[null,5,"DIRECCIÓN DE INVERSIONES EN\nVIVIENDA DE INTERÉS SOCIAL",null,null,null,null,8,null,"VER INFORME DE GESTION POR DEPENDENCIA "]
[null,6,"DIRECCIÓN DE SISTEMA HABITACIONAL",null,null,null,null,10,null,"VER INFORME DE GESTION POR DEPENDENCIA "]
[null,7,"GRUPO DE ATENCIÓN AL USUARIO Y\nARCHIVO (Gestión Documental)",null,null,null,null,7,null,"VER INFORME DE GESTION POR DEPENDENCIA "]
[null,8,"GRUPO CONTROL INTERNO\nDISCIPLINARIO",null,null,null,null,10,null,"VER INFORME DE GESTION POR DEPENDENCIA "]
[null,9,"GRUPO DE COMUNICACIONES\nESTRATÉGICAS",null,null,null,null,10,null,"VER INFORME DE GESTION POR DEPENDENCIA "]
[null,10,"GRUPO DE TALENTO HUMANO.",null,null,null,null,10,null,"VER INFORME DE GESTION POR DEPENDENCIA "]
[null,11,"OFICINA ASESORA DE PLANEACIÓN ",null,null,null,null,10,null,"VER INFORME DE GESTION POR DEPENDENCIA "]
[null,12,"OFICINA DE CONTROL INTERNO\n",null,null,null,null,10,null,"VER INFORME DE GESTION POR DEPENDENCIA "]
[null,13,"OFICINA TECNOLOGÍAS DE LA\nINFORMACIÓN Y LAS COMUNICACIONES.",null,null,null,null,8,null,"VER INFORME DE GESTION POR DEPENDENCIA "]
[null,14,"OFICINA ASESORA JURÍDICA",null,null,null,null,10,null,"VER INFORME DE GESTION POR DEPENDENCIA "]
[null,15,"SUBDIRECCIÓN DE FINANZAS Y\nPRESUPUESTO",null,null,null,null,10,null,"VER INFORME DE GESTION POR DEPENDENCIA "]
[null,16,"SUBDIRECCIÓN DE SERVICIOS\nADMINISTRATIVOS",null,null,null,null,10,null,"VER INFORME DE GESTION POR DEPENDENCIA "]
[null,17]
[null,18]
[null,"Observaciones generales: "]
[]
[null,null,"Nota: Tener en cuenta los siguientes aspectos para efectuar la calificación:"]
[null,null,"i) La planeación institucional enmarcada en la visión, misión y objetivos del organismo; "]
[null,null,"ii) Los objetivos institucionales por dependencia y sus compromisos relacionados y; "]
[null,null,"iii) Los resultados de la ejecución por dependencias de acuerdo con lo  programado en la planeación institucional."]
[null,"En el evento de detectar limitaciones de orden presupuestal o administrativo, se deben describir los aspectos más relevantes que hayan afectado la ejecución de los planes institucionales en cada dependencia."]